Workbook

Sheet Cover Sheet
B2: Stormwater Design Worksheets This series of worksheets has been developed to determine RIDOT project stormwater treatment goals and STU water quality treatement credit to support compliance with RIDOT's Consent Decree and Linear Manual. For more information and guidance, refer to the RIDOT Stormwater Worksheets Help Document.
F3: Project ID:
B4: User Notes • White cells with blue text designate an input is required. • Grey cells contain formulas and should not be altered. • Cells denoted with * indicate input must be one of a controlled list (see pull down). | F4: Location:
F5: Municipality:
F6: Worksheet Version Date: | G6: 2022-08-02
B8: Sheet Summary | D8: Sheet | E8: Description
B9: Calculation Tabs | D9: Non-Discharge Areas | E9: Documents non-discharge areas (RIDOT areas where runoff does not reach the impaired water body) within project limits. Non-discharge areas do not require additional evaluation for stormwater and are subtracted from the post-construction impervious surface requiring treatment. Non-discharge areas entered on this tab are summarized by WBID in Rows G & J of Worksheet A-Scoping.
D10: LID & STUs | E10: Documents existing and proposed controls for stormwater treatment and calculates water quality treatment credit (in units of Effective Acres of Impervious Cover). Stormwater controls include existing STUs, existing IC Disconnection, pavement removal, redirecting drainage to a non-discharge or IC Disconnection area, upgrades to existing STUs, and new structural STUs. Treatment from STUs entered on this tab is auto populated by WBID in Rows C - E of Worksheets B-30%, B-90%, & C-As Built, and Rows F - K of Worksheets B-90% & C-As Built.
B11: Stormwater Design Worksheets | D11: Worksheet A-Scoping | E11: Calculates project stormwater treatment goal, accounting for non-discharge areas. This worksheet should be completed during scoping.
D12: Worksheet B-30% | E12: Summarizes stormwater treatment provided by existing STUs, existing IC Disconnection areas and proposed pavement removal. This worksheet should be completed during the 30% design submission.
D13: Worksheet B-90% | E13: Summarizes stormwater treatment identified during 30% design as well as additional proposed STUs (redirecting drainage to a non-discharge or IC Disconnection area, Tier 1-3 structural STUs). This worksheet should be completed during the 90% design submission.
D14: Worksheet C-As Built | E14: Documents as-built stormwater treatment provided by STUs. This worksheets should be completed after construction.

Sheet Version Notes (hidden)
A1: Version Notes - RIDOT USE ONLY
A2: Date | B2: Updated By | C2: Update
A3: 2019-07-22 | B3: VHB | C3: -added tab for the OSM review checklist (Review Checklist). Adjusted formatting (i.e., merged cells) on other tabs to allow this tab to auto-populate upfront project information. -added tab for RIDOT STU History (pulls information from the Tables tab in the format matching the STU GIS layer so that the data can be easily loaded from this spreadsheet into GIS). -updated pick list for BMP Type to match the STU GIS layer domain. -added WBID to Table 5-2 (Tables tab).
A4: 6/23/2022 (working) | B4: VHB | C4: -standardized units to all be in acres, and treatment to be in acres Effective IC -separated Worksheet B in B-1 (scoping), B-2 (design), and C (as-builts/documentation) -created STU tab based on SCP Calculator to calculate and account for treatment received from all STUs. Based on Tables tab in original Worksheet A & B -added non-discharging area to worksheet A -added existing and proposed IC disconnect, proposed non-discharge, proposed pavement removal, existing STUs to Worksheet B-1, B-2, and C

Sheet STU Treatment Values (hidden)
A2: This reference tab includes STU pollutant treatment values used in water quality calculations to calculate treatment credit. These values should not be altered.
A4: Total Phosphorus | B4: Depth of Runoff Treated from Impervious Area (inches) (>50% IC) | M4: Total Suspended Solids | N4: Depth of Runoff Treated from Impervious Area (inches) (>50% IC) | Y4: Total Nitrogen | Z4: Depth of Runoff Treated from Impervious Area (inches) (>50% IC) | AK4: Total Zinc | AL4: Depth of Runoff Treated from Impervious Area (inches) (>50% IC)
A5: Treatment Category: | B5: 0 | C5: 0.1 | D5: 0.2 | E5: 0.4 | F5: 0.6 | G5: 0.8 | H5: 1 | I5: 1.5 | J5: 2 | K5: 20 | M5: Treatment Category: | N5: 0 | O5: 0.1 | P5: 0.2 | Q5: 0.4 | R5: 0.6 | S5: 0.8 | T5: 1 | U5: 1.5 | V5: 2 | W5: 20 | Y5: Treatment Category: | Z5: 0 | AA5: 0.1 | AB5: 0.2 | AC5: 0.4 | AD5: 0.6 | AE5: 0.8 | AF5: 1 | AG5: 1.5 | AH5: 2 | AI5: 20 | AK5: Treatment Category: | AL5: 0 | AM5: 0.1 | AN5: 0.2 | AO5: 0.4 | AP5: 0.6 | AQ5: 0.8 | AR5: 1 | AS5: 1.5 | AT5: 2 | AU5: 20
A6: Shallow Infiltration (sandy clay) | B6: 0 | C6: 0.251 | D6: 0.3815 | E6: 0.5651 | F6: 0.6884 | G6: 0.7732 | H6: 0.8335 | I6: 0.9242 | J6: 0.9662 | K6: =J6 -> 0.9662 | M6: Shallow Infiltration (sandy clay) | N6: 0 | O6: 0.6296 | P6: 0.7956 | Q6: 0.9072 | R6: 0.943 | S6: 0.9608 | T6: 0.9725 | U6: 0.9882 | V6: 0.9949 | W6: =V6 -> 0.9949 | Y6: Shallow Infiltration (sandy clay) | Z6: 0 | AA6: 0.4969 | AB6: 0.6386 | AC6: 0.7823 | AD6: 0.8587 | AE6: 0.9046 | AF6: 0.9342 | AG6: 0.9733 | AH6: 0.989 | AI6: =AH6 -> 0.989 | AK6: Shallow Infiltration (sandy clay) | AL6: 0 | AM6: 0.6118 | AN6: 0.7764 | AO6: 0.8912 | AP6: 0.9309 | AQ6: 0.9518 | AR6: 0.966 | AS6: 0.9853 | AT6: 0.9936 | AU6: =AT6 -> 0.9936
A7: Shallow Infiltration (silty clay loam) | B7: 0 | C7: 0.251 | D7: 0.3815 | E7: 0.5651 | F7: 0.6884 | G7: 0.7732 | H7: 0.8335 | I7: 0.9242 | J7: 0.9662 | K7: 0.9662 | M7: Shallow Infiltration (silty clay loam) | N7: 0 | O7: 0.6296 | P7: 0.7956 | Q7: 0.9072 | R7: 0.943 | S7: 0.9608 | T7: 0.9725 | U7: 0.9882 | V7: 0.9949 | W7: 0.9949 | Y7: Shallow Infiltration (silty clay loam) | Z7: 0 | AA7: 0.4969 | AB7: 0.6386 | AC7: 0.7823 | AD7: 0.8587 | AE7: 0.9046 | AF7: 0.9342 | AG7: 0.9733 | AH7: 0.989 | AI7: 0.989 | AK7: Shallow Infiltration (silty clay loam) | AL7: 0 | AM7: 0.6118 | AN7: 0.7764 | AO7: 0.8912 | AP7: 0.9309 | AQ7: 0.9518 | AR7: 0.966 | AS7: 0.9853 | AT7: 0.9936 | AU7: 0.9936
A8: Shallow Infiltration (clay loam) | B8: 0 | C8: 0.2792 | D8: 0.4308 | E8: 0.6423 | F8: 0.7732 | G8: 0.8555 | H8: 0.9087 | I8: 0.9716 | J8: 0.9895 | K8: 0.9895 | M8: Shallow Infiltration (clay loam) | N8: 0 | O8: 0.6307 | P8: 0.7999 | Q8: 0.9177 | R8: 0.9539 | S8: 0.971 | T8: 0.9823 | U8: 0.9947 | V8: 0.9981 | W8: 0.9981 | Y8: Shallow Infiltration (clay loam) | Z8: 0 | AA8: 0.5184 | AB8: 0.6738 | AC8: 0.8291 | AD8: 0.9038 | AE8: 0.9437 | AF8: 0.9667 | AG8: 0.9905 | AH8: 0.9966 | AI8: 0.9966 | AK8: Shallow Infiltration (clay loam) | AL8: 0 | AM8: 0.6134 | AN8: 0.7819 | AO8: 0.904 | AP8: 0.9444 | AQ8: 0.9647 | AR8: 0.9782 | AS8: 0.9933 | AT8: 0.9976 | AU8: 0.9976
A9: Shallow Infiltration (sandy clay loam) | B9: 0 | C9: 0.35 | D9: 0.52 | E9: 0.72 | F9: 0.82 | G9: 0.88 | H9: 0.92 | I9: 0.97 | J9: 0.99 | K9: 0.99 | M9: Shallow Infiltration (sandy clay loam) | N9: 0 | O9: 0.64 | P9: 0.8 | Q9: 0.93 | R9: 0.98 | S9: 0.99 | T9: 1 | U9: 1 | V9: 1 | W9: 1 | Y9: Shallow Infiltration (sandy clay loam) | Z9: 0 | AA9: 0.52 | AB9: 0.69 | AC9: 0.85 | AD9: 0.92 | AE9: 0.96 | AF9: 0.98 | AG9: 0.99 | AH9: 1 | AI9: 1 | AK9: Shallow Infiltration (sandy clay loam) | AL9: 0 | AM9: 0.71 | AN9: 0.86 | AO9: 0.96 | AP9: 0.98 | AQ9: 0.99 | AR9: 1 | AS9: 1 | AT9: 1 | AU9: 1
A10: Shallow Infiltration (silt loam) | B10: 0 | C10: 0.37 | D10: 0.54 | E10: 0.74 | F10: 0.85 | G10: 0.9 | H10: 0.93 | I10: 0.98 | J10: 0.99 | K10: 0.99 | M10: Shallow Infiltration (silt loam) | N10: 0 | O10: 0.65 | P10: 0.81 | Q10: 0.94 | R10: 0.98 | S10: 0.99 | T10: 1 | U10: 1 | V10: 1 | W10: 1 | Y10: Shallow Infiltration (silt loam) | Z10: 0 | AA10: 0.54 | AB10: 0.71 | AC10: 0.87 | AD10: 0.93 | AE10: 0.97 | AF10: 0.98 | AG10: 0.99 | AH10: 1 | AI10: 1 | AK10: Shallow Infiltration (silt loam) | AL10: 0 | AM10: 0.73 | AN10: 0.88 | AO10: 0.97 | AP10: 0.99 | AQ10: 1 | AR10: 1 | AS10: 1 | AT10: 1 | AU10: 1
A11: Shallow Infiltration (loam) | B11: 0 | C11: 0.38 | D11: 0.56 | E11: 0.77 | F11: 0.87 | G11: 0.92 | H11: 0.95 | I11: 0.98 | J11: 0.99 | K11: 0.99 | M11: Shallow Infiltration (loam) | N11: 0 | O11: 0.65 | P11: 0.83 | Q11: 0.95 | R11: 0.99 | S11: 0.99 | T11: 1 | U11: 1 | V11: 1 | W11: 1 | Y11: Shallow Infiltration (loam) | Z11: 0 | AA11: 0.56 | AB11: 0.74 | AC11: 0.89 | AD11: 0.94 | AE11: 0.98 | AF11: 0.99 | AG11: 1 | AH11: 1 | AI11: 1 | AK11: Shallow Infiltration (loam) | AL11: 0 | AM11: 0.75 | AN11: 0.9 | AO11: 0.98 | AP11: 0.99 | AQ11: 1 | AR11: 1 | AS11: 1 | AT11: 1 | AU11: 1
A12: Shallow Infiltration (sandy loam) | B12: 0 | C12: 0.41 | D12: 0.6 | E12: 0.81 | F12: 0.9 | G12: 0.94 | H12: 0.97 | I12: 0.99 | J12: 1 | K12: 1 | M12: Shallow Infiltration (sandy loam) | N12: 0 | O12: 0.67 | P12: 0.94 | Q12: 0.96 | R12: 0.99 | S12: 1 | T12: 1 | U12: 1 | V12: 1 | W12: 1 | Y12: Shallow Infiltration (sandy loam) | Z12: 0 | AA12: 0.59 | AB12: 0.77 | AC12: 0.92 | AD12: 0.96 | AE12: 0.98 | AF12: 1 | AG12: 1 | AH12: 1 | AI12: 1 | AK12: Shallow Infiltration (sandy loam) | AL12: 0 | AM12: 0.78 | AN12: 0.92 | AO12: 0.99 | AP12: 1 | AQ12: 1 | AR12: 1 | AS12: 1 | AT12: 1 | AU12: 1
A13: Shallow Infiltration (loamy sand) | B13: 0 | C13: 0.46 | D13: 0.67 | E13: 0.87 | F13: 0.94 | G13: 0.97 | H13: 0.98 | I13: 1 | J13: 1 | K13: 1 | M13: Shallow Infiltration (loamy sand) | N13: 0 | O13: 0.7 | P13: 0.88 | Q13: 0.98 | R13: 1 | S13: 1 | T13: 1 | U13: 1 | V13: 1 | W13: 1 | Y13: Shallow Infiltration (loamy sand) | Z13: 0 | AA13: 0.64 | AB13: 0.82 | AC13: 0.95 | AD13: 0.98 | AE13: 0.99 | AF13: 1 | AG13: 1 | AH13: 1 | AI13: 1 | AK13: Shallow Infiltration (loamy sand) | AL13: 0 | AM13: 0.82 | AN13: 0.95 | AO13: 1 | AP13: 1 | AQ13: 1 | AR13: 1 | AS13: 1 | AT13: 1 | AU13: 1
A14: Shallow Infiltration (sand) | B14: 0 | C14: 0.59 | D14: 0.81 | E14: 0.96 | F14: 0.99 | G14: 1 | H14: 1 | I14: 1 | J14: 1 | K14: 1 | M14: Shallow Infiltration (sand) | N14: 0 | O14: 0.79 | P14: 0.95 | Q14: 1 | R14: 1 | S14: 1 | T14: 1 | U14: 1 | V14: 1 | W14: 1 | Y14: Shallow Infiltration (sand) | Z14: 0 | AA14: 0.75 | AB14: 0.92 | AC14: 0.99 | AD14: 1 | AE14: 1 | AF14: 1 | AG14: 1 | AH14: 1 | AI14: 1 | AK14: Shallow Infiltration (sand) | AL14: 0 | AM14: 0.91 | AN14: 0.99 | AO14: 1 | AP14: 1 | AQ14: 1 | AR14: 1 | AS14: 1 | AT14: 1 | AU14: 1
A15: Deep Infiltration (sandy clay) | B15: 0 | C15: 0.2121 | D15: 0.3333 | E15: 0.5105 | F15: 0.6264 | G15: 0.7084 | H15: 0.7696 | I15: 0.8649 | J15: 0.9195 | K15: 0.9195 | M15: Deep Infiltration (sandy clay) | N15: 0 | O15: 0.4774 | P15: 0.6248 | Q15: 0.7548 | R15: 0.8191 | S15: 0.8625 | T15: 0.8937 | U15: 0.9391 | V15: 0.9642 | W15: 0.9642 | Y15: Deep Infiltration (sandy clay) | Z15: 0 | AA15: 0.5236 | AB15: 0.6599 | AC15: 0.7923 | AD15: 0.8582 | AE15: 0.8983 | AF15: 0.9251 | AG15: 0.9614 | AH15: 0.9793 | AI15: 0.9793 | AK15: Deep Infiltration (sandy clay) | AL15: 0 | AM15: 0.374 | AN15: 0.5107 | AO15: 0.6568 | AP15: 0.74 | AQ15: 0.7992 | AR15: 0.8427 | AS15: 0.9077 | AT15: 0.9445 | AU15: 0.9445
A16: Deep Infiltration (silty clay loam) | B16: 0 | C16: 0.2121 | D16: 0.3333 | E16: 0.5105 | F16: 0.6264 | G16: 0.7084 | H16: 0.7696 | I16: 0.8649 | J16: 0.9195 | K16: 0.9195 | M16: Deep Infiltration (silty clay loam) | N16: 0 | O16: 0.4774 | P16: 0.6248 | Q16: 0.7548 | R16: 0.8191 | S16: 0.8625 | T16: 0.8937 | U16: 0.9391 | V16: 0.9642 | W16: 0.9642 | Y16: Deep Infiltration (silty clay loam) | Z16: 0 | AA16: 0.5236 | AB16: 0.6599 | AC16: 0.7923 | AD16: 0.8582 | AE16: 0.8983 | AF16: 0.9251 | AG16: 0.9614 | AH16: 0.9793 | AI16: 0.9793 | AK16: Deep Infiltration (silty clay loam) | AL16: 0 | AM16: 0.374 | AN16: 0.5107 | AO16: 0.6568 | AP16: 0.74 | AQ16: 0.7992 | AR16: 0.8427 | AS16: 0.9077 | AT16: 0.9445 | AU16: 0.9445
A17: Deep Infiltration (clay loam) | B17: 0 | C17: 0.2436 | D17: 0.3785 | E17: 0.5675 | F17: 0.6916 | G17: 0.7775 | H17: 0.8388 | I17: 0.9278 | J17: 0.9682 | K17: 0.9682 | M17: Deep Infiltration (clay loam) | N17: 0 | O17: 0.485 | P17: 0.6393 | Q17: 0.7743 | R17: 0.8424 | S17: 0.8863 | T17: 0.917 | U17: 0.9614 | V17: 0.9826 | W17: 0.9826 | Y17: Deep Infiltration (clay loam) | Z17: 0 | AA17: 0.5406 | AB17: 0.6844 | AC17: 0.8209 | AD17: 0.8882 | AE17: 0.9271 | AF17: 0.9514 | AG17: 0.9814 | AH17: 0.9927 | AI17: 0.9927 | AK17: Deep Infiltration (clay loam) | AL17: 0 | AM17: 0.3861 | AN17: 0.5321 | AO17: 0.6847 | AP17: 0.773 | AQ17: 0.8332 | AR17: 0.8766 | AS17: 0.941 | AT17: 0.9726 | AU17: 0.9726
A18: Deep Infiltration (sandy clay loam) | B18: 0 | C18: 0.18 | D18: 0.33 | E18: 0.57 | F18: 0.73 | G18: 0.83 | H18: 0.9 | I18: 0.97 | J18: 0.99 | K18: 0.99 | M18: Deep Infiltration (sandy clay loam) | N18: 0 | O18: 0.32 | P18: 0.56 | Q18: 0.84 | R18: 0.95 | S18: 0.98 | T18: 0.99 | U18: 1 | V18: 1 | W18: 1 | Y18: Deep Infiltration (sandy clay loam) | Z18: 0 | AA18: 0.56 | AB18: 0.72 | AC18: 0.87 | AD18: 0.93 | AE18: 0.96 | AF18: 0.98 | AG18: 0.99 | AH18: 1 | AI18: 1 | AK18: Deep Infiltration (sandy clay loam) | AL18: 0 | AM18: 0.51 | AN18: 0.77 | AO18: 0.94 | AP18: 0.98 | AQ18: 0.99 | AR18: 0.99 | AS18: 1 | AT18: 1 | AU18: 1
A19: Deep Infiltration (silt loam) | B19: 0 | C19: 0.2 | D19: 0.37 | E19: 0.63 | F19: 0.78 | G19: 0.86 | H19: 0.92 | I19: 0.97 | J19: 0.99 | K19: 0.99 | M19: Deep Infiltration (silt loam) | N19: 0 | O19: 0.36 | P19: 0.51 | Q19: 0.88 | R19: 0.97 | S19: 0.99 | T19: 1 | U19: 1 | V19: 1 | W19: 1 | Y19: Deep Infiltration (silt loam) | Z19: 0 | AA19: 0.57 | AB19: 0.74 | AC19: 0.88 | AD19: 0.94 | AE19: 0.97 | AF19: 0.98 | AG19: 0.99 | AH19: 1 | AI19: 1 | AK19: Deep Infiltration (silt loam) | AL19: 0 | AM19: 0.57 | AN19: 0.84 | AO19: 0.97 | AP19: 0.99 | AQ19: 0.99 | AR19: 1 | AS19: 1 | AT19: 1 | AU19: 1
A20: Deep Infiltration (loam) | B20: 0 | C20: 0.23 | D20: 0.42 | E20: 0.68 | F20: 0.82 | G20: 0.89 | H20: 0.94 | I20: 0.98 | J20: 0.99 | K20: 0.99 | M20: Deep Infiltration (loam) | N20: 0 | O20: 0.4 | P20: 0.66 | Q20: 0.91 | R20: 0.98 | S20: 0.99 | T20: 1 | U20: 1 | V20: 1 | W20: 1 | Y20: Deep Infiltration (loam) | Z20: 0 | AA20: 0.59 | AB20: 0.76 | AC20: 0.9 | AD20: 0.95 | AE20: 0.98 | AF20: 0.99 | AG20: 1 | AH20: 1 | AI20: 1 | AK20: Deep Infiltration (loam) | AL20: 0 | AM20: 0.65 | AN20: 0.9 | AO20: 0.98 | AP20: 0.99 | AQ20: 1 | AR20: 1 | AS20: 1 | AT20: 1 | AU20: 1
A21: Deep Infiltration (sandy loam) | B21: 0 | C21: 0.27 | D21: 0.47 | E21: 0.73 | F21: 0.86 | G21: 0.92 | H21: 0.96 | I21: 0.99 | J21: 1 | K21: 1 | M21: Deep Infiltration (sandy loam) | N21: 0 | O21: 0.44 | P21: 0.7 | Q21: 0.93 | R21: 0.99 | S21: 1 | T21: 1 | U21: 1 | V21: 1 | W21: 1 | Y21: Deep Infiltration (sandy loam) | Z21: 0 | AA21: 0.61 | AB21: 0.78 | AC21: 0.92 | AD21: 0.97 | AE21: 0.98 | AF21: 0.99 | AG21: 1 | AH21: 1 | AI21: 1 | AK21: Deep Infiltration (sandy loam) | AL21: 0 | AM21: 0.72 | AN21: 0.94 | AO21: 0.99 | AP21: 1 | AQ21: 1 | AR21: 1 | AS21: 1 | AT21: 1 | AU21: 1
A22: Deep Infiltration (loamy sand) | B22: 0 | C22: 0.33 | D22: 0.55 | E22: 0.81 | F22: 0.91 | G22: 0.96 | H22: 0.98 | I22: 1 | J22: 1 | K22: 1 | M22: Deep Infiltration (loamy sand) | N22: 0 | O22: 0.5 | P22: 0.77 | Q22: 0.97 | R22: 1 | S22: 1 | T22: 1 | U22: 1 | V22: 1 | W22: 1 | Y22: Deep Infiltration (loamy sand) | Z22: 0 | AA22: 0.65 | AB22: 0.83 | AC22: 0.95 | AD22: 0.98 | AE22: 0.99 | AF22: 1 | AG22: 1 | AH22: 1 | AI22: 1 | AK22: Deep Infiltration (loamy sand) | AL22: 0 | AM22: 0.81 | AN22: 0.98 | AO22: 1 | AP22: 1 | AQ22: 1 | AR22: 1 | AS22: 1 | AT22: 1 | AU22: 1
A23: Deep Infiltration (sand) | B23: 0 | C23: 0.5 | D23: 0.75 | E23: 0.94 | F23: 0.98 | G23: 0.99 | H23: 1 | I23: 1 | J23: 1 | K23: 1 | M23: Deep Infiltration (sand) | N23: 0 | O23: 0.92 | P23: 0.98 | Q23: 1 | R23: 1 | S23: 1 | T23: 1 | U23: 1 | V23: 1 | W23: 1 | Y23: Deep Infiltration (sand) | Z23: 0 | AA23: 0.76 | AB23: 0.92 | AC23: 0.98 | AD23: 1 | AE23: 1 | AF23: 1 | AG23: 1 | AH23: 1 | AI23: 1 | AK23: Deep Infiltration (sand) | AL23: 0 | AM23: 0.93 | AN23: 1 | AO23: 1 | AP23: 1 | AQ23: 1 | AR23: 1 | AS23: 1 | AT23: 1 | AU23: 1
A24: Extended Dry Detention | B24: 0 | C24: 0.02 | D24: 0.05 | E24: 0.09 | F24: 0.13 | G24: 0.17 | H24: 0.21 | I24: 0.29 | J24: 0.36 | K24: 0.36 | M24: Extended Dry Detention | N24: 0 | O24: 0.18 | P24: 0.31 | Q24: 0.38 | R24: 0.4 | S24: 0.44 | T24: 0.46 | U24: 0.47 | V24: 0.49 | W24: 0.49 | Y24: Extended Dry Detention | Z24: 0 | AA24: 0.01401428571 | AB24: 0.02909866667 | AC24: 0.05694054054 | AD24: 0.08556969697 | AE24: 0.1126118056 | AF24: 0.1276377358 | AG24: 0.1873816092 | AH24: 0.2313015873 | AI24: 0.2313015873 | AK24: Extended Dry Detention | AL24: 0 | AM24: 0.53 | AN24: 0.67 | AO24: 0.68 | AP24: 0.69 | AQ24: 0.72 | AR24: 0.73 | AS24: 0.74 | AT24: 0.76 | AU24: 0.76
A25: Bioretention | B25: 0 | C25: 0.14 | D25: 0.25 | E25: 0.37 | F25: 0.44 | G25: 0.48 | H25: 0.53 | I25: 0.58 | J25: 0.63 | K25: 0.63 | M25: Bioretention | N25: 0 | O25: 0.44 | P25: 0.69 | Q25: 0.91 | R25: 0.97 | S25: 0.98 | T25: 0.99 | U25: 1 | V25: 1 | W25: 1 | Y25: Bioretention | Z25: 0 | AA25: 0.09 | AB25: 0.16 | AC25: 0.23 | AD25: 0.28 | AE25: 0.31 | AF25: 0.32 | AG25: 0.37 | AH25: 0.4 | AI25: 0.4 | AK25: Bioretention | AL25: 0 | AM25: 0.68 | AN25: 0.88 | AO25: 0.95 | AP25: 0.96 | AQ25: 0.96 | AR25: 0.97 | AS25: 0.98 | AT25: 0.99 | AU25: 0.99
A26: Sand Filter | B26: 0 | C26: 0.14 | D26: 0.25 | E26: 0.37 | F26: 0.44 | G26: 0.48 | H26: 0.53 | I26: 0.58 | J26: 0.63 | K26: 0.63 | M26: Sand Filter | N26: 0 | O26: 0.44 | P26: 0.69 | Q26: 0.91 | R26: 0.97 | S26: 0.98 | T26: 0.99 | U26: 1 | V26: 1 | W26: 1 | Y26: Sand Filter | Z26: 0 | AA26: 0.09 | AB26: 0.16 | AC26: 0.23 | AD26: 0.28 | AE26: 0.31 | AF26: 0.32 | AG26: 0.37 | AH26: 0.4 | AI26: 0.4 | AK26: Sand Filter | AL26: 0 | AM26: 0.68 | AN26: 0.88 | AO26: 0.95 | AP26: 0.96 | AQ26: 0.96 | AR26: 0.97 | AS26: 0.98 | AT26: 0.99 | AU26: 0.99
A27: Oil/Grit Separator | B27: 0 | C27: 0 | D27: 0 | E27: 0 | F27: 0 | G27: 0 | H27: 0 | I27: 0 | J27: 0 | K27: 0 | M27: Oil/Grit Separator | N27: 0 | O27: 0 | P27: 0 | Q27: 0 | R27: 0 | S27: 0 | T27: 0 | U27: 0 | V27: 0 | W27: 0 | Y27: Oil/Grit Separator | Z27: 0 | AA27: 0 | AB27: 0 | AC27: 0 | AD27: 0 | AE27: 0 | AF27: 0 | AG27: 0 | AH27: 0 | AI27: 0 | AK27: Oil/Grit Separator | AL27: 0 | AM27: 0 | AN27: 0 | AO27: 0 | AP27: 0 | AQ27: 0 | AR27: 0 | AS27: 0 | AT27: 0 | AU27: 0
A28: Gravel Wetland | B28: 0 | C28: 0.19 | D28: 0.26 | E28: 0.41 | F28: 0.51 | G28: 0.57 | H28: 0.61 | I28: 0.65 | J28: 0.66 | K28: 0.66 | M28: Gravel Wetland | N28: 0 | O28: 0.48 | P28: 0.61 | Q28: 0.82 | R28: 0.91 | S28: 0.95 | T28: 0.97 | U28: 0.99 | V28: 0.99 | W28: 0.99 | Y28: Gravel Wetland | Z28: 0 | AA28: 0.22 | AB28: 0.33 | AC28: 0.48 | AD28: 0.57 | AE28: 0.64 | AF28: 0.68 | AG28: 0.74 | AH28: 0.79 | AI28: 0.79 | AK28: Gravel Wetland | AL28: 0 | AM28: 0.57 | AN28: 0.68 | AO28: 0.83 | AP28: 0.88 | AQ28: 0.9 | AR28: 0.9 | AS28: 0.91 | AT28: 0.92 | AU28: 0.92
A29: Wet Pond | B29: 0 | C29: 0.14 | D29: 0.25 | E29: 0.37 | F29: 0.44 | G29: 0.48 | H29: 0.53 | I29: 0.58 | J29: 0.63 | K29: 0.63 | M29: Wet Pond | N29: 0 | O29: 0.3 | P29: 0.44 | Q29: 0.6 | R29: 0.68 | S29: 0.74 | T29: 0.77 | U29: 0.83 | V29: 0.86 | W29: 0.86 | Y29: Wet Pond | Z29: 0 | AA29: 0.09 | AB29: 0.16 | AC29: 0.23 | AD29: 0.28 | AE29: 0.31 | AF29: 0.32 | AG29: 0.37 | AH29: 0.4 | AI29: 0.4 | AK29: Wet Pond | AL29: 0 | AM29: 0.59 | AN29: 0.71 | AO29: 0.8 | AP29: 0.85 | AQ29: 0.87 | AR29: 0.89 | AS29: 0.92 | AT29: 0.93 | AU29: 0.93
A30: Pavement Removal | B30: 1 | C30: 1 | D30: 1 | E30: 1 | F30: 1 | G30: 1 | H30: 1 | I30: 1 | J30: 1 | K30: 1 | M30: Pavement Removal | N30: 1 | O30: 1 | P30: 1 | Q30: 1 | R30: 1 | S30: 1 | T30: 1 | U30: 1 | V30: 1 | W30: 1 | Y30: Pavement Removal | Z30: 1 | AA30: 1 | AB30: 1 | AC30: 1 | AD30: 1 | AE30: 1 | AF30: 1 | AG30: 1 | AH30: 1 | AI30: 1 | AK30: Pavement Removal | AL30: 1 | AM30: 1 | AN30: 1 | AO30: 1 | AP30: 1 | AQ30: 1 | AR30: 1 | AS30: 1 | AT30: 1 | AU30: 1
A31: Silty Clay or Clay Soil (infiltrating STUs only) | B31: 0 | C31: 0 | D31: 0 | E31: 0 | F31: 0 | G31: 0 | H31: 0 | I31: 0 | J31: 0 | K31: 0 | M31: Silty Clay or Clay Soil (infiltrating STUs only) | N31: 0 | O31: 0 | P31: 0 | Q31: 0 | R31: 0 | S31: 0 | T31: 0 | U31: 0 | V31: 0 | W31: 0 | Y31: Silty Clay or Clay Soil (infiltrating STUs only) | Z31: 0 | AA31: 0 | AB31: 0 | AC31: 0 | AD31: 0 | AE31: 0 | AF31: 0 | AG31: 0 | AH31: 0 | AI31: 0 | AK31: Silty Clay or Clay Soil (infiltrating STUs only) | AL31: 0 | AM31: 0 | AN31: 0 | AO31: 0 | AP31: 0 | AQ31: 0 | AR31: 0 | AS31: 0 | AT31: 0 | AU31: 0
A32: TIP | B32: 0.45 | C32: 0.45 | D32: 0.45 | E32: 0.45 | F32: 0.45 | G32: 0.45 | H32: 0.45 | I32: 0.45 | J32: 0.45 | K32: 0.45 | M32: TIP | N32: 0.45 | O32: 0.45 | P32: 0.45 | Q32: 0.45 | R32: 0.45 | S32: 0.45 | T32: 0.45 | U32: 0.45 | V32: 0.45 | W32: 0.45 | Y32: TIP | Z32: 0.45 | AA32: 0.45 | AB32: 0.45 | AC32: 0.45 | AD32: 0.45 | AE32: 0.45 | AF32: 0.45 | AG32: 0.45 | AH32: 0.45 | AI32: 0.45 | AK32: TIP | AL32: 0.45 | AM32: 0.45 | AN32: 0.45 | AO32: 0.45 | AP32: 0.45 | AQ32: 0.45 | AR32: 0.45 | AS32: 0.45 | AT32: 0.45 | AU32: 0.45
A33: Water Quality Grass Swale w/ Detention | B33: 0 | C33: 0.02 | D33: 0.05 | E33: 0.09 | F33: 0.13 | G33: 0.17 | H33: 0.21 | I33: 0.29 | J33: 0.36 | K33: 0.36 | M33: Water Quality Grass Swale w/ Detention | N33: 0 | O33: 0.29 | P33: 0.44 | Q33: 0.61 | R33: 0.7 | S33: 0.76 | T33: 0.8 | U33: 0.87 | V33: 0.9 | W33: 0.9 | Y33: Water Quality Grass Swale w/ Detention | Z33: 0 | AA33: 0.01 | AB33: 0.03 | AC33: 0.06 | AD33: 0.09 | AE33: 0.11 | AF33: 0.13 | AG33: 0.19 | AH33: 0.23 | AI33: 0.23 | AK33: Water Quality Grass Swale w/ Detention | AL33: 0 | AM33: 0.62 | AN33: 0.75 | AO33: 0.86 | AP33: 0.91 | AQ33: 0.94 | AR33: 0.95 | AS33: 0.97 | AT33: 0.99 | AU33: 0.99
A34: Hydrodynamic Separator | B34: 0.1 | C34: 0.1 | D34: 0.1 | E34: 0.1 | F34: 0.1 | G34: 0.1 | H34: 0.1 | I34: 0.1 | J34: 0.1 | K34: 0.1 | M34: Hydrodynamic Separator | N34: 0.25 | O34: 0.25 | P34: 0.25 | Q34: 0.25 | R34: 0.25 | S34: 0.25 | T34: 0.25 | U34: 0.25 | V34: 0.25 | W34: 0.25 | Y34: Hydrodynamic Separator | Z34: 0 | AA34: 0 | AB34: 0 | AC34: 0 | AD34: 0 | AE34: 0 | AF34: 0 | AG34: 0 | AH34: 0 | AI34: 0 | AK34: Hydrodynamic Separator | AL34: 0 | AM34: 0 | AN34: 0 | AO34: 0 | AP34: 0 | AQ34: 0 | AR34: 0 | AS34: 0 | AT34: 0 | AU34: 0
A35: Jellyfish Filter | B35: 0.5 | C35: 0.5 | D35: 0.5 | E35: 0.5 | F35: 0.5 | G35: 0.5 | H35: 0.5 | I35: 0.5 | J35: 0.5 | K35: 0.5 | M35: Jellyfish Filter | N35: 0.85 | O35: 0.85 | P35: 0.85 | Q35: 0.85 | R35: 0.85 | S35: 0.85 | T35: 0.85 | U35: 0.85 | V35: 0.85 | W35: 0.85 | Y35: Jellyfish Filter | Z35: 0.3 | AA35: 0.3 | AB35: 0.3 | AC35: 0.3 | AD35: 0.3 | AE35: 0.3 | AF35: 0.3 | AG35: 0.3 | AH35: 0.3 | AI35: 0.3 | AK35: Jellyfish Filter | AL35: 0 | AM35: 0 | AN35: 0 | AO35: 0 | AP35: 0 | AQ35: 0 | AR35: 0 | AS35: 0 | AT35: 0 | AU35: 0
A36: MWS-Linear | B36: 0.64 | C36: 0.64 | D36: 0.64 | E36: 0.64 | F36: 0.64 | G36: 0.64 | H36: 0.64 | I36: 0.64 | J36: 0.64 | K36: 0.64 | M36: MWS-Linear | N36: 0.85 | O36: 0.85 | P36: 0.85 | Q36: 0.85 | R36: 0.85 | S36: 0.85 | T36: 0.85 | U36: 0.85 | V36: 0.85 | W36: 0.85 | Y36: MWS-Linear | Z36: 0.45 | AA36: 0.45 | AB36: 0.45 | AC36: 0.45 | AD36: 0.45 | AE36: 0.45 | AF36: 0.45 | AG36: 0.45 | AH36: 0.45 | AI36: 0.45 | AK36: MWS-Linear | AL36: 0 | AM36: 0 | AN36: 0 | AO36: 0 | AP36: 0 | AQ36: 0 | AR36: 0 | AS36: 0 | AT36: 0 | AU36: 0
A37: Stormceptor | B37: 0 | C37: 0 | D37: 0 | E37: 0 | F37: 0 | G37: 0 | H37: 0 | I37: 0 | J37: 0 | K37: 0 | M37: Stormceptor | N37: 0.75 | O37: 0.75 | P37: 0.75 | Q37: 0.75 | R37: 0.75 | S37: 0.75 | T37: 0.75 | U37: 0.75 | V37: 0.75 | W37: 0.75 | Y37: Stormceptor | Z37: 0 | AA37: 0 | AB37: 0 | AC37: 0 | AD37: 0 | AE37: 0 | AF37: 0 | AG37: 0 | AH37: 0 | AI37: 0 | AK37: Stormceptor | AL37: 0 | AM37: 0 | AN37: 0 | AO37: 0 | AP37: 0 | AQ37: 0 | AR37: 0 | AS37: 0 | AT37: 0 | AU37: 0
A38: Porous Pavement With Underdrain | B38: 0.62 | C38: 0.62 | D38: 0.62 | E38: 0.62 | F38: 0.62 | G38: 0.62 | H38: 0.62 | I38: 0.62 | J38: 0.62 | K38: 0.62 | M38: Porous Pavement With Underdrain | N38: 0.92 | O38: 0.92 | P38: 0.92 | Q38: 0.92 | R38: 0.92 | S38: 0.92 | T38: 0.92 | U38: 0.92 | V38: 0.92 | W38: 0.92 | Y38: Porous Pavement With Underdrain | Z38: 0.76 | AA38: 0.76 | AB38: 0.76 | AC38: 0.76 | AD38: 0.76 | AE38: 0.76 | AF38: 0.76 | AG38: 0.76 | AH38: 0.76 | AI38: 0.76 | AK38: Porous Pavement With Underdrain | AL38: 0.85 | AM38: 0.85 | AN38: 0.85 | AO38: 0.85 | AP38: 0.85 | AQ38: 0.85 | AR38: 0.85 | AS38: 0.85 | AT38: 0.85 | AU38: 0.85
A39: Total Phosphorus | B39: Depth of Runoff Treated from Impervious Area (inches) (<50% IC) | M39: Total Suspended Solids | N39: Depth of Runoff Treated from Impervious Area (inches) (<50% IC) | Y39: Total Nitrogen | Z39: Depth of Runoff Treated from Impervious Area (inches) (<50% IC) | AK39: Total Zinc | AL39: Depth of Runoff Treated from Impervious Area (inches) (<50% IC)
A40: Treatment Category: | B40: 0 | C40: 0.1 | D40: 0.2 | E40: 0.4 | F40: 0.6 | G40: 0.8 | H40: 1 | I40: 1.5 | J40: 2 | K40: 20 | M40: Treatment Category: | N40: 0 | O40: 0.1 | P40: 0.2 | Q40: 0.4 | R40: 0.6 | S40: 0.8 | T40: 1 | U40: 1.5 | V40: 2 | W40: 20 | Y40: Treatment Category: | Z40: 0 | AA40: 0.1 | AB40: 0.2 | AC40: 0.4 | AD40: 0.6 | AE40: 0.8 | AF40: 1 | AG40: 1.5 | AH40: 2 | AI40: 20 | AK40: Treatment Category: | AL40: 0 | AM40: 0.1 | AN40: 0.2 | AO40: 0.4 | AP40: 0.6 | AQ40: 0.8 | AR40: 1 | AS40: 1.5 | AT40: 2 | AU40: 20
A41: Shallow Infiltration (sandy clay) | B41: 0 | C41: 0.251 | D41: 0.3815 | E41: 0.5651 | F41: 0.6697540204 | G41: 0.7517706939 | H41: 0.8131825918 | I41: 0.8957943466 | J41: 0.9401731128 | K41: =J41 -> 0.9401731128 | M41: Shallow Infiltration (sandy clay) | N41: 0 | O41: 0.6296 | P41: 0.7956 | Q41: 0.9072 | R41: 0.9375861633 | S41: 0.9563018673 | T41: 0.9685578163 | U41: 0.9832830346 | V41: 0.9907480918 | W41: =V41 -> 0.9907480918 | Y41: Shallow Infiltration (sandy clay) | Z41: 0 | AA41: 0.4969 | AB41: 0.6386 | AC41: 0.7823 | AD41: 0.847146449 | AE41: 0.8930008827 | AF41: 0.9242266122 | AG41: 0.961054564 | AH41: 0.9792709017 | AI41: =AH41 -> 0.9792709017 | AK41: Shallow Infiltration (sandy clay) | AL41: 0 | AM41: 0.6118 | AN41: 0.7764 | AO41: 0.8912 | AP41: 0.9248963878 | AQ41: 0.9465184847 | AR41: 0.9612154694 | AS41: 0.9792555776 | AT41: 0.9884565913 | AU41: =AT41 -> 0.9884565913
A42: Shallow Infiltration (silty clay loam) | B42: 0 | C42: 0.251 | D42: 0.3815 | E42: 0.5651 | F42: 0.6697540204 | G42: 0.7517706939 | H42: 0.8131825918 | I42: 0.8957943466 | J42: 0.9401731128 | K42: 0.9401731128 | M42: Shallow Infiltration (silty clay loam) | N42: 0 | O42: 0.6296 | P42: 0.7956 | Q42: 0.9072 | R42: 0.9375861633 | S42: 0.9563018673 | T42: 0.9685578163 | U42: 0.9832830346 | V42: 0.9907480918 | W42: 0.9907480918 | Y42: Shallow Infiltration (silty clay loam) | Z42: 0 | AA42: 0.4969 | AB42: 0.6386 | AC42: 0.7823 | AD42: 0.847146449 | AE42: 0.8930008827 | AF42: 0.9242266122 | AG42: 0.961054564 | AH42: 0.9792709017 | AI42: 0.9792709017 | AK42: Shallow Infiltration (silty clay loam) | AL42: 0 | AM42: 0.6118 | AN42: 0.7764 | AO42: 0.8912 | AP42: 0.9248963878 | AQ42: 0.9465184847 | AR42: 0.9612154694 | AS42: 0.9792555776 | AT42: 0.9884565913 | AU42: 0.9884565913
A43: Shallow Infiltration (clay loam) | B43: 0 | C43: 0.2792 | D43: 0.4308 | E43: 0.6423 | F43: 0.7534047143 | G43: 0.8347024541 | H43: 0.8907748571 | I43: 0.9519008203 | J43: 0.9784075886 | K43: 0.9784075886 | M43: Shallow Infiltration (clay loam) | N43: 0 | O43: 0.6307 | P43: 0.7999 | Q43: 0.9177 | R43: 0.9484256735 | S43: 0.9666787602 | T43: 0.9784925918 | U43: 0.9908165369 | V43: 0.9959930615 | W43: 0.9959930615 | Y43: Shallow Infiltration (clay loam) | Z43: 0 | AA43: 0.5184 | AB43: 0.6738 | AC43: 0.8291 | AD43: 0.8925035306 | AE43: 0.9336171071 | AF43: 0.9589504082 | AG43: 0.9830462563 | AH43: 0.9928199045 | AI43: 0.9928199045 | AK43: Shallow Infiltration (clay loam) | AL43: 0 | AM43: 0.6134 | AN43: 0.7819 | AO43: 0.904 | AP43: 0.9382905306 | AQ43: 0.9595701071 | AR43: 0.9736513265 | AS43: 0.9885709441 | AT43: 0.9949353425 | AU43: 0.9949353425
A44: Shallow Infiltration (sandy clay loam) | B44: 0 | C44: 0.35 | D44: 0.52 | E44: 0.72 | F44: 0.804877551 | G44: 0.8648377551 | H44: 0.906522449 | I44: 0.9543408746 | J44: 0.9776062442 | K44: 0.9776062442 | M44: Shallow Infiltration (sandy clay loam) | N44: 0 | O44: 0.64 | P44: 0.8 | Q44: 0.93 | R44: 0.9724387755 | S44: 0.9874729592 | T44: 0.9966306122 | U44: 1 | V44: 1 | W44: 1 | Y44: Shallow Infiltration (sandy clay loam) | Z44: 0 | AA44: 0.52 | AB44: 0.69 | AC44: 0.85 | AD44: 0.9094142857 | AE44: 0.9498918367 | AF44: 0.9732612245 | AG44: 0.9868681749 | AH44: 0.9938031221 | AI44: 0.9938031221 | AK44: Shallow Infiltration (sandy clay loam) | AL44: 0 | AM44: 0.71 | AN44: 0.86 | AO44: 0.96 | AP44: 0.9769755102 | AQ44: 0.9874729592 | AR44: 0.9966306122 | AS44: 1 | AT44: 1 | AU44: 1
A45: Shallow Infiltration (silt loam) | B45: 0 | C45: 0.37 | D45: 0.54 | E45: 0.74 | F45: 0.8333653061 | G45: 0.8873647959 | H45: 0.9198918367 | I45: 0.9643408746 | J45: 0.9838031221 | K45: 0.9838031221 | M45: Shallow Infiltration (silt loam) | N45: 0 | O45: 0.65 | P45: 0.81 | Q45: 0.94 | R45: 0.9739510204 | S45: 0.9874729592 | T45: 0.9966306122 | U45: 1 | V45: 1 | W45: 1 | Y45: Shallow Infiltration (silt loam) | Z45: 0 | AA45: 0.54 | AB45: 0.71 | AC45: 0.87 | AD45: 0.9209265306 | AE45: 0.9598918367 | AF45: 0.9766306122 | AG45: 0.9868681749 | AH45: 0.9938031221 | AI45: 0.9938031221 | AK45: Shallow Infiltration (silt loam) | AL45: 0 | AM45: 0.73 | AN45: 0.88 | AO45: 0.97 | AP45: 0.9869755102 | AQ45: 0.9974729592 | AR45: 1 | AS45: 1 | AT45: 1 | AU45: 1
A46: Shallow Infiltration (loam) | B46: 0 | C46: 0.38 | D46: 0.56 | E46: 0.77 | F46: 0.854877551 | G46: 0.9073647959 | H46: 0.9398918367 | I46: 0.9706045248 | J46: 0.9838031221 | K46: 0.9838031221 | M46: Shallow Infiltration (loam) | N46: 0 | O46: 0.65 | P46: 0.83 | Q46: 0.95 | R46: 0.9839510204 | S46: 0.99 | T46: 0.9966306122 | U46: 1 | V46: 1 | W46: 1 | Y46: Shallow Infiltration (loam) | Z46: 0 | AA46: 0.56 | AB46: 0.74 | AC46: 0.89 | AD46: 0.9324387755 | AE46: 0.9698918367 | AF46: 0.9866306122 | AG46: 0.9968681749 | AH46: 1 | AI46: 1 | AK46: Shallow Infiltration (loam) | AL46: 0 | AM46: 0.75 | AN46: 0.9 | AO46: 0.98 | AP46: 0.9884877551 | AQ46: 0.9974729592 | AR46: 1 | AS46: 1 | AT46: 1 | AU46: 1
A47: Shallow Infiltration (sandy loam) | B47: 0 | C47: 0.41 | D47: 0.6 | E47: 0.81 | F47: 0.8863897959 | G47: 0.9298918367 | H47: 0.9598918367 | I47: 0.9837363499 | J47: 0.9938031221 | K47: 0.9938031221 | M47: Shallow Infiltration (sandy loam) | N47: 0 | O47: 0.67 | P47: 0.94 | Q47: 0.96 | R47: 0.9854632653 | S47: 0.9974729592 | T47: 1 | U47: 1 | V47: 1 | W47: 1 | Y47: Shallow Infiltration (sandy loam) | Z47: 0 | AA47: 0.59 | AB47: 0.77 | AC47: 0.92 | AD47: 0.9539510204 | AE47: 0.9749459184 | AF47: 0.9932612245 | AG47: 1 | AH47: 1 | AI47: 1 | AK47: Shallow Infiltration (sandy loam) | AL47: 0 | AM47: 0.78 | AN47: 0.92 | AO47: 0.99 | AP47: 0.9984877551 | AQ47: 1 | AR47: 1 | AS47: 1 | AT47: 1 | AU47: 1
A48: Shallow Infiltration (loamy sand) | B48: 0 | C48: 0.46 | D48: 0.67 | E48: 0.87 | F48: 0.9294142857 | G48: 0.9624188776 | H48: 0.9766306122 | I48: 0.9937363499 | J48: 1 | K48: 1 | M48: Shallow Infiltration (loamy sand) | N48: 0 | O48: 0.7 | P48: 0.88 | Q48: 0.98 | R48: 0.9969755102 | S48: 1 | T48: 1 | U48: 1 | V48: 1 | W48: 1 | Y48: Shallow Infiltration (loamy sand) | Z48: 0 | AA48: 0.64 | AB48: 0.82 | AC48: 0.95 | AD48: 0.9754632653 | AE48: 0.9874729592 | AF48: 0.9966306122 | AG48: 1 | AH48: 1 | AI48: 1 | AK48: Shallow Infiltration (loamy sand) | AL48: 0 | AM48: 0.82 | AN48: 0.95 | AO48: 1 | AP48: 1 | AQ48: 1 | AR48: 1 | AS48: 1 | AT48: 1 | AU48: 1
A49: Shallow Infiltration (sand) | B49: 0 | C49: 0.59 | D49: 0.81 | E49: 0.96 | F49: 0.9854632653 | G49: 0.9974729592 | H49: 1 | I49: 1 | J49: 1 | K49: 1 | M49: Shallow Infiltration (sand) | N49: 0 | O49: 0.79 | P49: 0.95 | Q49: 1 | R49: 1 | S49: 1 | T49: 1 | U49: 1 | V49: 1 | W49: 1 | Y49: Shallow Infiltration (sand) | Z49: 0 | AA49: 0.75 | AB49: 0.92 | AC49: 0.99 | AD49: 0.9984877551 | AE49: 1 | AF49: 1 | AG49: 1 | AH49: 1 | AI49: 1 | AK49: Shallow Infiltration (sand) | AL49: 0 | AM49: 0.91 | AN49: 0.99 | AO49: 1 | AP49: 1 | AQ49: 1 | AR49: 1 | AS49: 1 | AT49: 1 | AU49: 1
A50: Deep Infiltration (sandy clay) | B50: 0 | C50: 0.2121 | D50: 0.3333 | E50: 0.5105 | F50: 0.6088730816 | G50: 0.6876782653 | H50: 0.7489793469 | I50: 0.8999267569 | J50: 0.9431646133 | K50: 0.9431646133 | M50: Deep Infiltration (sandy clay) | N50: 0 | O50: 0.4774 | P50: 0.6248 | Q50: 0.7548 | R50: 0.8093762653 | S50: 0.8515326429 | T50: 0.8831875102 | U50: 0.9474946967 | V50: 0.9694626189 | W50: 0.9694626189 | Y50: Deep Infiltration (sandy clay) | Z50: 0 | AA50: 0.5236 | AB50: 0.6599 | AC50: 0.7923 | AD50: 0.8482343061 | AE50: 0.8881665663 | AF50: 0.9160700408 | AG50: 0.9720045248 | AH50: 0.985697528 | AI50: 0.985697528 | AK50: Deep Infiltration (sandy clay) | AL50: 0 | AM50: 0.374 | AN50: 0.5107 | AO50: 0.6568 | AP50: 0.7274181224 | AQ50: 0.7842399184 | AR50: 0.8280431633 | AS50: 0.9208310465 | AT50: 0.9530178658 | AU50: 0.9530178658
A51: Deep Infiltration (silty clay loam) | B51: 0 | C51: 0.2121 | D51: 0.3333 | E51: 0.5105 | F51: 0.6088730816 | G51: 0.6876782653 | H51: 0.7489793469 | I51: 0.8999267569 | J51: 0.9431646133 | K51: 0.9431646133 | M51: Deep Infiltration (silty clay loam) | N51: 0 | O51: 0.4774 | P51: 0.6248 | Q51: 0.7548 | R51: 0.8093762653 | S51: 0.8515326429 | T51: 0.8831875102 | U51: 0.9474946967 | V51: 0.9694626189 | W51: 0.9694626189 | Y51: Deep Infiltration (silty clay loam) | Z51: 0 | AA51: 0.5236 | AB51: 0.6599 | AC51: 0.7923 | AD51: 0.8482343061 | AE51: 0.8881665663 | AF51: 0.9160700408 | AG51: 0.9720045248 | AH51: 0.985697528 | AI51: 0.985697528 | AK51: Deep Infiltration (silty clay loam) | AL51: 0 | AM51: 0.374 | AN51: 0.5107 | AO51: 0.6568 | AP51: 0.7274181224 | AQ51: 0.7842399184 | AR51: 0.8280431633 | AS51: 0.9208310465 | AT51: 0.9530178658 | AU51: 0.9530178658
A52: Deep Infiltration (clay loam) | B52: 0 | C52: 0.2436 | D52: 0.3785 | E52: 0.5675 | F52: 0.6728330408 | G52: 0.7557927194 | H52: 0.8181456531 | I52: 0.8999267569 | J52: 0.9431646133 | K52: 0.9431646133 | M52: Deep Infiltration (clay loam) | N52: 0 | O52: 0.485 | P52: 0.6393 | Q52: 0.7743 | R52: 0.8321016122 | S52: 0.8752062908 | T52: 0.9066559796 | U52: 0.9474946967 | V52: 0.9694626189 | W52: 0.9694626189 | Y52: Deep Infiltration (clay loam) | Z52: 0 | AA52: 0.5406 | AB52: 0.6844 | AC52: 0.8209 | AD52: 0.8780225918 | AE52: 0.9172698112 | AF52: 0.9432123878 | AG52: 0.9720045248 | AH52: 0.985697528 | AI52: 0.985697528 | AK52: Deep Infiltration (clay loam) | AL52: 0 | AM52: 0.3861 | AN52: 0.5321 | AO52: 0.6847 | AP52: 0.7596468776 | AQ52: 0.8179872143 | AR52: 0.8619768571 | AS52: 0.9208310465 | AT52: 0.9530178658 | AU52: 0.9530178658
A53: Deep Infiltration (sandy clay loam) | B53: 0 | C53: 0.18 | D53: 0.33 | E53: 0.57 | F53: 0.7058040816 | G53: 0.8047295918 | H53: 0.8764142857 | I53: 0.9480772245 | J53: 0.9776062442 | K53: 0.9776062442 | M53: Deep Infiltration (sandy clay loam) | N53: 0 | O53: 0.32 | P53: 0.56 | Q53: 0.84 | R53: 0.9333653061 | S53: 0.9724188776 | T53: 0.9866306122 | U53: 0.9968681749 | V53: 1 | W53: 1 | Y53: Deep Infiltration (sandy clay loam) | Z53: 0 | AA53: 0.56 | AB53: 0.72 | AC53: 0.87 | AD53: 0.9209265306 | AE53: 0.9524188776 | AF53: 0.9732612245 | AG53: 0.9868681749 | AH53: 0.9938031221 | AI53: 0.9938031221 | AK53: Deep Infiltration (sandy clay loam) | AL53: 0 | AM53: 0.51 | AN53: 0.77 | AO53: 0.94 | AP53: 0.9739510204 | AQ53: 0.9874729592 | AR53: 0.99 | AS53: 0.9968681749 | AT53: 1 | AU53: 1
A54: Deep Infiltration (silt loam) | B54: 0 | C54: 0.2 | D54: 0.37 | E54: 0.63 | F54: 0.7573163265 | G54: 0.8397836735 | H54: 0.8997836735 | I54: 0.9543408746 | J54: 0.9776062442 | K54: 0.9776062442 | M54: Deep Infiltration (silt loam) | N54: 0 | O54: 0.36 | P54: 0.51 | Q54: 0.88 | R54: 0.9563897959 | S54: 0.9849459184 | T54: 0.9966306122 | U54: 1 | V54: 1 | W54: 1 | Y54: Deep Infiltration (silt loam) | Z54: 0 | AA54: 0.57 | AB54: 0.74 | AC54: 0.88 | AD54: 0.9309265306 | AE54: 0.9624188776 | AF54: 0.9766306122 | AG54: 0.9868681749 | AH54: 0.9938031221 | AI54: 0.9938031221 | AK54: Deep Infiltration (silt loam) | AL54: 0 | AM54: 0.57 | AN54: 0.84 | AO54: 0.97 | AP54: 0.9869755102 | AQ54: 0.99 | AR54: 0.9966306122 | AS54: 1 | AT54: 1 | AU54: 1
A55: Deep Infiltration (loam) | B55: 0 | C55: 0.23 | D55: 0.42 | E55: 0.68 | F55: 0.7988285714 | G55: 0.8723107143 | H55: 0.9231530612 | I55: 0.9674726997 | J55: 0.9838031221 | K55: 0.9838031221 | M55: Deep Infiltration (loam) | N55: 0 | O55: 0.4 | P55: 0.66 | Q55: 0.91 | R55: 0.9694142857 | S55: 0.9874729592 | T55: 0.9966306122 | U55: 1 | V55: 1 | W55: 1 | Y55: Deep Infiltration (loam) | Z55: 0 | AA55: 0.59 | AB55: 0.76 | AC55: 0.9 | AD55: 0.9424387755 | AE55: 0.9724188776 | AF55: 0.9866306122 | AG55: 0.9968681749 | AH55: 1 | AI55: 1 | AK55: Deep Infiltration (loam) | AL55: 0 | AM55: 0.65 | AN55: 0.9 | AO55: 0.98 | AP55: 0.9884877551 | AQ55: 0.9974729592 | AR55: 1 | AS55: 1 | AT55: 1 | AU55: 1
A56: Deep Infiltration (sandy loam) | B56: 0 | C56: 0.27 | D56: 0.47 | E56: 0.73 | F56: 0.8403408163 | G56: 0.9048377551 | H56: 0.946522449 | I56: 1 | J56: 1 | K56: 1 | M56: Deep Infiltration (sandy loam) | N56: 0 | O56: 0.44 | P56: 0.7 | Q56: 0.93 | R56: 0.9809265306 | S56: 0.9974729592 | T56: 1 | U56: 1 | V56: 1 | W56: 1 | Y56: Deep Infiltration (sandy loam) | Z56: 0 | AA56: 0.61 | AB56: 0.78 | AC56: 0.92 | AD56: 0.9624387755 | AE56: 0.9774729592 | AF56: 0.9866306122 | AG56: 0.9968681749 | AH56: 1 | AI56: 1 | AK56: Deep Infiltration (sandy loam) | AL56: 0 | AM56: 0.72 | AN56: 0.94 | AO56: 0.99 | AP56: 0.9984877551 | AQ56: 1 | AR56: 1 | AS56: 1 | AT56: 1 | AU56: 1
A57: Deep Infiltration (loamy sand) | B57: 0 | C57: 0.33 | D57: 0.55 | E57: 0.81 | F57: 0.894877551 | G57: 0.9473647959 | H57: 0.9732612245 | I57: 0.9937363499 | J57: 1 | K57: 1 | M57: Deep Infiltration (loamy sand) | N57: 0 | O57: 0.5 | P57: 0.77 | Q57: 0.97 | R57: 0.9954632653 | S57: 1 | T57: 1 | U57: 1 | V57: 1 | W57: 1 | Y57: Deep Infiltration (loamy sand) | Z57: 0 | AA57: 0.65 | AB57: 0.83 | AC57: 0.95 | AD57: 0.9754632653 | AE57: 0.9874729592 | AF57: 0.9966306122 | AG57: 1 | AH57: 1 | AI57: 1 | AK57: Deep Infiltration (loamy sand) | AL57: 0 | AM57: 0.81 | AN57: 0.98 | AO57: 1 | AP57: 1 | AQ57: 1 | AR57: 1 | AS57: 1 | AT57: 1 | AU57: 1
A58: Deep Infiltration (sand) | B58: 0 | C58: 0.5 | D58: 0.75 | E58: 0.94 | F58: 0.9739510204 | G58: 0.9874729592 | H58: 0.9966306122 | I58: 1 | J58: 1 | K58: 1 | M58: Deep Infiltration (sand) | N58: 0 | O58: 0.92 | P58: 0.98 | Q58: 1 | R58: 1 | S58: 1 | T58: 1 | U58: 1 | V58: 1 | W58: 1 | Y58: Deep Infiltration (sand) | Z58: 0 | AA58: 0.76 | AB58: 0.92 | AC58: 0.98 | AD58: 0.9969755102 | AE58: 1 | AF58: 1 | AG58: 1 | AH58: 1 | AI58: 1 | AK58: Deep Infiltration (sand) | AL58: 0 | AM58: 0.93 | AN58: 1 | AO58: 1 | AP58: 1 | AQ58: 1 | AR58: 1 | AS58: 1 | AT58: 1 | AU58: 1
A59: Extended Dry Detention | B59: 0 | C59: 0.02 | D59: 0.05 | E59: 0.09 | F59: 0.1239510204 | G59: 0.1598918367 | H59: 0.196522449 | I59: 0.2649453994 | J59: 0.3166218547 | K59: 0.3166218547 | M59: Extended Dry Detention | N59: 0 | O59: 0.18 | P59: 0.31 | Q59: 0.38 | R59: 0.3969755102 | S59: 0.4298918367 | T59: 0.4532612245 | U59: 0.4668681749 | V59: 0.4776062442 | W59: 0.4776062442 | Y59: Extended Dry Detention | Z59: 0 | AA59: 0.01401428571 | AB59: 0.02909866667 | AC59: 0.05694054054 | AD59: 0.0812402674 | AE59: 0.1057781543 | AF59: 0.1225749173 | AG59: 0.1686708731 | AH59: 0.2040849131 | AI59: 0.2040849131 | AK59: Extended Dry Detention | AL59: 0 | AM59: 0.53 | AN59: 0.67 | AO59: 0.68 | AP59: 0.6884877551 | AQ59: 0.7124188776 | AR59: 0.7266306122 | AS59: 0.7368681749 | AT59: 0.7476062442 | AU59: 0.7476062442
A60: Bioretention | B60: 0 | C60: 0.14 | D60: 0.25 | E60: 0.37 | F60: 0.4294142857 | G60: 0.4698918367 | H60: 0.5131530612 | I60: 0.5643408746 | J60: 0.5990156105 | K60: 0.5990156105 | M60: Bioretention | N60: 0 | O60: 0.44 | P60: 0.69 | Q60: 0.91 | R60: 0.9609265306 | S60: 0.9774729592 | T60: 0.9866306122 | U60: 0.9968681749 | V60: 1 | W60: 1 | Y60: Bioretention | Z60: 0 | AA60: 0.09 | AB60: 0.16 | AC60: 0.23 | AD60: 0.2724387755 | AE60: 0.3024188776 | AF60: 0.3166306122 | AG60: 0.3543408746 | AH60: 0.3814093663 | AI60: 0.3814093663 | AK60: Bioretention | AL60: 0 | AM60: 0.68 | AN60: 0.88 | AO60: 0.95 | AP60: 0.9584877551 | AQ60: 0.96 | AR60: 0.9666306122 | AS60: 0.9768681749 | AT60: 0.9838031221 | AU60: 0.9838031221
A61: Sand Filter | B61: 0 | C61: 0.14 | D61: 0.25 | E61: 0.37 | F61: 0.4294142857 | G61: 0.4698918367 | H61: 0.5131530612 | I61: 0.5643408746 | J61: 0.5990156105 | K61: 0.5990156105 | M61: Sand Filter | N61: 0 | O61: 0.44 | P61: 0.69 | Q61: 0.91 | R61: 0.9609265306 | S61: 0.9774729592 | T61: 0.9866306122 | U61: 0.9968681749 | V61: 1 | W61: 1 | Y61: Sand Filter | Z61: 0 | AA61: 0.09 | AB61: 0.16 | AC61: 0.23 | AD61: 0.2724387755 | AE61: 0.3024188776 | AF61: 0.3166306122 | AG61: 0.3543408746 | AH61: 0.3814093663 | AI61: 0.3814093663 | AK61: Sand Filter | AL61: 0 | AM61: 0.68 | AN61: 0.88 | AO61: 0.95 | AP61: 0.9584877551 | AQ61: 0.96 | AR61: 0.9666306122 | AS61: 0.9768681749 | AT61: 0.9838031221 | AU61: 0.9838031221
A62: Oil/Grit Separator | B62: 0 | C62: 0 | D62: 0 | E62: 0 | F62: 0 | G62: 0 | H62: 0 | I62: 0 | J62: 0 | K62: 0 | M62: Oil/Grit Separator | N62: 0 | O62: 0 | P62: 0 | Q62: 0 | R62: 0 | S62: 0 | T62: 0 | U62: 0 | V62: 0 | W62: 0 | Y62: Oil/Grit Separator | Z62: 0 | AA62: 0 | AB62: 0 | AC62: 0 | AD62: 0 | AE62: 0 | AF62: 0 | AG62: 0 | AH62: 0 | AI62: 0 | AK62: Oil/Grit Separator | AL62: 0 | AM62: 0 | AN62: 0 | AO62: 0 | AP62: 0 | AQ62: 0 | AR62: 0 | AS62: 0 | AT62: 0 | AU62: 0
A63: Gravel Wetland | B63: 0 | C63: 0.19 | D63: 0.26 | E63: 0.41 | F63: 0.494877551 | G63: 0.5548377551 | H63: 0.596522449 | I63: 0.6374726997 | J63: 0.6538031221 | K63: 0.6538031221 | M63: Gravel Wetland | N63: 0 | O63: 0.48 | P63: 0.61 | Q63: 0.82 | R63: 0.8963897959 | S63: 0.9398918367 | T63: 0.9632612245 | U63: 0.9837363499 | V63: 0.99 | W63: 0.99 | Y63: Gravel Wetland | Z63: 0 | AA63: 0.22 | AB63: 0.33 | AC63: 0.48 | AD63: 0.5563897959 | AE63: 0.6223107143 | AF63: 0.666522449 | AG63: 0.7212090496 | AH63: 0.7590156105 | AI63: 0.7590156105 | AK63: Gravel Wetland | AL63: 0 | AM63: 0.57 | AN63: 0.68 | AO63: 0.83 | AP63: 0.8724387755 | AQ63: 0.8949459184 | AR63: 0.9 | AS63: 0.9068681749 | AT63: 0.9138031221 | AU63: 0.9138031221
A64: Wet Pond | B64: 0 | C64: 0.14 | D64: 0.25 | E64: 0.37 | F64: 0.4294142857 | G64: 0.4698918367 | H64: 0.5131530612 | I64: 0.5643408746 | J64: 0.5990156105 | K64: 0.5990156105 | M64: Wet Pond | N64: 0 | O64: 0.3 | P64: 0.44 | Q64: 0.6 | R64: 0.6679020408 | S64: 0.7248377551 | T64: 0.7598918367 | U64: 0.8112090496 | V64: 0.8414093663 | W64: 0.8414093663 | Y64: Wet Pond | Z64: 0 | AA64: 0.09 | AB64: 0.16 | AC64: 0.23 | AD64: 0.2724387755 | AE64: 0.3024188776 | AF64: 0.3166306122 | AG64: 0.3543408746 | AH64: 0.3814093663 | AI64: 0.3814093663 | AK64: Wet Pond | AL64: 0 | AM64: 0.59 | AN64: 0.71 | AO64: 0.8 | AP64: 0.8424387755 | AQ64: 0.8649459184 | AR64: 0.8832612245 | AS64: 0.9106045248 | AT64: 0.9238031221 | AU64: 0.9238031221
A65: Pavement Removal | B65: 1 | C65: 1 | D65: 1 | E65: 1 | F65: 1 | G65: 1 | H65: 1 | I65: 1 | J65: 1 | K65: 1 | M65: Pavement Removal | N65: 1 | O65: 1 | P65: 1 | Q65: 1 | R65: 1 | S65: 1 | T65: 1 | U65: 1 | V65: 1 | W65: 1 | Y65: Pavement Removal | Z65: 1 | AA65: 1 | AB65: 1 | AC65: 1 | AD65: 1 | AE65: 1 | AF65: 1 | AG65: 1 | AH65: 1 | AI65: 1 | AK65: Pavement Removal | AL65: 1 | AM65: 1 | AN65: 1 | AO65: 1 | AP65: 1 | AQ65: 1 | AR65: 1 | AS65: 1 | AT65: 1 | AU65: 1
A66: Silty Clay or Clay Soil (infiltrating STUs only) | B66: 0 | C66: 0 | D66: 0 | E66: 0 | F66: 0 | G66: 0 | H66: 0 | I66: 0 | J66: 0 | K66: 0 | M66: Silty Clay or Clay Soil (infiltrating STUs only) | N66: 0 | O66: 0 | P66: 0 | Q66: 0 | R66: 0 | S66: 0 | T66: 0 | U66: 0 | V66: 0 | W66: 0 | Y66: Silty Clay or Clay Soil (infiltrating STUs only) | Z66: 0 | AA66: 0 | AB66: 0 | AC66: 0 | AD66: 0 | AE66: 0 | AF66: 0 | AG66: 0 | AH66: 0 | AI66: 0 | AK66: Silty Clay or Clay Soil (infiltrating STUs only) | AL66: 0 | AM66: 0 | AN66: 0 | AO66: 0 | AP66: 0 | AQ66: 0 | AR66: 0 | AS66: 0 | AT66: 0 | AU66: 0
A67: TIP | B67: 0.45 | C67: 0.45 | D67: 0.45 | E67: 0.45 | F67: 0.45 | G67: 0.45 | H67: 0.45 | I67: 0.45 | J67: 0.45 | K67: 0.45 | M67: TIP | N67: 0.45 | O67: 0.45 | P67: 0.45 | Q67: 0.45 | R67: 0.45 | S67: 0.45 | T67: 0.45 | U67: 0.45 | V67: 0.45 | W67: 0.45 | Y67: TIP | Z67: 0.45 | AA67: 0.45 | AB67: 0.45 | AC67: 0.45 | AD67: 0.45 | AE67: 0.45 | AF67: 0.45 | AG67: 0.45 | AH67: 0.45 | AI67: 0.45 | AK67: TIP | AL67: 0.45 | AM67: 0.45 | AN67: 0.45 | AO67: 0.45 | AP67: 0.45 | AQ67: 0.45 | AR67: 0.45 | AS67: 0.45 | AT67: 0.45 | AU67: 0.45
A68: Water Quality Grass Swale w/ Detention | B68: 0 | C68: 0.02 | D68: 0.05 | E68: 0.09 | F68: 0.1239510204 | G68: 0.1598918367 | H68: 0.196522449 | I68: 0.2649453994 | J68: 0.3166218547 | K68: 0.3166218547 | M68: Water Quality Grass Swale w/ Detention | N68: 0 | O68: 0.29 | P68: 0.44 | Q68: 0.61 | R68: 0.6863897959 | S68: 0.7448377551 | T68: 0.786522449 | U68: 0.8480772245 | V68: 0.8814093663 | W68: 0.8814093663 | Y68: Water Quality Grass Swale w/ Detention | Z68: 0 | AA68: 0.01 | AB68: 0.03 | AC68: 0.06 | AD68: 0.08546326531 | AE68: 0.1049459184 | AF68: 0.1232612245 | AG68: 0.1712090496 | AH68: 0.2052124884 | AI68: 0.2052124884 | AK68: Water Quality Grass Swale w/ Detention | AL68: 0 | AM68: 0.62 | AN68: 0.75 | AO68: 0.86 | AP68: 0.9024387755 | AQ68: 0.9324188776 | AR68: 0.9466306122 | AS68: 0.9637363499 | AT68: 0.9776062442 | AU68: 0.9776062442
A69: Hydrodynamic Separator | B69: 0.1 | C69: 0.1 | D69: 0.1 | E69: 0.1 | F69: 0.1 | G69: 0.1 | H69: 0.1 | I69: 0.1 | J69: 0.1 | K69: 0.1 | M69: Hydrodynamic Separator | N69: 0.25 | O69: 0.25 | P69: 0.25 | Q69: 0.25 | R69: 0.25 | S69: 0.25 | T69: 0.25 | U69: 0.25 | V69: 0.25 | W69: 0.25 | Y69: Hydrodynamic Separator | Z69: 0 | AA69: 0 | AB69: 0 | AC69: 0 | AD69: 0 | AE69: 0 | AF69: 0 | AG69: 0 | AH69: 0 | AI69: 0 | AK69: Hydrodynamic Separator
A70: Jellyfish Filter | B70: 0.5 | C70: 0.5 | D70: 0.5 | E70: 0.5 | F70: 0.5 | G70: 0.5 | H70: 0.5 | I70: 0.5 | J70: 0.5 | K70: 0.5 | M70: Jellyfish Filter | N70: 0.85 | O70: 0.85 | P70: 0.85 | Q70: 0.85 | R70: 0.85 | S70: 0.85 | T70: 0.85 | U70: 0.85 | V70: 0.85 | W70: 0.85 | Y70: Jellyfish Filter | Z70: 0.3 | AA70: 0.3 | AB70: 0.3 | AC70: 0.3 | AD70: 0.3 | AE70: 0.3 | AF70: 0.3 | AG70: 0.3 | AH70: 0.3 | AI70: 0.3 | AK70: Jellyfish Filter
A71: MWS-Linear | B71: 0.64 | C71: 0.64 | D71: 0.64 | E71: 0.64 | F71: 0.64 | G71: 0.64 | H71: 0.64 | I71: 0.64 | J71: 0.64 | K71: 0.64 | M71: MWS-Linear | N71: 0.85 | O71: 0.85 | P71: 0.85 | Q71: 0.85 | R71: 0.85 | S71: 0.85 | T71: 0.85 | U71: 0.85 | V71: 0.85 | W71: 0.85 | Y71: MWS-Linear | Z71: 0.45 | AA71: 0.45 | AB71: 0.45 | AC71: 0.45 | AD71: 0.45 | AE71: 0.45 | AF71: 0.45 | AG71: 0.45 | AH71: 0.45 | AI71: 0.45 | AK71: MWS-Linear
A72: Stormceptor | B72: 0 | C72: 0 | D72: 0 | E72: 0 | F72: 0 | G72: 0 | H72: 0 | I72: 0 | J72: 0 | K72: 0 | M72: Stormceptor | N72: 0.75 | O72: 0.75 | P72: 0.75 | Q72: 0.75 | R72: 0.75 | S72: 0.75 | T72: 0.75 | U72: 0.75 | V72: 0.75 | W72: 0.75 | Y72: Stormceptor | Z72: 0 | AA72: 0 | AB72: 0 | AC72: 0 | AD72: 0 | AE72: 0 | AF72: 0 | AG72: 0 | AH72: 0 | AI72: 0 | AK72: Stormceptor
A73: Porous Pavement With Underdrain | B73: 0.62 | C73: 0.62 | D73: 0.62 | E73: 0.62 | F73: 0.62 | G73: 0.62 | H73: 0.62 | I73: 0.62 | J73: 0.62 | K73: 0.62 | M73: Porous Pavement With Underdrain | N73: 0.92 | O73: 0.92 | P73: 0.92 | Q73: 0.92 | R73: 0.92 | S73: 0.92 | T73: 0.92 | U73: 0.92 | V73: 0.92 | W73: 0.92 | Y73: Porous Pavement With Underdrain | Z73: 0.76 | AA73: 0.76 | AB73: 0.76 | AC73: 0.76 | AD73: 0.76 | AE73: 0.76 | AF73: 0.76 | AG73: 0.76 | AH73: 0.76 | AI73: 0.76 | AK73: Porous Pavement With Underdrain | AL73: 0.85 | AM73: 0.85 | AN73: 0.85 | AO73: 0.85 | AP73: 0.85 | AQ73: 0.85 | AR73: 0.85 | AS73: 0.85 | AT73: 0.85 | AU73: 0.85
A75: Flow Factor | B75: Depth of Runoff Treated from Impervious Area (inches)
A76: Treatment Category: | B76: 0 | C76: 0.1 | D76: 0.2 | E76: 0.4 | F76: 0.6 | G76: 0.8 | H76: 1 | I76: 1.5 | J76: 2 | K76: 20
A77: Shallow Infiltration (sandy clay) | B77: 0 | C77: 0.0189819002 | D77: 0.04966678687 | E77: 0.08915413949 | F77: 0.1515110721 | G77: 0.2299065499 | H77: 0.3191560677 | I77: 0.4987066245 | J77: 0.6642030188 | K77: 0.6642030188
A78: Shallow Infiltration (silty clay loam) | B78: 0 | C78: 0.0189819002 | D78: 0.04966678687 | E78: 0.08915413949 | F78: 0.1515110721 | G78: 0.2299065499 | H78: 0.3191560677 | I78: 0.4987066245 | J78: 0.6642030188 | K78: 0.6642030188
A79: Shallow Infiltration (clay loam) | B79: 0 | C79: 0.0189819002 | D79: 0.0650092302 | E79: 0.1933872869 | F79: 0.2867058235 | G79: 0.4297394542 | H79: 0.5541792169 | I79: 0.7866129028 | J79: 1 | K79: 1
A80: Shallow Infiltration (sandy clay loam) | B80: 0 | C80: 0.07585430751 | D80: 0.1540013872 | E80: 0.3078391548 | F80: 0.4570977435 | G80: 0.620452078 | H80: 0.7883143956 | I80: 1 | J80: 1 | K80: 1
A81: Shallow Infiltration (silt loam) | B81: 0 | C81: 0.09212993439 | D81: 0.1866569716 | E81: 0.3610755935 | F81: 0.5396376695 | G81: 0.6557180668 | H81: 0.7880788517 | I81: 0.9715645979 | J81: 1 | K81: 1
A82: Shallow Infiltration (loam) | B82: 0 | C82: 0.1165771399 | D82: 0.2396451861 | E82: 0.4399091196 | F82: 0.6082423847 | G82: 0.75761178 | H82: 0.8775604893 | I82: 1 | J82: 1 | K82: 1
A83: Shallow Infiltration (sandy loam) | B83: 0 | C83: 0.1490524435 | D83: 0.2952250519 | E83: 0.5296246571 | F83: 0.7116167245 | G83: 0.8937277502 | H83: 0.979349521 | I83: 1 | J83: 1 | K83: 1
A84: Shallow Infiltration (loamy sand) | B84: 0 | C84: 0.2385307935 | D84: 0.4073458073 | E84: 0.7082187283 | F84: 0.9182015092 | G84: 1 | H84: 1 | I84: 1 | J84: 1 | K84: 1
A85: Shallow Infiltration (sand) | B85: 0 | C85: 0.4179998002 | D85: 0.6797121644 | E85: 0.9981776501 | F85: 1 | G85: 1 | H85: 1 | I85: 1 | J85: 1 | K85: 1
A86: Deep Infiltration (sandy clay) | B86: 0 | C86: 0.0168571871 | D86: 0.0189819002 | E86: 0.07268045187 | F86: 0.1351814695 | G86: 0.1544208918 | H86: 0.2360249835 | I86: 0.4202222502 | J86: 0.5946634195 | K86: 0.5946634195
A87: Deep Infiltration (silty clay loam) | B87: 0 | C87: 0.0168571871 | D87: 0.0189819002 | E87: 0.07268045187 | F87: 0.1351814695 | G87: 0.1544208918 | H87: 0.2360249835 | I87: 0.4202222502 | J87: 0.5946634195 | K87: 0.5946634195
A88: Deep Infiltration (clay loam) | B88: 0 | C88: 0.0168571871 | D88: 0.0650092302 | E88: 0.1327004616 | F88: 0.2301862763 | G88: 0.3470045641 | H88: 0.4416466342 | I88: 0.6541331135 | J88: 0.8345963706 | K88: 0.8345963706
A89: Deep Infiltration (sandy clay loam) | B89: 0 | C89: 0.05799902632 | D89: 0.1149858441 | E89: 0.242152318 | F89: 0.3995220806 | G89: 0.5050495943 | H89: 0.6175431014 | I89: 0.8355226156 | J89: 0.9789895008 | K89: 0.9789895008
A90: Deep Infiltration (silt loam) | B90: 0 | C90: 0.07281291436 | D90: 0.1500222188 | E90: 0.3085741426 | F90: 0.4806950563 | G90: 0.5698732514 | H90: 0.701956523 | I90: 0.9037051842 | J90: 1 | K90: 1
A91: Deep Infiltration (loam) | B91: 0 | C91: 0.09651346673 | D91: 0.1992311588 | E91: 0.366353793 | F91: 0.5503580533 | G91: 0.6537598264 | H91: 0.8040713515 | I91: 0.9735398857 | J91: 1 | K91: 1
A92: Deep Infiltration (sandy loam) | B92: 0 | C92: 0.1211549357 | D92: 0.2499938687 | E92: 0.4376804926 | F92: 0.6253905501 | G92: 0.7752700842 | H92: 0.9074192876 | I92: 1 | J92: 1 | K92: 1
A93: Deep Infiltration (loamy sand) | B93: 0 | C93: 0.1840087756 | D93: 0.3332834791 | E93: 0.5736192753 | F93: 0.7769850191 | G93: 0.9617969655 | H93: 1 | I93: 1 | J93: 1 | K93: 1
A94: Deep Infiltration (sand) | B94: 0 | C94: 0.3307730378 | D94: 0.5304727137 | E94: 0.918700103 | F94: 1 | G94: 1 | H94: 1 | I94: 1 | J94: 1 | K94: 1
A95: Extended Dry Detention | B95: 0 | C95: 0.08484260378 | D95: 0.1677183276 | E95: 0.3076735684 | F95: 0.4582302764 | G95: 0.5221116914 | H95: 0.6367077086 | I95: 0.791898522 | J95: 0.8378815154 | K95: 0.8378815154
A96: Bioretention | B96: 0 | C96: 0.0928316738 | D96: 0.1527178878 | E96: 0.2432515834 | F96: 0.3401493056 | G96: 0.3899738777 | H96: 0.4605394143 | I96: 0.7260434006 | J96: 0.7324292598 | K96: 0.7324292598
A97: Sand Filter | B97: 0 | C97: 0.0928316738 | D97: 0.1527178878 | E97: 0.2432515834 | F97: 0.3401493056 | G97: 0.3899738777 | H97: 0.4605394143 | I97: 0.7260434006 | J97: 0.7324292598 | K97: 0.7324292598
A98: Oil/Grit Separator | B98: 0 | C98: 0 | D98: 0 | E98: 0 | F98: 0 | G98: 0 | H98: 0 | I98: 0 | J98: 0 | K98: 0
A99: Gravel Wetland | B99: 0 | C99: 0.05871737421 | D99: 0.1317099007 | E99: 0.1849743754 | F99: 0.2101717652 | G99: 0.2297789675 | H99: 0.2587913342 | I99: 0.3156108434 | J99: 0.3644410522 | K99: 0.3644410522
A100: Wet Pond | B100: 0 | C100: 0.03656069442 | D100: 0.06222791354 | E100: 0.1246109923 | F100: 0.2029552497 | G100: 0.3013835489 | H100: 0.4029306164 | I100: 0.6067755376 | J100: 0.7774794098 | K100: 0.7774794098
A101: Pavement Removal | B101: 1 | C101: 1 | D101: 1 | E101: 1 | F101: 1 | G101: 1 | H101: 1 | I101: 1 | J101: 1 | K101: 1
A102: Silty Clay or Clay Soil (infiltrating STUs only) | B102: 0 | C102: 0 | D102: 0 | E102: 0 | F102: 0 | G102: 0 | H102: 0 | I102: 0 | J102: 0 | K102: 0
A103: TIP | B103: 0.5 | C103: 0.5 | D103: 0.5 | E103: 0.5 | F103: 0.5 | G103: 0.5 | H103: 0.5 | I103: 0.5 | J103: 0.5 | K103: 0.5
A104: Water Quality Grass Swale w/ Detention | B104: 0 | C104: 0.08484260378 | D104: 0.1677183276 | E104: 0.3076735684 | F104: 0.4582302764 | G104: 0.5221116914 | H104: 0.6367077086 | I104: 0.791898522 | J104: 0.8378815154 | K104: 0.8378815154
A105: Hydrodynamic Separator | B105: 0 | C105: 0 | D105: 0 | E105: 0 | F105: 0 | G105: 0 | H105: 0 | I105: 0 | J105: 0 | K105: 0
A106: Jellyfish Filter | B106: 0 | C106: 0 | D106: 0 | E106: 0 | F106: 0 | G106: 0 | H106: 0 | I106: 0 | J106: 0 | K106: 0
A107: MWS-Linear | B107: 0 | C107: 0 | D107: 0 | E107: 0 | F107: 0 | G107: 0 | H107: 0 | I107: 0 | J107: 0 | K107: 0
A108: Stormceptor | B108: 0 | C108: 0 | D108: 0 | E108: 0 | F108: 0 | G108: 0 | H108: 0 | I108: 0 | J108: 0 | K108: 0
A109: Porous Pavement With Underdrain | B109: 1 | C109: 1 | D109: 1 | E109: 1 | F109: 1 | G109: 1 | H109: 1 | I109: 1 | J109: 1 | K109: 1
A111: Runoff Factor | B111: Depth of Runoff Treated from Impervious Area (inches)
A112: Treatment Category: | B112: 0 | C112: 0.1 | D112: 0.2 | E112: 0.4 | F112: 0.6 | G112: 0.8 | H112: 1 | I112: 1.5 | J112: 2 | K112: 20
A113: Shallow Infiltration (sandy clay) | B113: 0 | C113: 0.02812920599 | D113: 0.06694534141 | E113: 0.1597522585 | F113: 0.2478918579 | G113: 0.340698775 | H113: 0.4311603063 | I113: 0.623822025 | J113: 0.7909776728 | K113: 0.7909776728
A114: Shallow Infiltration (silty clay loam) | B114: 0 | C114: 0.02812920599 | D114: 0.06694534141 | E114: 0.1597522585 | F114: 0.2478918579 | G114: 0.340698775 | H114: 0.4311603063 | I114: 0.623822025 | J114: 0.7909776728 | K114: 0.7909776728
A115: Shallow Infiltration (clay loam) | B115: 0 | C115: 0.05403399243 | D115: 0.1398047521 | E115: 0.3111820944 | F115: 0.4739987784 | G115: 0.6187794455 | H115: 0.7513171985 | I115: 0.938537622 | J115: 1 | K115: 1
A116: Shallow Infiltration (sandy clay loam) | B116: 0 | C116: 0.14 | D116: 0.28 | E116: 0.5 | F116: 0.68 | G116: 0.83 | H116: 0.95 | I116: 1 | J116: 1 | K116: 1
A117: Shallow Infiltration (silt loam) | B117: 0 | C117: 0.17 | D117: 0.34 | E117: 0.58 | F117: 0.76 | G117: 0.87 | H117: 0.94 | I117: 1 | J117: 1 | K117: 1
A118: Shallow Infiltration (loam) | B118: 0 | C118: 0.22 | D118: 0.41 | E118: 0.67 | F118: 0.84 | G118: 0.94 | H118: 1 | I118: 1 | J118: 1 | K118: 1
A119: Shallow Infiltration (sandy loam) | B119: 0 | C119: 0.28 | D119: 0.5 | E119: 0.78 | F119: 0.92 | G119: 1 | H119: 1 | I119: 1 | J119: 1 | K119: 1
A120: Shallow Infiltration (loamy sand) | B120: 0 | C120: 0.4 | D120: 0.66 | E120: 0.92 | F120: 1 | G120: 1 | H120: 1 | I120: 1 | J120: 1 | K120: 1
A121: Shallow Infiltration (sand) | B121: 0 | C121: 0.68 | D121: 0.93 | E121: 1 | F121: 1 | G121: 1 | H121: 1 | I121: 1 | J121: 1 | K121: 1
A122: Deep Infiltration (sandy clay) | B122: 0 | C122: 0.02627635118 | D122: 0.0579273329 | E122: 0.1406139102 | F122: 0.2192195162 | G122: 0.2974381334 | H122: 0.3796673605 | I122: 0.5696670663 | J122: 0.7353099402 | K122: 0.7353099402
A123: Deep Infiltration (silty clay loam) | B123: 0 | C123: 0.02627635118 | D123: 0.0579273329 | E123: 0.1406139102 | F123: 0.2192195162 | G123: 0.2974381334 | H123: 0.3796673605 | I123: 0.5696670663 | J123: 0.7353099402 | K123: 0.7353099402
A124: Deep Infiltration (clay loam) | B124: 0 | C124: 0.05225149921 | D124: 0.1192357184 | E124: 0.2553736387 | F124: 0.3852259249 | G124: 0.5051455022 | H124: 0.6197527806 | I124: 0.8279057726 | J124: 0.9596930022 | K124: 0.9596930022
A125: Deep Infiltration (sandy clay loam) | B125: 0 | C125: 0.1 | D125: 0.21 | E125: 0.41 | F125: 0.58 | G125: 0.71 | H125: 0.82 | I125: 0.97 | J125: 1 | K125: 1
A126: Deep Infiltration (silt loam) | B126: 0 | C126: 0.14 | D126: 0.28 | E126: 0.51 | F126: 0.68 | G126: 0.8 | H126: 0.89 | I126: 1 | J126: 1 | K126: 1
A127: Deep Infiltration (loam) | B127: 0 | C127: 0.18 | D127: 0.35 | E127: 0.6 | F127: 0.78 | G127: 0.88 | H127: 0.96 | I127: 1 | J127: 1 | K127: 1
A128: Deep Infiltration (sandy loam) | B128: 0 | C128: 0.23 | D128: 0.43 | E128: 0.69 | F128: 0.86 | G128: 0.95 | H128: 1 | I128: 1 | J128: 1 | K128: 1
A129: Deep Infiltration (loamy sand) | B129: 0 | C129: 0.32 | D129: 0.55 | E129: 0.84 | F129: 0.96 | G129: 1 | H129: 1 | I129: 1 | J129: 1 | K129: 1
A130: Deep Infiltration (sand) | B130: 0 | C130: 0.54 | D130: 0.82 | E130: 1 | F130: 1 | G130: 1 | H130: 1 | I130: 1 | J130: 1 | K130: 1
A131: Extended Dry Detention | B131: 0 | C131: 0.12 | D131: 0.21 | E131: 0.34 | F131: 0.41 | G131: 0.43 | H131: 0.44 | I131: 0.41 | J131: 0.39 | K131: 0.39
A132: Bioretention | B132: 0 | C132: 0 | D132: 0.03 | E132: 0.06 | F132: 0.09 | G132: 0.11 | H132: 0.14 | I132: 0.24 | J132: 0.31 | K132: 0.31
A133: Sand Filter | B133: 0 | C133: 0 | D133: 0.03 | E133: 0.06 | F133: 0.09 | G133: 0.11 | H133: 0.14 | I133: 0.24 | J133: 0.31 | K133: 0.31
A134: Oil/Grit Separator | B134: 0 | C134: 0 | D134: 0 | E134: 0 | F134: 0 | G134: 0 | H134: 0 | I134: 0 | J134: 0 | K134: 0
A135: Gravel Wetland | B135: 0 | C135: 0 | D135: 0 | E135: 0 | F135: 0.01 | G135: 0.02 | H135: 0.03 | I135: 0.04 | J135: 0.06 | K135: 0.06
A136: Wet Pond | B136: 0 | C136: 0.04 | D136: 0.1 | E136: 0.21 | F136: 0.32 | G136: 0.43 | H136: 0.53 | I136: 0.75 | J136: 0.9 | K136: 0.9
A137: Pavement Removal | B137: 1 | C137: 1 | D137: 1 | E137: 1 | F137: 1 | G137: 1 | H137: 1 | I137: 1 | J137: 1 | K137: 1
A138: Silty Clay or Clay Soil (infiltrating STUs only) | B138: 0 | C138: 0 | D138: 0 | E138: 0 | F138: 0 | G138: 0 | H138: 0 | I138: 0 | J138: 0 | K138: 0
A139: TIP | B139: 0.5 | C139: 0.5 | D139: 0.5 | E139: 0.5 | F139: 0.5 | G139: 0.5 | H139: 0.5 | I139: 0.5 | J139: 0.5 | K139: 0.5
A140: Water Quality Grass Swale w/ Detention | B140: 0 | C140: 0.12 | D140: 0.21 | E140: 0.34 | F140: 0.41 | G140: 0.43 | H140: 0.44 | I140: 0.41 | J140: 0.39 | K140: 0.39
A141: Hydrodynamic Separator | B141: 0 | C141: 0 | D141: 0 | E141: 0 | F141: 0 | G141: 0 | H141: 0 | I141: 0 | J141: 0 | K141: 0
A142: Jellyfish Filter | B142: 0 | C142: 0 | D142: 0 | E142: 0 | F142: 0 | G142: 0 | H142: 0 | I142: 0 | J142: 0 | K142: 0
A143: MWS-Linear | B143: 0 | C143: 0 | D143: 0 | E143: 0 | F143: 0 | G143: 0 | H143: 0 | I143: 0 | J143: 0 | K143: 0
A144: Stormceptor | B144: 0 | C144: 0 | D144: 0 | E144: 0 | F144: 0 | G144: 0 | H144: 0 | I144: 0 | J144: 0 | K144: 0
A145: Porous Pavement With Underdrain | B145: 1 | C145: 1 | D145: 1 | E145: 1 | F145: 1 | G145: 1 | H145: 1 | I145: 1 | J145: 1 | K145: 1
A147: Runoff Reduction Percent Reductions | B147: Depth of Runoff Treated from Impervious Area (inches)
A148: Treatment Category: | B148: 0 | C148: 0.1 | D148: 0.2 | E148: 0.4 | F148: 0.6 | G148: 0.8 | H148: 1 | I148: 1.5 | J148: 2 | K148: 20
A149: Shallow Infiltration (sandy clay) | B149: 0 | C149: 0.02531628539 | D149: 0.06025080726 | E149: 0.1437770327 | F149: 0.2231026721 | G149: 0.3066288975 | H149: 0.3880442757 | I149: 0.5614398225 | J149: 0.7118799055 | K149: =J149 -> 0.7118799055
A150: Shallow Infiltration (silty clay loam) | B150: 0 | C150: 0.02531628539 | D150: 0.06025080726 | E150: 0.1437770327 | F150: 0.2231026721 | G150: 0.3066288975 | H150: 0.3880442757 | I150: 0.5614398225 | J150: 0.7118799055 | K150: 0.7118799055
A151: Shallow Infiltration (clay loam) | B151: 0 | C151: 0.04863059319 | D151: 0.1258242769 | E151: 0.280063885 | F151: 0.4265989006 | G151: 0.5569015009 | H151: 0.6761854786 | I151: 0.8446838598 | J151: 0.9372128487 | K151: 0.9372128487
A152: Shallow Infiltration (sandy clay loam) | B152: 0 | C152: 0.1276919967 | D152: 0.2496693311 | E152: 0.4509684315 | F152: 0.6097283239 | G152: 0.7457578323 | H152: 0.8523658979 | I152: 0.9603551964 | J152: 0.9928442806 | K152: =J152 -> 0.9928442806
A153: Shallow Infiltration (silt loam) | B153: 0 | C153: 0.1561149981 | D153: 0.3025954695 | E153: 0.5254207579 | F153: 0.6815969627 | G153: 0.7798182734 | H153: 0.8489895344 | I153: 0.9326596668 | J153: 0.9650294776 | K153: =J153 -> 0.9650294776
A154: Shallow Infiltration (loam) | B154: 0 | C154: 0.1955551973 | D154: 0.3663128922 | E154: 0.6017001597 | F154: 0.7538267675 | G154: 0.8419832419 | H154: 0.8974336897 | I154: 0.9582034937 | J154: 0.9802138362 | K154: 0.9802138362
A155: Shallow Infiltration (sandy loam) | B155: 0 | C155: 0.2499769132 | D155: 0.4464120305 | E155: 0.6993410507 | F155: 0.8302165033 | G155: 0.90464389 | H155: 0.9417065365 | I155: 0.9808456866 | J155: 0.993612038 | K155: 0.993612038
A156: Shallow Infiltration (loamy sand) | B156: 0 | C156: 0.3562056912 | D156: 0.5909328335 | E156: 0.8317792585 | F156: 0.9226566572 | G156: 0.9660326789 | H156: 0.9839945641 | I156: 0.9967053474 | J156: 0.9997232363 | K156: 0.9997232363
A157: Shallow Infiltration (sand) | B157: 0 | C157: 0.6084183005 | D157: 0.8394942469 | E157: 0.9678980346 | F157: 0.9932063437 | G157: 0.9973707076 | H157: 0.999262871 | I157: 1 | J157: 1 | K157: 1
A158: Deep Infiltration (sandy clay) | B158: 0 | C158: 0.02364871607 | D158: 0.05213459961 | E158: 0.1265525192 | F158: 0.1972975645 | G158: 0.2676943201 | H158: 0.3417006245 | I158: 0.5127003596 | J158: 0.6617789462 | K158: 0.6617789462
A159: Deep Infiltration (silty clay loam) | B159: 0 | C159: 0.02364871607 | D159: 0.05213459961 | E159: 0.1265525192 | F159: 0.1972975645 | G159: 0.2676943201 | H159: 0.3417006245 | I159: 0.5127003596 | J159: 0.6617789462 | K159: 0.6617789462
A160: Deep Infiltration (clay loam) | B160: 0 | C160: 0.04702634929 | D160: 0.1073121466 | E160: 0.2298362748 | F160: 0.3467033324 | G160: 0.454630952 | H160: 0.5577775025 | I160: 0.7451151954 | J160: 0.863723702 | K160: 0.863723702
A161: Deep Infiltration (sandy clay loam) | B161: 0 | C161: 0.09025448497 | D161: 0.190585883 | E161: 0.36958841 | F161: 0.5225259208 | G161: 0.6399737148 | H161: 0.7379077919 | I161: 0.8710652603 | J161: 0.9305725983 | K161: 0.9305725983
A162: Deep Infiltration (silt loam) | B162: 0 | C162: 0.1234680436 | D162: 0.2475548427 | E162: 0.4558401192 | F162: 0.6123779544 | G162: 0.7200544992 | H162: 0.8020854849 | I162: 0.9049295616 | J162: 0.9494134297 | K162: 0.9494134297
A163: Deep Infiltration (loam) | B163: 0 | C163: 0.1646107889 | D163: 0.3160292602 | E163: 0.5410478666 | F163: 0.6975998656 | G163: 0.7915259082 | H163: 0.8601914207 | I163: 0.9375346263 | J163: 0.9682164876 | K163: 0.9682164876
A164: Deep Infiltration (sandy loam) | B164: 0 | C164: 0.2069484953 | D164: 0.3837511712 | E164: 0.6220660994 | F164: 0.7718555982 | G164: 0.8567852204 | H164: 0.9093819189 | I164: 0.9631045855 | J164: 0.9838410633 | K164: 0.9838410633
A165: Deep Infiltration (loamy sand) | B165: 0 | C165: 0.2872343486 | D165: 0.4978557631 | E165: 0.751601164 | F165: 0.8679038233 | G165: 0.9314646634 | H165: 0.9597519373 | I165: 0.9905749087 | J165: 0.9984811188 | K165: 0.9984811188
A166: Deep Infiltration (sand) | B166: 0 | C166: 0.487819286 | D166: 0.7335616102 | E166: 0.9262234192 | F166: 0.9776969041 | G166: 0.9920234249 | H166: 0.9963446669 | I166: 0.9998993231 | J166: 1 | K166: 1
A167: Extended Dry Detention | B167: 0 | C167: 0.1041277224 | D167: 0.1932395663 | E167: 0.3095789121 | F167: 0.3671833001 | G167: 0.3850801184 | H167: 0.3915301288 | I167: 0.366084393 | J167: 0.3534385183 | K167: 0.3534385183
A168: Bioretention | B168: 0 | C168: 0 | D168: 0.02880713068 | E168: 0.05412651117 | F168: 0.0802779982 | G168: 0.1033536747 | H168: 0.1264391667 | I168: 0.2154552414 | J168: 0.2829592286 | K168: 0.2829592286
A169: Sand Filter | B169: 0 | C169: 0 | D169: 0.02880713068 | E169: 0.05412651117 | F169: 0.0802779982 | G169: 0.1033536747 | H169: 0.1264391667 | I169: 0.2154552414 | J169: 0.2829592286 | K169: 0.2829592286
A170: Oil/Grit Separator | B170: 0 | C170: 0 | D170: 0 | E170: 0 | F170: 0 | G170: 0 | H170: 0 | I170: 0 | J170: 0 | K170: 0
A171: Gravel Wetland | B171: 0 | C171: -0.003787759777 | D171: -0.0007129941396 | E171: 0.003050224326 | F171: 0.01058404922 | G171: 0.0180276354 | H171: 0.02393663563 | I171: 0.03886106444 | J171: 0.05462940997 | K171: =J171 -> 0.05462940997
A172: Wet Pond | B172: 0 | C172: 0.03573954353 | D172: 0.08603607285 | E172: 0.1890164997 | F172: 0.2885028411 | G172: 0.3872741331 | H172: 0.4782782459 | I172: 0.6714600305 | J172: 0.8075391754 | K172: =J172 -> 0.8075391754
A173: Pavement Removal | B173: 1 | C173: 1 | D173: 1 | E173: 1 | F173: 1 | G173: 1 | H173: 1 | I173: 1 | J173: 1 | K173: 1
A174: Silty Clay or Clay Soil (infiltrating STUs only) | B174: 0 | C174: 0 | D174: 0 | E174: 0 | F174: 0 | G174: 0 | H174: 0 | I174: 0 | J174: 0 | K174: 0
A175: TIP | B175: 0.5 | C175: 0.5 | D175: 0.5 | E175: 0.5 | F175: 0.5 | G175: 0.5 | H175: 0.5 | I175: 0.5 | J175: 0.5 | K175: 0.5
A176: Water Quality Grass Swale w/ Detention | B176: 0 | C176: 0.1041277224 | D176: 0.1932395663 | E176: 0.3095789121 | F176: 0.3671833001 | G176: 0.3850801184 | H176: 0.3915301288 | I176: 0.366084393 | J176: 0.3534385183 | K176: =J176 -> 0.3534385183
A177: Hydrodynamic Separator | B177: 0 | C177: 0 | D177: 0 | E177: 0 | F177: 0 | G177: 0 | H177: 0 | I177: 0 | J177: 0 | K177: 0
A178: Jellyfish Filter | B178: 0 | C178: 0 | D178: 0 | E178: 0 | F178: 0 | G178: 0 | H178: 0 | I178: 0 | J178: 0 | K178: 0
A179: MWS-Linear | B179: 0 | C179: 0 | D179: 0 | E179: 0 | F179: 0 | G179: 0 | H179: 0 | I179: 0 | J179: 0 | K179: 0
A180: Stormceptor | B180: 0 | C180: 0 | D180: 0 | E180: 0 | F180: 0 | G180: 0 | H180: 0 | I180: 0 | J180: 0 | K180: 0
A181: Porous Pavement With Underdrain
A183: Phosphorus Factor | B183: Depth of Runoff Treated from Impervious Area (inches) (>50% IC)
A184: Treatment Category: | B184: 0 | C184: 0.1 | D184: 0.2 | E184: 0.4 | F184: 0.6 | G184: 0.8 | H184: 1 | I184: 1.5 | J184: 2 | K184: >2.00
A185: Shallow Infiltration (sandy clay) | B185: 0 | C185: =IF(C6/0.9>1, 1,C6/0.9) -> 0.2788888889 | D185: 0.4238888889 | E185: 0.6278888889 | F185: 0.7648888889 | G185: 0.8591111111 | H185: 0.9261111111 | I185: 1 | J185: 1 | K185: =J185 -> 1
A186: Shallow Infiltration (silty clay loam) | B186: 0 | C186: 0.2788888889 | D186: 0.4238888889 | E186: 0.6278888889 | F186: 0.7648888889 | G186: 0.8591111111 | H186: 0.9261111111 | I186: 1 | J186: 1 | K186: 1
A187: Shallow Infiltration (clay loam) | B187: 0 | C187: 0.3102222222 | D187: 0.4786666667 | E187: 0.7136666667 | F187: 0.8591111111 | G187: 0.9505555556 | H187: 1 | I187: 1 | J187: 1 | K187: 1
A188: Shallow Infiltration (sandy clay loam) | B188: =IF(B9/0.9>1, 1,B9/0.9) -> 0 | C188: 0.3888888889 | D188: 0.5777777778 | E188: 0.8 | F188: 0.9111111111 | G188: 0.9777777778 | H188: 1 | I188: 1 | J188: 1 | K188: =IF(K9/0.9>1, 1,K9/0.9) -> 1
A189: Shallow Infiltration (silt loam) | B189: 0 | C189: 0.4111111111 | D189: 0.6 | E189: 0.8222222222 | F189: 0.9444444444 | G189: 1 | H189: 1 | I189: 1 | J189: 1 | K189: 1
A190: Shallow Infiltration (loam) | B190: 0 | C190: 0.4222222222 | D190: 0.6222222222 | E190: 0.8555555556 | F190: 0.9666666667 | G190: 1 | H190: 1 | I190: 1 | J190: 1 | K190: 1
A191: Shallow Infiltration (sandy loam) | B191: 0 | C191: 0.4555555556 | D191: 0.6666666667 | E191: 0.9 | F191: 1 | G191: 1 | H191: 1 | I191: 1 | J191: 1 | K191: 1
A192: Shallow Infiltration (loamy sand) | B192: 0 | C192: 0.5111111111 | D192: 0.7444444444 | E192: 0.9666666667 | F192: 1 | G192: 1 | H192: 1 | I192: 1 | J192: 1 | K192: 1
A193: Shallow Infiltration (sand) | B193: 0 | C193: 0.6555555556 | D193: 0.9 | E193: 1 | F193: 1 | G193: 1 | H193: 1 | I193: 1 | J193: 1 | K193: 1
A194: Deep Infiltration (sandy clay) | B194: 0 | C194: 0.2356666667 | D194: 0.3703333333 | E194: 0.5672222222 | F194: 0.696 | G194: 0.7871111111 | H194: 0.8551111111 | I194: 0.961 | J194: 1 | K194: =J194 -> 1
A195: Deep Infiltration (silty clay loam) | B195: 0 | C195: =IF(C16/0.9>1, 1,C16/0.9) -> 0.2356666667 | D195: 0.3703333333 | E195: 0.5672222222 | F195: 0.696 | G195: 0.7871111111 | H195: 0.8551111111 | I195: 0.961 | J195: 1 | K195: 1
A196: Deep Infiltration (clay loam) | B196: 0 | C196: 0.2706666667 | D196: 0.4205555556 | E196: 0.6305555556 | F196: 0.7684444444 | G196: 0.8638888889 | H196: 0.932 | I196: 1 | J196: 1 | K196: 1
A197: Deep Infiltration (sandy clay loam) | B197: =IF(B18/0.9>1, 1,B18/0.9) -> 0 | C197: 0.2 | D197: 0.3666666667 | E197: 0.6333333333 | F197: 0.8111111111 | G197: 0.9222222222 | H197: 1 | I197: 1 | J197: 1 | K197: =IF(K18/0.9>1, 1,K18/0.9) -> 1
A198: Deep Infiltration (silt loam) | B198: 0 | C198: 0.2222222222 | D198: 0.4111111111 | E198: 0.7 | F198: 0.8666666667 | G198: 0.9555555556 | H198: 1 | I198: 1 | J198: 1 | K198: 1
A199: Deep Infiltration (loam) | B199: 0 | C199: 0.2555555556 | D199: 0.4666666667 | E199: 0.7555555556 | F199: 0.9111111111 | G199: 0.9888888889 | H199: 1 | I199: 1 | J199: 1 | K199: 1
A200: Deep Infiltration (sandy loam) | B200: 0 | C200: 0.3 | D200: 0.5222222222 | E200: 0.8111111111 | F200: 0.9555555556 | G200: 1 | H200: 1 | I200: 1 | J200: 1 | K200: 1
A201: Deep Infiltration (loamy sand) | B201: 0 | C201: 0.3666666667 | D201: 0.6111111111 | E201: 0.9 | F201: 1 | G201: 1 | H201: 1 | I201: 1 | J201: 1 | K201: 1
A202: Deep Infiltration (sand) | B202: 0 | C202: 0.5555555556 | D202: 0.8333333333 | E202: 1 | F202: 1 | G202: 1 | H202: 1 | I202: 1 | J202: 1 | K202: 1
A203: Extended Dry Detention | B203: 0 | C203: 0.02222222222 | D203: 0.05555555556 | E203: 0.1 | F203: 0.1444444444 | G203: 0.1888888889 | H203: 0.2333333333 | I203: 0.3222222222 | J203: 0.4 | K203: 0.4
A204: Bioretention | B204: 0 | C204: 0.1555555556 | D204: 0.2777777778 | E204: 0.4111111111 | F204: 0.4888888889 | G204: 0.5333333333 | H204: 0.5888888889 | I204: 0.6444444444 | J204: 0.7 | K204: 0.7
A205: Sand Filter | B205: 0 | C205: =IF(C26/0.9>1, 1,C26/0.9) -> 0.1555555556 | D205: 0.2777777778 | E205: 0.4111111111 | F205: 0.4888888889 | G205: 0.5333333333 | H205: 0.5888888889 | I205: 0.6444444444 | J205: 0.7 | K205: 0.7
A206: Oil/Grit Separator | B206: 0 | C206: 0 | D206: 0 | E206: 0 | F206: 0 | G206: 0 | H206: 0 | I206: 0 | J206: 0 | K206: 0
... 81 more rows

Sheet IC Treatment Values (hidden)
A1: Pervious Cover Factor
B2: 0.125 | C2: 0.1666666667 | D2: 0.25 | E2: 0.5 | F2: 1 | G2: 2 | H2: 4 | I2: 10 | J2: 30 | K2: 50 | L2: 70 | M2: 200
A3: HSG A | B3: 0.5 | C3: 0.58 | D3: 0.7 | E3: 0.87 | F3: 0.98 | G3: 1 | H3: 1 | I3: 1 | J3: 1 | K3: 1 | L3: 1 | M3: 1
A4: HSG B | B4: 0.28 | C4: 0.34 | D4: 0.44 | E4: 0.6 | F4: 0.74 | G4: 0.82 | H4: 0.87 | I4: 0.97 | J4: 0.99 | K4: 1 | L4: 1 | M4: 1
A5: HSG C | B5: 0.18 | C5: 0.22 | D5: 0.29 | E5: 0.41 | F5: 0.53 | G5: 0.63 | H5: 0.69 | I5: 0.81 | J5: 0.88 | K5: 0.91 | L5: 1 | M5: 1
A6: HDG D | B6: 0.11 | C6: 0.14 | D6: 0.18 | E6: 0.27 | F6: 0.36 | G6: 0.43 | H6: 0.48 | I6: 0.69 | J6: 0.76 | K6: 0.78 | L6: 0.84 | M6: 0.84

Sheet Non-Discharge Areas
A1: Non-Discharge Areas Summary
A3: Date: | C3: Prepared By:
A5: Project ID: | B5: =IFERROR(IF('Cover Sheet'!G3=0,"",'Cover Sheet'!G3),"") ->  | C5: Location: | D5: =IFERROR(IF('Cover Sheet'!G4=0,"",'Cover Sheet'!G4),"") -> 
A7: Instructions: Use this tab to document non-discharge areas within the project limits. Use one row for each distinct non-discharge area. Enter data in unshaded boxes. Non-discharging area summary (Column M) will appear once all required information is populated and error messages are resolved.
B8: Additional rows in the table can be unhidden to document additional non-discharge areas.
A10: Populate to Complete Worksheet A-Scoping
A12: Table 1: Impervious Surface Contributing to a Non Discharging Area (Worksheet A-Scoping Rows G & J) | AE12: Table 1-1: Existing Non-Discharge Area Calculations
A14: Project Information | D14: Non-Discharge Area Definition* | E14: Impervious Area | G14: Receiving Parcel Pervious Area (ft2) | H14: Receiving Parcel HSG Composition (%) | L14: IC : Pervious Cover Ratio | M14: Non-Discharging Impervious Area (acre) | N14: Errors and Warnings | AG14: Break Ties between HSG Percentages (Hide Columns)
A15: Non-Discharge Area ID | B15: WBID | C15: DP No. | H15: A | I15: B | J15: C | K15: D | N15: Sum of Receiving Parcel HSG Percentages (Columns H-K) does not equal 100%. | O15: Parcel does not qualify as non-discharge area based on the IC:Pervious Cover Ratio (Column L) and HSG Composition.
E16: Existing Impervious Surface Contributing to the Non-Discharge Area (ft2) | F16: Net Increase in Impervious Surface Contributing to the Non-Discharge Area (ft2) | AE16: Round Area Ratio (Hide Column) | AF16: Check HSG Percent Total (Hide Column) | AG16: A | AH16: B | AI16: C | AJ16: D | AK16: Most Conservative HSG (Hide Column) | AL16: Non-Discharge Area Populated?
L17: =IF(AE17="","",IF(AE17="Parcel Ineligible; Receiving Parcel Area too small","Parcel Ineligible; Receiving Parcel Area too small",IF((E17+F17)<G17,"1:"&ROUND((AE17),1),ROUND(1/AE17,1)&":1"))) ->  | M17: =IFERROR(IF((N17=""),IF((O17="X"),"",IF(A17="","",(E17+F17)/43560)),""),"") ->  | N17: =IF(AF17="","",IF(OR(AF17>1,AF17<1),"X","")) ->  | O17: =IF((D17="Definition 1"),"",IFERROR(IF(AE17="","",IF(AND(AK17="A",H17>=0.5,AE17<30),"X",IF(AND(AK17="B",I17>=0.5,AE17<50),"X",IF(AND(AK17="C",J17>=0.5,AE17<70),"X","")))),"")) ->  | AE17: =IFERROR(IF((E17/G17)>8,"Parcel Ineligible; Receiving Parcel Area too small",IF((E17+F17) < G17,(G17/(E17+F17)),IF(G17 < (((G17+(E17+F17))/2) + (E17+F17)),G17/(E17+F17),""))),"") ->  | AF17: =IF(AND(H17="",I17="",J17="",K17=""),"",SUM(H17:K17)) ->  | AG17: =(COUNTIF(H17:$H17,H17)-1)*0.00001+H17 -> -1e-05 | AH17: =(COUNTIF($H17:I17,I17)-1)*0.00001+I17 -> -1e-05 | AI17: =(COUNTIF($H17:J17,J17)-1)*0.00001+J17 -> -1e-05 | AJ17: =(COUNTIF($H17:K17,K17)-1)*0.00001+K17 -> -1e-05 | AK17: =IF(AND(H17="",I17="",J17="",K17=""),"",INDEX($AG$16:$AJ$16,MATCH(MAX(AG17:AJ17),AG17:AJ17,0))) ->  | AL17: =IF(M17<>"",1,0) -> 0
L18: =IF(AE18="","",IF(AE18="Parcel Ineligible; Receiving Parcel Area too small","Parcel Ineligible; Receiving Parcel Area too small",IF((E18+F18)<G18,"1:"&ROUND((AE18),1),ROUND(1/AE18,1)&":1"))) ->  | M18: =IFERROR(IF((N18=""),IF((O18="X"),"",IF(A18="","",(E18+F18)/43560)),""),"") ->  | N18: =IF(AF18="","",IF(OR(AF18>1,AF18<1),"X","")) ->  | O18: =IF((D18="Definition 1"),"",IFERROR(IF(AE18="","",IF(AND(AK18="A",H18>=0.5,AE18<30),"X",IF(AND(AK18="B",I18>=0.5,AE18<50),"X",IF(AND(AK18="C",J18>=0.5,AE18<70),"X","")))),"")) ->  | AE18: =IFERROR(IF((E18/G18)>8,"Parcel Ineligible; Receiving Parcel Area too small",IF((E18+F18) < G18,(G18/(E18+F18)),IF(G18 < (((G18+(E18+F18))/2) + (E18+F18)),G18/(E18+F18),""))),"") ->  | AF18: =IF(AND(H18="",I18="",J18="",K18=""),"",SUM(H18:K18)) ->  | AG18: =(COUNTIF(H18:$H18,H18)-1)*0.00001+H18 -> -1e-05 | AH18: =(COUNTIF($H18:I18,I18)-1)*0.00001+I18 -> -1e-05 | AI18: =(COUNTIF($H18:J18,J18)-1)*0.00001+J18 -> -1e-05 | AJ18: =(COUNTIF($H18:K18,K18)-1)*0.00001+K18 -> -1e-05 | AK18: =IF(AND(H18="",I18="",J18="",K18=""),"",INDEX($AG$16:$AJ$16,MATCH(MAX(AG18:AJ18),AG18:AJ18,0))) ->  | AL18: =IF(M18<>"",1,0) -> 0
AG19: =(COUNTIF(H19:$H19,H19)-1)*0.00001+H19 -> -1e-05 | AH19: =(COUNTIF($H19:I19,I19)-1)*0.00001+I19 -> -1e-05 | AI19: =(COUNTIF($H19:J19,J19)-1)*0.00001+J19 -> -1e-05 | AJ19: =(COUNTIF($H19:K19,K19)-1)*0.00001+K19 -> -1e-05 | AL19: 0
AG20: =(COUNTIF(H20:$H20,H20)-1)*0.00001+H20 -> -1e-05 | AH20: =(COUNTIF($H20:I20,I20)-1)*0.00001+I20 -> -1e-05 | AI20: =(COUNTIF($H20:J20,J20)-1)*0.00001+J20 -> -1e-05 | AJ20: =(COUNTIF($H20:K20,K20)-1)*0.00001+K20 -> -1e-05 | AL20: 0
AG21: =(COUNTIF(H21:$H21,H21)-1)*0.00001+H21 -> -1e-05 | AH21: =(COUNTIF($H21:I21,I21)-1)*0.00001+I21 -> -1e-05 | AI21: =(COUNTIF($H21:J21,J21)-1)*0.00001+J21 -> -1e-05 | AJ21: =(COUNTIF($H21:K21,K21)-1)*0.00001+K21 -> -1e-05 | AL21: 0
AG22: =(COUNTIF(H22:$H22,H22)-1)*0.00001+H22 -> -1e-05 | AH22: =(COUNTIF($H22:I22,I22)-1)*0.00001+I22 -> -1e-05 | AI22: =(COUNTIF($H22:J22,J22)-1)*0.00001+J22 -> -1e-05 | AJ22: =(COUNTIF($H22:K22,K22)-1)*0.00001+K22 -> -1e-05 | AL22: 0
AG23: =(COUNTIF(H23:$H23,H23)-1)*0.00001+H23 -> -1e-05 | AH23: =(COUNTIF($H23:I23,I23)-1)*0.00001+I23 -> -1e-05 | AI23: =(COUNTIF($H23:J23,J23)-1)*0.00001+J23 -> -1e-05 | AJ23: =(COUNTIF($H23:K23,K23)-1)*0.00001+K23 -> -1e-05 | AL23: 0
AG24: =(COUNTIF(H24:$H24,H24)-1)*0.00001+H24 -> -1e-05 | AH24: =(COUNTIF($H24:I24,I24)-1)*0.00001+I24 -> -1e-05 | AI24: =(COUNTIF($H24:J24,J24)-1)*0.00001+J24 -> -1e-05 | AJ24: =(COUNTIF($H24:K24,K24)-1)*0.00001+K24 -> -1e-05 | AL24: 0
AG25: =(COUNTIF(H25:$H25,H25)-1)*0.00001+H25 -> -1e-05 | AH25: =(COUNTIF($H25:I25,I25)-1)*0.00001+I25 -> -1e-05 | AI25: =(COUNTIF($H25:J25,J25)-1)*0.00001+J25 -> -1e-05 | AJ25: =(COUNTIF($H25:K25,K25)-1)*0.00001+K25 -> -1e-05 | AL25: 0
AG26: =(COUNTIF(H26:$H26,H26)-1)*0.00001+H26 -> -1e-05 | AH26: =(COUNTIF($H26:I26,I26)-1)*0.00001+I26 -> -1e-05 | AI26: =(COUNTIF($H26:J26,J26)-1)*0.00001+J26 -> -1e-05 | AJ26: =(COUNTIF($H26:K26,K26)-1)*0.00001+K26 -> -1e-05 | AL26: 0
AG27: =(COUNTIF(H27:$H27,H27)-1)*0.00001+H27 -> -1e-05 | AH27: =(COUNTIF($H27:I27,I27)-1)*0.00001+I27 -> -1e-05 | AI27: =(COUNTIF($H27:J27,J27)-1)*0.00001+J27 -> -1e-05 | AJ27: =(COUNTIF($H27:K27,K27)-1)*0.00001+K27 -> -1e-05 | AL27: 0
AG28: =(COUNTIF(H28:$H28,H28)-1)*0.00001+H28 -> -1e-05 | AH28: =(COUNTIF($H28:I28,I28)-1)*0.00001+I28 -> -1e-05 | AI28: =(COUNTIF($H28:J28,J28)-1)*0.00001+J28 -> -1e-05 | AJ28: =(COUNTIF($H28:K28,K28)-1)*0.00001+K28 -> -1e-05 | AL28: 0
AG29: =(COUNTIF(H29:$H29,H29)-1)*0.00001+H29 -> -1e-05 | AH29: =(COUNTIF($H29:I29,I29)-1)*0.00001+I29 -> -1e-05 | AI29: =(COUNTIF($H29:J29,J29)-1)*0.00001+J29 -> -1e-05 | AJ29: =(COUNTIF($H29:K29,K29)-1)*0.00001+K29 -> -1e-05 | AL29: 0
AG30: =(COUNTIF(H30:$H30,H30)-1)*0.00001+H30 -> -1e-05 | AH30: =(COUNTIF($H30:I30,I30)-1)*0.00001+I30 -> -1e-05 | AI30: =(COUNTIF($H30:J30,J30)-1)*0.00001+J30 -> -1e-05 | AJ30: =(COUNTIF($H30:K30,K30)-1)*0.00001+K30 -> -1e-05 | AL30: 0
AG31: =(COUNTIF(H31:$H31,H31)-1)*0.00001+H31 -> -1e-05 | AH31: =(COUNTIF($H31:I31,I31)-1)*0.00001+I31 -> -1e-05 | AI31: =(COUNTIF($H31:J31,J31)-1)*0.00001+J31 -> -1e-05 | AJ31: =(COUNTIF($H31:K31,K31)-1)*0.00001+K31 -> -1e-05 | AL31: 0
AG32: =(COUNTIF(H32:$H32,H32)-1)*0.00001+H32 -> -1e-05 | AH32: =(COUNTIF($H32:I32,I32)-1)*0.00001+I32 -> -1e-05 | AI32: =(COUNTIF($H32:J32,J32)-1)*0.00001+J32 -> -1e-05 | AJ32: =(COUNTIF($H32:K32,K32)-1)*0.00001+K32 -> -1e-05 | AL32: 0
AG33: =(COUNTIF(H33:$H33,H33)-1)*0.00001+H33 -> -1e-05 | AH33: =(COUNTIF($H33:I33,I33)-1)*0.00001+I33 -> -1e-05 | AI33: =(COUNTIF($H33:J33,J33)-1)*0.00001+J33 -> -1e-05 | AJ33: =(COUNTIF($H33:K33,K33)-1)*0.00001+K33 -> -1e-05 | AL33: 0
AG34: =(COUNTIF(H34:$H34,H34)-1)*0.00001+H34 -> -1e-05 | AH34: =(COUNTIF($H34:I34,I34)-1)*0.00001+I34 -> -1e-05 | AI34: =(COUNTIF($H34:J34,J34)-1)*0.00001+J34 -> -1e-05 | AJ34: =(COUNTIF($H34:K34,K34)-1)*0.00001+K34 -> -1e-05 | AL34: 0
AG35: =(COUNTIF(H35:$H35,H35)-1)*0.00001+H35 -> -1e-05 | AH35: =(COUNTIF($H35:I35,I35)-1)*0.00001+I35 -> -1e-05 | AI35: =(COUNTIF($H35:J35,J35)-1)*0.00001+J35 -> -1e-05 | AJ35: =(COUNTIF($H35:K35,K35)-1)*0.00001+K35 -> -1e-05 | AL35: 0
AG36: =(COUNTIF(H36:$H36,H36)-1)*0.00001+H36 -> -1e-05 | AH36: =(COUNTIF($H36:I36,I36)-1)*0.00001+I36 -> -1e-05 | AI36: =(COUNTIF($H36:J36,J36)-1)*0.00001+J36 -> -1e-05 | AJ36: =(COUNTIF($H36:K36,K36)-1)*0.00001+K36 -> -1e-05 | AL36: 0
AG37: =(COUNTIF(H37:$H37,H37)-1)*0.00001+H37 -> -1e-05 | AH37: =(COUNTIF($H37:I37,I37)-1)*0.00001+I37 -> -1e-05 | AI37: =(COUNTIF($H37:J37,J37)-1)*0.00001+J37 -> -1e-05 | AJ37: =(COUNTIF($H37:K37,K37)-1)*0.00001+K37 -> -1e-05 | AL37: 0
AG38: =(COUNTIF(H38:$H38,H38)-1)*0.00001+H38 -> -1e-05 | AH38: =(COUNTIF($H38:I38,I38)-1)*0.00001+I38 -> -1e-05 | AI38: =(COUNTIF($H38:J38,J38)-1)*0.00001+J38 -> -1e-05 | AJ38: =(COUNTIF($H38:K38,K38)-1)*0.00001+K38 -> -1e-05 | AL38: 0
AG39: =(COUNTIF(H39:$H39,H39)-1)*0.00001+H39 -> -1e-05 | AH39: =(COUNTIF($H39:I39,I39)-1)*0.00001+I39 -> -1e-05 | AI39: =(COUNTIF($H39:J39,J39)-1)*0.00001+J39 -> -1e-05 | AJ39: =(COUNTIF($H39:K39,K39)-1)*0.00001+K39 -> -1e-05 | AL39: 0
AG40: =(COUNTIF(H40:$H40,H40)-1)*0.00001+H40 -> -1e-05 | AH40: =(COUNTIF($H40:I40,I40)-1)*0.00001+I40 -> -1e-05 | AI40: =(COUNTIF($H40:J40,J40)-1)*0.00001+J40 -> -1e-05 | AJ40: =(COUNTIF($H40:K40,K40)-1)*0.00001+K40 -> -1e-05 | AL40: 0
AG41: =(COUNTIF(H41:$H41,H41)-1)*0.00001+H41 -> -1e-05 | AH41: =(COUNTIF($H41:I41,I41)-1)*0.00001+I41 -> -1e-05 | AI41: =(COUNTIF($H41:J41,J41)-1)*0.00001+J41 -> -1e-05 | AJ41: =(COUNTIF($H41:K41,K41)-1)*0.00001+K41 -> -1e-05 | AL41: 0
AG42: =(COUNTIF(H42:$H42,H42)-1)*0.00001+H42 -> -1e-05 | AH42: =(COUNTIF($H42:I42,I42)-1)*0.00001+I42 -> -1e-05 | AI42: =(COUNTIF($H42:J42,J42)-1)*0.00001+J42 -> -1e-05 | AJ42: =(COUNTIF($H42:K42,K42)-1)*0.00001+K42 -> -1e-05 | AL42: 0
AG43: =(COUNTIF(H43:$H43,H43)-1)*0.00001+H43 -> -1e-05 | AH43: =(COUNTIF($H43:I43,I43)-1)*0.00001+I43 -> -1e-05 | AI43: =(COUNTIF($H43:J43,J43)-1)*0.00001+J43 -> -1e-05 | AJ43: =(COUNTIF($H43:K43,K43)-1)*0.00001+K43 -> -1e-05 | AL43: 0
AG44: =(COUNTIF(H44:$H44,H44)-1)*0.00001+H44 -> -1e-05 | AH44: =(COUNTIF($H44:I44,I44)-1)*0.00001+I44 -> -1e-05 | AI44: =(COUNTIF($H44:J44,J44)-1)*0.00001+J44 -> -1e-05 | AJ44: =(COUNTIF($H44:K44,K44)-1)*0.00001+K44 -> -1e-05 | AL44: 0
AG45: =(COUNTIF(H45:$H45,H45)-1)*0.00001+H45 -> -1e-05 | AH45: =(COUNTIF($H45:I45,I45)-1)*0.00001+I45 -> -1e-05 | AI45: =(COUNTIF($H45:J45,J45)-1)*0.00001+J45 -> -1e-05 | AJ45: =(COUNTIF($H45:K45,K45)-1)*0.00001+K45 -> -1e-05 | AL45: 0
AG46: =(COUNTIF(H46:$H46,H46)-1)*0.00001+H46 -> -1e-05 | AH46: =(COUNTIF($H46:I46,I46)-1)*0.00001+I46 -> -1e-05 | AI46: =(COUNTIF($H46:J46,J46)-1)*0.00001+J46 -> -1e-05 | AJ46: =(COUNTIF($H46:K46,K46)-1)*0.00001+K46 -> -1e-05 | AK46: =IF(AND(H46="",I46="",J46="",K46=""),"",INDEX($AG$16:$AJ$16,MATCH(MAX(AG46:AJ46),AG46:AJ46,0))) ->  | AL46: 0

Sheet Worksheet A-Scoping
A1: Worksheet A-Scoping
A3: Date: | D3: Prepared By:
A5: Project ID: | B5: =IFERROR(IF('Cover Sheet'!G3=0,"",'Cover Sheet'!G3),"") ->  | D5: Location: | E5: =IFERROR(IF('Cover Sheet'!G4=0,"",'Cover Sheet'!G4),"") ->  | F5: Municipality: | G5: =IFERROR(IF('Cover Sheet'!G5=0,"",'Cover Sheet'!G5),"") -> 
A7: Instructions: Enter data in unshaded boxes.
D9: Project Information | F9: Stormwater Treatment Information
A10: Input receiving waterbody information. | C10: A | D10: Step 3.2(a): Enter Waterbody ID (WBID) per the
D11: RIDOT Stormwater Program Web Map.
C12: B | D12: Step 3.2(a): Enter waterbody name per the
D13: RIDOT Stormwater Program Web Map.
C14: C | D14: Step 3.2(c): Is the WBID impaired per the
D15: RIDEM Environmental Resources Map
C16: D | D16: Step 3.2(c): Enter stormwater impairments/ pollutants of concern. Enter N/A if none.
C17: E | D17: Step 3.2(d) Is this WBID in a watershed with Current SCP Results of "<10% IC and no TMDL" per the
D18: RIDOT Stormwater Program Web Map.
A19: Input pre- & post- construction impervious areas. Enter non-discharge areas (Rows G and J) on the Non-Discharge Areas tab. | C19: F | D19: Total Pre-ConstructionA Impervious Area (acres)
C20: G | D20: Existing Impervious Area that is Non-DischargingB (acres) | F20: =SUMIFS('Non-Discharge Areas'!$E$17:$E$46,'Non-Discharge Areas'!$B$17:$B$46,'Worksheet A-Scoping'!F10,'Non-Discharge Areas'!$AL$17:$AL$46,1)/43560 -> 0 | G20: =SUMIFS('Non-Discharge Areas'!$E$17:$E$46,'Non-Discharge Areas'!$B$17:$B$46,'Worksheet A-Scoping'!G10,'Non-Discharge Areas'!$AL$17:$AL$46,1)/43560 -> 0 | H20: =SUMIFS('Non-Discharge Areas'!$E$17:$E$46,'Non-Discharge Areas'!$B$17:$B$46,'Worksheet A-Scoping'!H10,'Non-Discharge Areas'!$AL$17:$AL$46,1)/43560 -> 0
C21: H | D21: Total DisturbedC Existing Impervious Area (acres)
D22: └ Total Portion of (H) that comprises Mill & Overlay and/or Reclamation Area (acres)
C23: I | D23: Total Post-ConstructionA Impervious Area (acres)
C24: J | D24: Net Increase in Impervious Area that is Non-DischargingD (acres) | F24: =SUMIFS('Non-Discharge Areas'!$F$17:$F$46,'Non-Discharge Areas'!$B$17:$B$46,'Worksheet A-Scoping'!F10,'Non-Discharge Areas'!$AL$17:$AL$46,1)/43560 -> 0 | G24: =SUMIFS('Non-Discharge Areas'!$F$17:$F$46,'Non-Discharge Areas'!$B$17:$B$46,'Worksheet A-Scoping'!G10,'Non-Discharge Areas'!$AL$17:$AL$46,1)/43560 -> 0 | H24: =SUMIFS('Non-Discharge Areas'!$F$17:$F$46,'Non-Discharge Areas'!$B$17:$B$46,'Worksheet A-Scoping'!H10,'Non-Discharge Areas'!$AL$17:$AL$46,1)/43560 -> 0
A25: Calculate treatment goal. | C25: K | D25: Post-Construction Net Increase in Impervious Surface AreaE (acres) = (I) - (F) | F25: =IF(((F23-F19)>0),(F23-F19),0) -> 0 | G25: =IF(((G23-G19)>0),(G23-G19),0) -> 0 | H25: 0
C26: L | D26: Post-Construction Impervious Surface Requiring TreatmentF (acres) = (H - G)*0.5 + (K - J) | F26: =IF(((F21-F20)*0.5+(F25-F24))<0,"",((F21-F20)*0.5+(F25-F24))) -> 0 | G26: =IF(((G21-G20)*0.5+(G25-G24))<0,"",((G21-G20)*0.5+(G25-G24))) -> 0 | H26: 0
A27: AIndependent of project phasing. BExisting impervious area that is non-discharging (Row G) cannot exceed total disturbed existing impervious area (Row H). If so, review Non-Discharge Area tab. CIncludes all disturbed impervious area with the exception of impervious area disturbed during pavement marking, installing traffic induction loops, installing wheelchair ramps, crack sealing, bridge washing, and limited scale maintenance activities. DNet increase in impervious area that is non-discharging (Row J) cannot exceed post-construction net increase in impervious surface area (Row K). If so, review Non-Discharge Area tab. EWill appear as 0 if there is a net decrease in impervious area. Reduction in impervious cover is accounted for in Row E of Worksheet B. FPost-construction impervious surface requiring treatment will be positive or 0. If no value is shown, review inputs.

Sheet LID & STUs
A1: LID & STUs Summary
A3: Date: | C3: Prepared By:
A5: Project ID: | B5: =IFERROR(IF('Cover Sheet'!G3=0,"",'Cover Sheet'!G3),"") ->  | C5: Location: | D5: =IFERROR(IF('Cover Sheet'!G4=0,"",'Cover Sheet'!G4),"") ->  | E5: Municipality: | F5: =IFERROR(IF('Cover Sheet'!G5=0,"",'Cover Sheet'!G5),"") -> 
A7: Instructions: Enter data in unshaded boxes. Water quality treatment credit (acres of Effective Impervious Cover (IC) reduction) will appear once all required information is populated and error messages are resolved.
B8: Rows in each table can be unhidden for additional controls.
A10: Populate to Complete Worksheets B-30%, B-90%, and C-As Built
A12: Table 1: Summary of Existing STUs (Row C) | AG12: Table 1-1: Existing STU Calculations
A14: Project Information | D14: Hydrologic Analysis Summary | L14: Water Quality Treatment Calculations | V14: Summary of Soils to Evaluate STUs | AG14: Impervious and Pervious Area (Hide Columns) | AJ14: Depth of Runoff Treated (Hide Columns)
A15: STU ID | B15: WBID | C15: DP No. | D15: Runoff Method Applied for 1.2" Water Quality Event: | L15: Applied to RIDEM Treatment Target?* | M15: STU Type* | O15: STU Soil Type* | P15: Total Area Directed to STU (ft2) | Q15: Impervious Area Directed to STU (ft2) | R15: Provided Pretreat-ment Vol. (ft3) | S15: STU Storage Volume (ft3) | T15: Treatment Depth (in.) | U15: Effective IC Reduction (acres) | V15: Test Pit ID | X15: Depth of Boring/Test Pit (ft.) | Y15: Top of Filter Elev. (ft.) | Z15: SHGT Elev. (ft.) | AA15: Separation Distance (ft.) | AB15: Hydrologic Soil Group A, B, C or D | AC15: Exfiltration Rate Applied (in./hr.) | AG15: Impervious Area (acres) | AH15: Pervious Area Directed to STU (ft2) | AI15: Pervious Area (acres) | AJ15: % Impervious | AK15: Row Function | AL15: TSS Removal Credit (%) | AM15: P Removal Credit (%) | AN15: TSS Reduction Factor | AO15: Phosphorous Reduction Factor | AP15: Runoff Factor | AQ15: Flow Factor | AR15: Pervious Cover Factor
D16: 1.2" Peak Flow | F16: 1-yr. Peak Flow | H16: 10-yr. Peak Flow | J16: 100-yr. Peak Flow
D17: Pre (cfs) | E17: Post (cfs) | F17: Pre (cfs) | G17: Post (cfs) | H17: Pre (cfs) | I17: Post (cfs) | J17: Pre (cfs) | K17: Post (cfs) | V17: Primary | W17: Secondary
T18: =IFERROR((S18/Q18*12),"") ->  | U18: =IFERROR((AG18*AR18),"") ->  | AG18: =IF(A18="","",Q18/43560) ->  | AH18: =IF(M18="","",(IF((P18-Q18)<=0,0,(P18-Q18)))) ->  | AI18: =IF(A18="","",AH18/43560) ->  | AJ18: =IF(A18="","",(AG18/(AG18+AI18))) ->  | AK18: =IF(ISBLANK(M18),"",IF(ISBLANK(O18),"",RowFunc(M18,O18))) ->  | AL18: =IFERROR(IF($AJ18>=0.5,INTERPRNG_h($T18,'STU Treatment Values'!$N$5:$W$38,0,1,AK18),INTERPRNG_h($T18,'STU Treatment Values'!$N$40:$W$73,0,1,$AK18)),"") ->  | AM18: =IFERROR(IF($AJ18>=0.5,INTERPRNG_h($T18,'STU Treatment Values'!$B$5:$K$38,0,1,$AK18),INTERPRNG_h($T18,'STU Treatment Values'!$B$40:$K$73,0,1,$AK18)),"") ->  | AN18: =IFERROR(IF(AL18/0.9>1,1,AL18/0.9),"") ->  | AO18: =IFERROR(IF(AM18/0.9>1,1,AM18/0.9),"") ->  | AP18: =IFERROR(INTERPRNG_h($T18,'STU Treatment Values'!$B$112:$K$145,0,1,$AK18),"") ->  | AQ18: =IFERROR(INTERPRNG_h($T18,'STU Treatment Values'!$B$76:$K$109,0,1,$AK18),"") ->  | AR18: =IFERROR((AN18+AO18+AP18+AQ18)/4,"") -> 
T19: =IFERROR((S19/Q19*12),"") ->  | U19: =IFERROR((AG19*AR19),"") ->  | AG19: =IF(A19="","",Q19/43560) ->  | AH19: =IF(M19="","",(IF((P19-Q19)<=0,0,(P19-Q19)))) ->  | AI19: =IF(A19="","",AH19/43560) ->  | AJ19: =IF(A19="","",(AG19/(AG19+AI19))) ->  | AK19: =IF(ISBLANK(M19),"",IF(ISBLANK(O19),"",RowFunc(M19,O19))) ->  | AL19: =IFERROR(IF($AJ19>=0.5,INTERPRNG_h($T19,'STU Treatment Values'!$N$5:$W$38,0,1,AK19),INTERPRNG_h($T19,'STU Treatment Values'!$N$40:$W$73,0,1,$AK19)),"") ->  | AM19: =IFERROR(IF($AJ19>=0.5,INTERPRNG_h($T19,'STU Treatment Values'!$B$5:$K$38,0,1,$AK19),INTERPRNG_h($T19,'STU Treatment Values'!$B$40:$K$73,0,1,$AK19)),"") ->  | AN19: =IFERROR(IF(AL19/0.9>1,1,AL19/0.9),"") ->  | AO19: =IFERROR(IF(AM19/0.9>1,1,AM19/0.9),"") ->  | AP19: =IFERROR(INTERPRNG_h($T19,'STU Treatment Values'!$B$112:$K$145,0,1,$AK19),"") ->  | AQ19: =IFERROR(INTERPRNG_h($T19,'STU Treatment Values'!$B$76:$K$109,0,1,$AK19),"") ->  | AR19: =IFERROR((AN19+AO19+AP19+AQ19)/4,"") -> 
U20: =IFERROR((AG20*AR20),"") ->  | AG20: =IF(A20="","",Q20/43560) ->  | AH20: =IF(M20="","",(IF((P20-Q20)<=0,0,(P20-Q20)))) ->  | AI20: =IF(A20="","",AH20/43560) ->  | AJ20: =IF(A20="","",(AG20/(AG20+AI20))) ->  | AK20: =IF(ISBLANK(M20),"",IF(ISBLANK(O20),"",RowFunc(M20,O20))) ->  | AL20: =IFERROR(IF($AJ20>=0.5,INTERPRNG_h($T20,'STU Treatment Values'!$N$5:$W$38,0,1,AK20),INTERPRNG_h($T20,'STU Treatment Values'!$N$40:$W$73,0,1,$AK20)),"") ->  | AM20: =IFERROR(IF($AJ20>=0.5,INTERPRNG_h($T20,'STU Treatment Values'!$B$5:$K$38,0,1,$AK20),INTERPRNG_h($T20,'STU Treatment Values'!$B$40:$K$73,0,1,$AK20)),"") ->  | AN20: =IFERROR(IF(AL20/0.9>1,1,AL20/0.9),"") ->  | AO20: =IFERROR(IF(AM20/0.9>1,1,AM20/0.9),"") ->  | AP20: =IFERROR(INTERPRNG_h($T20,'STU Treatment Values'!$B$112:$K$145,0,1,$AK20),"") ->  | AQ20: =IFERROR(INTERPRNG_h($T20,'STU Treatment Values'!$B$76:$K$109,0,1,$AK20),"") ->  | AR20: =IFERROR((AN20+AO20+AP20+AQ20)/4,"") -> 
AK21: =IF(ISBLANK(M21),"",IF(ISBLANK(O21),"",RowFunc(M21,O21))) ->  | AL21: =IFERROR(IF($AJ21>=0.5,INTERPRNG_h($T21,'STU Treatment Values'!$N$5:$W$38,0,1,AK21),INTERPRNG_h($T21,'STU Treatment Values'!$N$40:$W$73,0,1,$AK21)),"") ->  | AM21: =IFERROR(IF($AJ21>=0.5,INTERPRNG_h($T21,'STU Treatment Values'!$B$5:$K$38,0,1,$AK21),INTERPRNG_h($T21,'STU Treatment Values'!$B$40:$K$73,0,1,$AK21)),"") ->  | AP21: =IFERROR(INTERPRNG_h($T21,'STU Treatment Values'!$B$112:$K$145,0,1,$AK21),"") ->  | AQ21: =IFERROR(INTERPRNG_h($T21,'STU Treatment Values'!$B$76:$K$109,0,1,$AK21),"") -> 
AK22: =IF(ISBLANK(M22),"",IF(ISBLANK(O22),"",RowFunc(M22,O22))) ->  | AL22: =IFERROR(IF($AJ22>=0.5,INTERPRNG_h($T22,'STU Treatment Values'!$N$5:$W$38,0,1,AK22),INTERPRNG_h($T22,'STU Treatment Values'!$N$40:$W$73,0,1,$AK22)),"") ->  | AM22: =IFERROR(IF($AJ22>=0.5,INTERPRNG_h($T22,'STU Treatment Values'!$B$5:$K$38,0,1,$AK22),INTERPRNG_h($T22,'STU Treatment Values'!$B$40:$K$73,0,1,$AK22)),"") ->  | AP22: =IFERROR(INTERPRNG_h($T22,'STU Treatment Values'!$B$112:$K$145,0,1,$AK22),"") ->  | AQ22: =IFERROR(INTERPRNG_h($T22,'STU Treatment Values'!$B$76:$K$109,0,1,$AK22),"") -> 
AK23: =IF(ISBLANK(M23),"",IF(ISBLANK(O23),"",RowFunc(M23,O23))) ->  | AL23: =IFERROR(IF($AJ23>=0.5,INTERPRNG_h($T23,'STU Treatment Values'!$N$5:$W$38,0,1,AK23),INTERPRNG_h($T23,'STU Treatment Values'!$N$40:$W$73,0,1,$AK23)),"") ->  | AM23: =IFERROR(IF($AJ23>=0.5,INTERPRNG_h($T23,'STU Treatment Values'!$B$5:$K$38,0,1,$AK23),INTERPRNG_h($T23,'STU Treatment Values'!$B$40:$K$73,0,1,$AK23)),"") ->  | AP23: =IFERROR(INTERPRNG_h($T23,'STU Treatment Values'!$B$112:$K$145,0,1,$AK23),"") ->  | AQ23: =IFERROR(INTERPRNG_h($T23,'STU Treatment Values'!$B$76:$K$109,0,1,$AK23),"") -> 
AK24: =IF(ISBLANK(M24),"",IF(ISBLANK(O24),"",RowFunc(M24,O24))) ->  | AL24: =IFERROR(IF($AJ24>=0.5,INTERPRNG_h($T24,'STU Treatment Values'!$N$5:$W$38,0,1,AK24),INTERPRNG_h($T24,'STU Treatment Values'!$N$40:$W$73,0,1,$AK24)),"") ->  | AM24: =IFERROR(IF($AJ24>=0.5,INTERPRNG_h($T24,'STU Treatment Values'!$B$5:$K$38,0,1,$AK24),INTERPRNG_h($T24,'STU Treatment Values'!$B$40:$K$73,0,1,$AK24)),"") ->  | AP24: =IFERROR(INTERPRNG_h($T24,'STU Treatment Values'!$B$112:$K$145,0,1,$AK24),"") ->  | AQ24: =IFERROR(INTERPRNG_h($T24,'STU Treatment Values'!$B$76:$K$109,0,1,$AK24),"") -> 
U25: =IFERROR((AG25*AR25),"") ->  | AK25: =IF(ISBLANK(M25),"",IF(ISBLANK(O25),"",RowFunc(M25,O25))) ->  | AL25: =IFERROR(IF($AJ25>=0.5,INTERPRNG_h($T25,'STU Treatment Values'!$N$5:$W$38,0,1,AK25),INTERPRNG_h($T25,'STU Treatment Values'!$N$40:$W$73,0,1,$AK25)),"") ->  | AM25: =IFERROR(IF($AJ25>=0.5,INTERPRNG_h($T25,'STU Treatment Values'!$B$5:$K$38,0,1,$AK25),INTERPRNG_h($T25,'STU Treatment Values'!$B$40:$K$73,0,1,$AK25)),"") ->  | AP25: =IFERROR(INTERPRNG_h($T25,'STU Treatment Values'!$B$112:$K$145,0,1,$AK25),"") ->  | AQ25: =IFERROR(INTERPRNG_h($T25,'STU Treatment Values'!$B$76:$K$109,0,1,$AK25),"") -> 
AK26: =IF(ISBLANK(M26),"",IF(ISBLANK(O26),"",RowFunc(M26,O26))) ->  | AL26: =IFERROR(IF($AJ26>=0.5,INTERPRNG_h($T26,'STU Treatment Values'!$N$5:$W$38,0,1,AK26),INTERPRNG_h($T26,'STU Treatment Values'!$N$40:$W$73,0,1,$AK26)),"") ->  | AM26: =IFERROR(IF($AJ26>=0.5,INTERPRNG_h($T26,'STU Treatment Values'!$B$5:$K$38,0,1,$AK26),INTERPRNG_h($T26,'STU Treatment Values'!$B$40:$K$73,0,1,$AK26)),"") ->  | AP26: =IFERROR(INTERPRNG_h($T26,'STU Treatment Values'!$B$112:$K$145,0,1,$AK26),"") ->  | AQ26: =IFERROR(INTERPRNG_h($T26,'STU Treatment Values'!$B$76:$K$109,0,1,$AK26),"") -> 
AK27: =IF(ISBLANK(M27),"",IF(ISBLANK(O27),"",RowFunc(M27,O27))) ->  | AL27: =IFERROR(IF($AJ27>=0.5,INTERPRNG_h($T27,'STU Treatment Values'!$N$5:$W$38,0,1,AK27),INTERPRNG_h($T27,'STU Treatment Values'!$N$40:$W$73,0,1,$AK27)),"") ->  | AM27: =IFERROR(IF($AJ27>=0.5,INTERPRNG_h($T27,'STU Treatment Values'!$B$5:$K$38,0,1,$AK27),INTERPRNG_h($T27,'STU Treatment Values'!$B$40:$K$73,0,1,$AK27)),"") ->  | AP27: =IFERROR(INTERPRNG_h($T27,'STU Treatment Values'!$B$112:$K$145,0,1,$AK27),"") ->  | AQ27: =IFERROR(INTERPRNG_h($T27,'STU Treatment Values'!$B$76:$K$109,0,1,$AK27),"") -> 
AK28: =IF(ISBLANK(M28),"",IF(ISBLANK(O28),"",RowFunc(M28,O28))) ->  | AL28: =IFERROR(IF($AJ28>=0.5,INTERPRNG_h($T28,'STU Treatment Values'!$N$5:$W$38,0,1,AK28),INTERPRNG_h($T28,'STU Treatment Values'!$N$40:$W$73,0,1,$AK28)),"") ->  | AM28: =IFERROR(IF($AJ28>=0.5,INTERPRNG_h($T28,'STU Treatment Values'!$B$5:$K$38,0,1,$AK28),INTERPRNG_h($T28,'STU Treatment Values'!$B$40:$K$73,0,1,$AK28)),"") ->  | AP28: =IFERROR(INTERPRNG_h($T28,'STU Treatment Values'!$B$112:$K$145,0,1,$AK28),"") ->  | AQ28: =IFERROR(INTERPRNG_h($T28,'STU Treatment Values'!$B$76:$K$109,0,1,$AK28),"") -> 
AK29: =IF(ISBLANK(M29),"",IF(ISBLANK(O29),"",RowFunc(M29,O29))) ->  | AL29: =IFERROR(IF($AJ29>=0.5,INTERPRNG_h($T29,'STU Treatment Values'!$N$5:$W$38,0,1,AK29),INTERPRNG_h($T29,'STU Treatment Values'!$N$40:$W$73,0,1,$AK29)),"") ->  | AM29: =IFERROR(IF($AJ29>=0.5,INTERPRNG_h($T29,'STU Treatment Values'!$B$5:$K$38,0,1,$AK29),INTERPRNG_h($T29,'STU Treatment Values'!$B$40:$K$73,0,1,$AK29)),"") ->  | AP29: =IFERROR(INTERPRNG_h($T29,'STU Treatment Values'!$B$112:$K$145,0,1,$AK29),"") ->  | AQ29: =IFERROR(INTERPRNG_h($T29,'STU Treatment Values'!$B$76:$K$109,0,1,$AK29),"") -> 
AK30: =IF(ISBLANK(M30),"",IF(ISBLANK(O30),"",RowFunc(M30,O30))) ->  | AL30: =IFERROR(IF($AJ30>=0.5,INTERPRNG_h($T30,'STU Treatment Values'!$N$5:$W$38,0,1,AK30),INTERPRNG_h($T30,'STU Treatment Values'!$N$40:$W$73,0,1,$AK30)),"") ->  | AM30: =IFERROR(IF($AJ30>=0.5,INTERPRNG_h($T30,'STU Treatment Values'!$B$5:$K$38,0,1,$AK30),INTERPRNG_h($T30,'STU Treatment Values'!$B$40:$K$73,0,1,$AK30)),"") ->  | AP30: =IFERROR(INTERPRNG_h($T30,'STU Treatment Values'!$B$112:$K$145,0,1,$AK30),"") ->  | AQ30: =IFERROR(INTERPRNG_h($T30,'STU Treatment Values'!$B$76:$K$109,0,1,$AK30),"") -> 
AK31: =IF(ISBLANK(M31),"",IF(ISBLANK(O31),"",RowFunc(M31,O31))) ->  | AL31: =IFERROR(IF($AJ31>=0.5,INTERPRNG_h($T31,'STU Treatment Values'!$N$5:$W$38,0,1,AK31),INTERPRNG_h($T31,'STU Treatment Values'!$N$40:$W$73,0,1,$AK31)),"") ->  | AM31: =IFERROR(IF($AJ31>=0.5,INTERPRNG_h($T31,'STU Treatment Values'!$B$5:$K$38,0,1,$AK31),INTERPRNG_h($T31,'STU Treatment Values'!$B$40:$K$73,0,1,$AK31)),"") ->  | AP31: =IFERROR(INTERPRNG_h($T31,'STU Treatment Values'!$B$112:$K$145,0,1,$AK31),"") ->  | AQ31: =IFERROR(INTERPRNG_h($T31,'STU Treatment Values'!$B$76:$K$109,0,1,$AK31),"") -> 
AK32: =IF(ISBLANK(M32),"",IF(ISBLANK(O32),"",RowFunc(M32,O32))) ->  | AL32: =IFERROR(IF($AJ32>=0.5,INTERPRNG_h($T32,'STU Treatment Values'!$N$5:$W$38,0,1,AK32),INTERPRNG_h($T32,'STU Treatment Values'!$N$40:$W$73,0,1,$AK32)),"") ->  | AM32: =IFERROR(IF($AJ32>=0.5,INTERPRNG_h($T32,'STU Treatment Values'!$B$5:$K$38,0,1,$AK32),INTERPRNG_h($T32,'STU Treatment Values'!$B$40:$K$73,0,1,$AK32)),"") ->  | AP32: =IFERROR(INTERPRNG_h($T32,'STU Treatment Values'!$B$112:$K$145,0,1,$AK32),"") ->  | AQ32: =IFERROR(INTERPRNG_h($T32,'STU Treatment Values'!$B$76:$K$109,0,1,$AK32),"") -> 
AK33: =IF(ISBLANK(M33),"",IF(ISBLANK(O33),"",RowFunc(M33,O33))) ->  | AL33: =IFERROR(IF($AJ33>=0.5,INTERPRNG_h($T33,'STU Treatment Values'!$N$5:$W$38,0,1,AK33),INTERPRNG_h($T33,'STU Treatment Values'!$N$40:$W$73,0,1,$AK33)),"") ->  | AM33: =IFERROR(IF($AJ33>=0.5,INTERPRNG_h($T33,'STU Treatment Values'!$B$5:$K$38,0,1,$AK33),INTERPRNG_h($T33,'STU Treatment Values'!$B$40:$K$73,0,1,$AK33)),"") ->  | AP33: =IFERROR(INTERPRNG_h($T33,'STU Treatment Values'!$B$112:$K$145,0,1,$AK33),"") ->  | AQ33: =IFERROR(INTERPRNG_h($T33,'STU Treatment Values'!$B$76:$K$109,0,1,$AK33),"") -> 
AK34: =IF(ISBLANK(M34),"",IF(ISBLANK(O34),"",RowFunc(M34,O34))) ->  | AL34: =IFERROR(IF($AJ34>=0.5,INTERPRNG_h($T34,'STU Treatment Values'!$N$5:$W$38,0,1,AK34),INTERPRNG_h($T34,'STU Treatment Values'!$N$40:$W$73,0,1,$AK34)),"") ->  | AM34: =IFERROR(IF($AJ34>=0.5,INTERPRNG_h($T34,'STU Treatment Values'!$B$5:$K$38,0,1,$AK34),INTERPRNG_h($T34,'STU Treatment Values'!$B$40:$K$73,0,1,$AK34)),"") ->  | AP34: =IFERROR(INTERPRNG_h($T34,'STU Treatment Values'!$B$112:$K$145,0,1,$AK34),"") ->  | AQ34: =IFERROR(INTERPRNG_h($T34,'STU Treatment Values'!$B$76:$K$109,0,1,$AK34),"") -> 
AK35: =IF(ISBLANK(M35),"",IF(ISBLANK(O35),"",RowFunc(M35,O35))) ->  | AL35: =IFERROR(IF($AJ35>=0.5,INTERPRNG_h($T35,'STU Treatment Values'!$N$5:$W$38,0,1,AK35),INTERPRNG_h($T35,'STU Treatment Values'!$N$40:$W$73,0,1,$AK35)),"") ->  | AM35: =IFERROR(IF($AJ35>=0.5,INTERPRNG_h($T35,'STU Treatment Values'!$B$5:$K$38,0,1,$AK35),INTERPRNG_h($T35,'STU Treatment Values'!$B$40:$K$73,0,1,$AK35)),"") ->  | AP35: =IFERROR(INTERPRNG_h($T35,'STU Treatment Values'!$B$112:$K$145,0,1,$AK35),"") ->  | AQ35: =IFERROR(INTERPRNG_h($T35,'STU Treatment Values'!$B$76:$K$109,0,1,$AK35),"") -> 
AK36: =IF(ISBLANK(M36),"",IF(ISBLANK(O36),"",RowFunc(M36,O36))) ->  | AL36: =IFERROR(IF($AJ36>=0.5,INTERPRNG_h($T36,'STU Treatment Values'!$N$5:$W$38,0,1,AK36),INTERPRNG_h($T36,'STU Treatment Values'!$N$40:$W$73,0,1,$AK36)),"") ->  | AM36: =IFERROR(IF($AJ36>=0.5,INTERPRNG_h($T36,'STU Treatment Values'!$B$5:$K$38,0,1,$AK36),INTERPRNG_h($T36,'STU Treatment Values'!$B$40:$K$73,0,1,$AK36)),"") ->  | AP36: =IFERROR(INTERPRNG_h($T36,'STU Treatment Values'!$B$112:$K$145,0,1,$AK36),"") ->  | AQ36: =IFERROR(INTERPRNG_h($T36,'STU Treatment Values'!$B$76:$K$109,0,1,$AK36),"") -> 
AK37: =IF(ISBLANK(M37),"",IF(ISBLANK(O37),"",RowFunc(M37,O37))) ->  | AL37: =IFERROR(IF($AJ37>=0.5,INTERPRNG_h($T37,'STU Treatment Values'!$N$5:$W$38,0,1,AK37),INTERPRNG_h($T37,'STU Treatment Values'!$N$40:$W$73,0,1,$AK37)),"") ->  | AM37: =IFERROR(IF($AJ37>=0.5,INTERPRNG_h($T37,'STU Treatment Values'!$B$5:$K$38,0,1,$AK37),INTERPRNG_h($T37,'STU Treatment Values'!$B$40:$K$73,0,1,$AK37)),"") ->  | AP37: =IFERROR(INTERPRNG_h($T37,'STU Treatment Values'!$B$112:$K$145,0,1,$AK37),"") ->  | AQ37: =IFERROR(INTERPRNG_h($T37,'STU Treatment Values'!$B$76:$K$109,0,1,$AK37),"") -> 
AK38: =IF(ISBLANK(M38),"",IF(ISBLANK(O38),"",RowFunc(M38,O38))) ->  | AL38: =IFERROR(IF($AJ38>=0.5,INTERPRNG_h($T38,'STU Treatment Values'!$N$5:$W$38,0,1,AK38),INTERPRNG_h($T38,'STU Treatment Values'!$N$40:$W$73,0,1,$AK38)),"") ->  | AM38: =IFERROR(IF($AJ38>=0.5,INTERPRNG_h($T38,'STU Treatment Values'!$B$5:$K$38,0,1,$AK38),INTERPRNG_h($T38,'STU Treatment Values'!$B$40:$K$73,0,1,$AK38)),"") ->  | AP38: =IFERROR(INTERPRNG_h($T38,'STU Treatment Values'!$B$112:$K$145,0,1,$AK38),"") ->  | AQ38: =IFERROR(INTERPRNG_h($T38,'STU Treatment Values'!$B$76:$K$109,0,1,$AK38),"") -> 
AK39: =IF(ISBLANK(M39),"",IF(ISBLANK(O39),"",RowFunc(M39,O39))) ->  | AL39: =IFERROR(IF($AJ39>=0.5,INTERPRNG_h($T39,'STU Treatment Values'!$N$5:$W$38,0,1,AK39),INTERPRNG_h($T39,'STU Treatment Values'!$N$40:$W$73,0,1,$AK39)),"") ->  | AM39: =IFERROR(IF($AJ39>=0.5,INTERPRNG_h($T39,'STU Treatment Values'!$B$5:$K$38,0,1,$AK39),INTERPRNG_h($T39,'STU Treatment Values'!$B$40:$K$73,0,1,$AK39)),"") ->  | AP39: =IFERROR(INTERPRNG_h($T39,'STU Treatment Values'!$B$112:$K$145,0,1,$AK39),"") ->  | AQ39: =IFERROR(INTERPRNG_h($T39,'STU Treatment Values'!$B$76:$K$109,0,1,$AK39),"") -> 
AK40: =IF(ISBLANK(M40),"",IF(ISBLANK(O40),"",RowFunc(M40,O40))) ->  | AL40: =IFERROR(IF($AJ40>=0.5,INTERPRNG_h($T40,'STU Treatment Values'!$N$5:$W$38,0,1,AK40),INTERPRNG_h($T40,'STU Treatment Values'!$N$40:$W$73,0,1,$AK40)),"") ->  | AM40: =IFERROR(IF($AJ40>=0.5,INTERPRNG_h($T40,'STU Treatment Values'!$B$5:$K$38,0,1,$AK40),INTERPRNG_h($T40,'STU Treatment Values'!$B$40:$K$73,0,1,$AK40)),"") ->  | AP40: =IFERROR(INTERPRNG_h($T40,'STU Treatment Values'!$B$112:$K$145,0,1,$AK40),"") ->  | AQ40: =IFERROR(INTERPRNG_h($T40,'STU Treatment Values'!$B$76:$K$109,0,1,$AK40),"") -> 
AK41: =IF(ISBLANK(M41),"",IF(ISBLANK(O41),"",RowFunc(M41,O41))) ->  | AL41: =IFERROR(IF($AJ41>=0.5,INTERPRNG_h($T41,'STU Treatment Values'!$N$5:$W$38,0,1,AK41),INTERPRNG_h($T41,'STU Treatment Values'!$N$40:$W$73,0,1,$AK41)),"") ->  | AM41: =IFERROR(IF($AJ41>=0.5,INTERPRNG_h($T41,'STU Treatment Values'!$B$5:$K$38,0,1,$AK41),INTERPRNG_h($T41,'STU Treatment Values'!$B$40:$K$73,0,1,$AK41)),"") ->  | AP41: =IFERROR(INTERPRNG_h($T41,'STU Treatment Values'!$B$112:$K$145,0,1,$AK41),"") ->  | AQ41: =IFERROR(INTERPRNG_h($T41,'STU Treatment Values'!$B$76:$K$109,0,1,$AK41),"") -> 
AK42: =IF(ISBLANK(M42),"",IF(ISBLANK(O42),"",RowFunc(M42,O42))) ->  | AL42: =IFERROR(IF($AJ42>=0.5,INTERPRNG_h($T42,'STU Treatment Values'!$N$5:$W$38,0,1,AK42),INTERPRNG_h($T42,'STU Treatment Values'!$N$40:$W$73,0,1,$AK42)),"") ->  | AM42: =IFERROR(IF($AJ42>=0.5,INTERPRNG_h($T42,'STU Treatment Values'!$B$5:$K$38,0,1,$AK42),INTERPRNG_h($T42,'STU Treatment Values'!$B$40:$K$73,0,1,$AK42)),"") ->  | AP42: =IFERROR(INTERPRNG_h($T42,'STU Treatment Values'!$B$112:$K$145,0,1,$AK42),"") ->  | AQ42: =IFERROR(INTERPRNG_h($T42,'STU Treatment Values'!$B$76:$K$109,0,1,$AK42),"") -> 
AK43: =IF(ISBLANK(M43),"",IF(ISBLANK(O43),"",RowFunc(M43,O43))) ->  | AL43: =IFERROR(IF($AJ43>=0.5,INTERPRNG_h($T43,'STU Treatment Values'!$N$5:$W$38,0,1,AK43),INTERPRNG_h($T43,'STU Treatment Values'!$N$40:$W$73,0,1,$AK43)),"") ->  | AM43: =IFERROR(IF($AJ43>=0.5,INTERPRNG_h($T43,'STU Treatment Values'!$B$5:$K$38,0,1,$AK43),INTERPRNG_h($T43,'STU Treatment Values'!$B$40:$K$73,0,1,$AK43)),"") ->  | AP43: =IFERROR(INTERPRNG_h($T43,'STU Treatment Values'!$B$112:$K$145,0,1,$AK43),"") ->  | AQ43: =IFERROR(INTERPRNG_h($T43,'STU Treatment Values'!$B$76:$K$109,0,1,$AK43),"") -> 
AK44: =IF(ISBLANK(M44),"",IF(ISBLANK(O44),"",RowFunc(M44,O44))) ->  | AL44: =IFERROR(IF($AJ44>=0.5,INTERPRNG_h($T44,'STU Treatment Values'!$N$5:$W$38,0,1,AK44),INTERPRNG_h($T44,'STU Treatment Values'!$N$40:$W$73,0,1,$AK44)),"") ->  | AM44: =IFERROR(IF($AJ44>=0.5,INTERPRNG_h($T44,'STU Treatment Values'!$B$5:$K$38,0,1,$AK44),INTERPRNG_h($T44,'STU Treatment Values'!$B$40:$K$73,0,1,$AK44)),"") ->  | AP44: =IFERROR(INTERPRNG_h($T44,'STU Treatment Values'!$B$112:$K$145,0,1,$AK44),"") ->  | AQ44: =IFERROR(INTERPRNG_h($T44,'STU Treatment Values'!$B$76:$K$109,0,1,$AK44),"") -> 
AK45: =IF(ISBLANK(M45),"",IF(ISBLANK(O45),"",RowFunc(M45,O45))) ->  | AL45: =IFERROR(IF($AJ45>=0.5,INTERPRNG_h($T45,'STU Treatment Values'!$N$5:$W$38,0,1,AK45),INTERPRNG_h($T45,'STU Treatment Values'!$N$40:$W$73,0,1,$AK45)),"") ->  | AM45: =IFERROR(IF($AJ45>=0.5,INTERPRNG_h($T45,'STU Treatment Values'!$B$5:$K$38,0,1,$AK45),INTERPRNG_h($T45,'STU Treatment Values'!$B$40:$K$73,0,1,$AK45)),"") ->  | AP45: =IFERROR(INTERPRNG_h($T45,'STU Treatment Values'!$B$112:$K$145,0,1,$AK45),"") ->  | AQ45: =IFERROR(INTERPRNG_h($T45,'STU Treatment Values'!$B$76:$K$109,0,1,$AK45),"") -> 
AK46: =IF(ISBLANK(M46),"",IF(ISBLANK(O46),"",RowFunc(M46,O46))) ->  | AL46: =IFERROR(IF($AJ46>=0.5,INTERPRNG_h($T46,'STU Treatment Values'!$N$5:$W$38,0,1,AK46),INTERPRNG_h($T46,'STU Treatment Values'!$N$40:$W$73,0,1,$AK46)),"") ->  | AM46: =IFERROR(IF($AJ46>=0.5,INTERPRNG_h($T46,'STU Treatment Values'!$B$5:$K$38,0,1,$AK46),INTERPRNG_h($T46,'STU Treatment Values'!$B$40:$K$73,0,1,$AK46)),"") ->  | AP46: =IFERROR(INTERPRNG_h($T46,'STU Treatment Values'!$B$112:$K$145,0,1,$AK46),"") ->  | AQ46: =IFERROR(INTERPRNG_h($T46,'STU Treatment Values'!$B$76:$K$109,0,1,$AK46),"") -> 
T47: =IFERROR((S47/Q47*12),"") ->  | AK47: =IF(ISBLANK(M47),"",IF(ISBLANK(O47),"",RowFunc(M47,O47))) ->  | AL47: =IFERROR(IF($AJ47>=0.5,INTERPRNG_h($T47,'STU Treatment Values'!$N$5:$W$38,0,1,AK47),INTERPRNG_h($T47,'STU Treatment Values'!$N$40:$W$73,0,1,$AK47)),"") ->  | AM47: =IFERROR(IF($AJ47>=0.5,INTERPRNG_h($T47,'STU Treatment Values'!$B$5:$K$38,0,1,$AK47),INTERPRNG_h($T47,'STU Treatment Values'!$B$40:$K$73,0,1,$AK47)),"") ->  | AP47: =IFERROR(INTERPRNG_h($T47,'STU Treatment Values'!$B$112:$K$145,0,1,$AK47),"") ->  | AQ47: =IFERROR(INTERPRNG_h($T47,'STU Treatment Values'!$B$76:$K$109,0,1,$AK47),"") -> 
A49: Table 2: Summary of Existing IC Disconnection Areas (Row D) | AG49: Table 2-1: Existing IC Disconnection Calculations
A51: Project Information | D51: Water Quality Treatment Calculations | O51: Errors and Warnings | AJ51: Break Ties between HSG Percentages (Hide Columns)
A52: STU ID | B52: WBID | C52: DP No. | D52: Applied to RIDEM Treatment Target?* | E52: STU Type* | G52: IC Area (ft2) | H52: Receiving Parcel Pervious Area (ft2) | I52: % A Soils | J52: % B Soils | K52: % C Soils | L52: % D Soils | M52: IC : Pervious Cover Ratio | N52: Effective IC Reduction (acre) | O52: Parcel qualifies as non-discharge area (based on the IC:Pervious Cover Ratio and HSG Composition) | P52: Sum of HSG Percentages does not equal 100%. | AG52: Existing IC (acre) (Hide Column) | AH52: Round Area Ratio (Hide Column) | AI52: Check HSG Percent Total (Hide Column) | AJ52: A | AK52: B | AL52: C | AM52: D | AN52: Most Conservative HSG (Hide Column)
M53: =IF(AH53="","",IF(AH53="Parcel Ineligible; Receiving Parcel Area too small","Parcel Ineligible; Receiving Parcel Area too small",IF(G53<H53,"1:"&ROUND(AH53,1),ROUND(1/AH53,1)&":1"))) ->  | N53: =IFERROR(IF(AND(P53="",A53<>""),AG53*((I53*INTERPRNG_h(AH53,'IC Treatment Values'!$B$2:$M$3,1,1,2))+(J53*INTERPRNG_h(AH53,'IC Treatment Values'!$B$2:$M$4,1,1,3))+(K53*INTERPRNG_h(AH53,'IC Treatment Values'!$B$2:$M$5,1,1,4))+(L53*INTERPRNG_h(AH53,'IC Treatment Values'!$B$2:$M$6,1,1,5))),""),"") ->  | O53: =IFERROR(IF(AH53="","",IF(AND(AN53="A",I53>=0.5,AH53>=30),"X",IF(AND(AN53="B",J53>=0.5,AH53>=50),"X",IF(AND(AN53="C",K53>=0.5,AH53>=70),"X","")))),"") ->  | P53: =IF(AI53="","",IF(OR(AI53>1,AI53<1),"X","")) ->  | AG53: =IF(A53="","",G53/43560) ->  | AH53: =IFERROR(IF((G53/H53)>8,"Parcel Ineligible; Receiving Parcel Area too small",IF(G53 < H53,(H53/G53),IF(H53 < (((H53+G53)/2) + G53),H53/G53,""))),"") ->  | AI53: =IF(AND(I53="",J53="",K53="",L53=""),"",SUM(I53:L53)) ->  | AJ53: =(COUNTIF(I53:$I53,I53)-1)*0.00001+I53 -> -1e-05 | AK53: =(COUNTIF($I53:J53,J53)-1)*0.00001+J53 -> -1e-05 | AL53: =(COUNTIF($I53:K53,K53)-1)*0.00001+K53 -> -1e-05 | AM53: =(COUNTIF($I53:L53,L53)-1)*0.00001+L53 -> -1e-05 | AN53: =IF(AND(I53="",J53="",K53="",L53=""),"",INDEX(AJ$52:AM$52,MATCH(MAX(AJ53:AM53),AJ53:AM53,0))) -> 
M54: =IF(AH54="","",IF(AH54="Parcel Ineligible; Receiving Parcel Area too small","Parcel Ineligible; Receiving Parcel Area too small",IF(G54<H54,"1:"&ROUND(AH54,1),ROUND(1/AH54,1)&":1"))) ->  | N54: =IFERROR(IF(AND(P54="",A54<>""),AG54*((I54*INTERPRNG_h(AH54,'IC Treatment Values'!$B$2:$M$3,1,1,2))+(J54*INTERPRNG_h(AH54,'IC Treatment Values'!$B$2:$M$4,1,1,3))+(K54*INTERPRNG_h(AH54,'IC Treatment Values'!$B$2:$M$5,1,1,4))+(L54*INTERPRNG_h(AH54,'IC Treatment Values'!$B$2:$M$6,1,1,5))),""),"") ->  | O54: =IFERROR(IF(AH54="","",IF(AND(AN54="A",I54>=0.5,AH54>=30),"X",IF(AND(AN54="B",J54>=0.5,AH54>=50),"X",IF(AND(AN54="C",K54>=0.5,AH54>=70),"X","")))),"") ->  | P54: =IF(AI54="","",IF(OR(AI54>1,AI54<1),"X","")) ->  | AG54: =IF(A54="","",G54/43560) ->  | AH54: =IFERROR(IF((G54/H54)>8,"Parcel Ineligible; Receiving Parcel Area too small",IF(G54 < H54,(H54/G54),IF(H54 < (((H54+G54)/2) + G54),H54/G54,""))),"") ->  | AI54: =IF(AND(I54="",J54="",K54="",L54=""),"",SUM(I54:L54)) ->  | AJ54: =(COUNTIF(I54:$I54,I54)-1)*0.00001+I54 -> -1e-05 | AK54: =(COUNTIF($I54:J54,J54)-1)*0.00001+J54 -> -1e-05 | AL54: =(COUNTIF($I54:K54,K54)-1)*0.00001+K54 -> -1e-05 | AM54: =(COUNTIF($I54:L54,L54)-1)*0.00001+L54 -> -1e-05
N55: =IFERROR(IF(AND(P55="",A55<>""),AG55*((I55*INTERPRNG_h(AH55,'IC Treatment Values'!$B$2:$M$3,1,1,2))+(J55*INTERPRNG_h(AH55,'IC Treatment Values'!$B$2:$M$4,1,1,3))+(K55*INTERPRNG_h(AH55,'IC Treatment Values'!$B$2:$M$5,1,1,4))+(L55*INTERPRNG_h(AH55,'IC Treatment Values'!$B$2:$M$6,1,1,5))),""),"") ->  | O55: =IFERROR(IF(AH55="","",IF(AND(AN55="A",I55>=0.5,AH55>=30),"X",IF(AND(AN55="B",J55>=0.5,AH55>=50),"X",IF(AND(AN55="C",K55>=0.5,AH55>=70),"X","")))),"") ->  | P55: =IF(AI55="","",IF(OR(AI55>1,AI55<1),"X","")) ->  | AG55: =IF(A55="","",G55/43560) ->  | AH55: =IFERROR(IF((G55/H55)>8,"Parcel Ineligible; Receiving Parcel Area too small",IF(G55 < H55,(H55/G55),IF(H55 < (((H55+G55)/2) + G55),H55/G55,""))),"") ->  | AI55: =IF(AND(I55="",J55="",K55="",L55=""),"",SUM(I55:L55)) ->  | AJ55: =(COUNTIF(I55:$I55,I55)-1)*0.00001+I55 -> -1e-05 | AK55: =(COUNTIF($I55:J55,J55)-1)*0.00001+J55 -> -1e-05 | AL55: =(COUNTIF($I55:K55,K55)-1)*0.00001+K55 -> -1e-05 | AM55: =(COUNTIF($I55:L55,L55)-1)*0.00001+L55 -> -1e-05
N56: =IFERROR(IF(AND(P56="",A56<>""),AG56*((I56*INTERPRNG_h(AH56,'IC Treatment Values'!$B$2:$M$3,1,1,2))+(J56*INTERPRNG_h(AH56,'IC Treatment Values'!$B$2:$M$4,1,1,3))+(K56*INTERPRNG_h(AH56,'IC Treatment Values'!$B$2:$M$5,1,1,4))+(L56*INTERPRNG_h(AH56,'IC Treatment Values'!$B$2:$M$6,1,1,5))),""),"") ->  | AJ56: =(COUNTIF(I56:$I56,I56)-1)*0.00001+I56 -> -1e-05 | AK56: =(COUNTIF($I56:J56,J56)-1)*0.00001+J56 -> -1e-05 | AL56: =(COUNTIF($I56:K56,K56)-1)*0.00001+K56 -> -1e-05 | AM56: =(COUNTIF($I56:L56,L56)-1)*0.00001+L56 -> -1e-05
N57: =IFERROR(IF(AND(P57="",A57<>""),AG57*((I57*INTERPRNG_h(AH57,'IC Treatment Values'!$B$2:$M$3,1,1,2))+(J57*INTERPRNG_h(AH57,'IC Treatment Values'!$B$2:$M$4,1,1,3))+(K57*INTERPRNG_h(AH57,'IC Treatment Values'!$B$2:$M$5,1,1,4))+(L57*INTERPRNG_h(AH57,'IC Treatment Values'!$B$2:$M$6,1,1,5))),""),"") ->  | AJ57: =(COUNTIF(I57:$I57,I57)-1)*0.00001+I57 -> -1e-05 | AK57: =(COUNTIF($I57:J57,J57)-1)*0.00001+J57 -> -1e-05 | AL57: =(COUNTIF($I57:K57,K57)-1)*0.00001+K57 -> -1e-05 | AM57: =(COUNTIF($I57:L57,L57)-1)*0.00001+L57 -> -1e-05
N58: =IFERROR(IF(AND(P58="",A58<>""),AG58*((I58*INTERPRNG_h(AH58,'IC Treatment Values'!$B$2:$M$3,1,1,2))+(J58*INTERPRNG_h(AH58,'IC Treatment Values'!$B$2:$M$4,1,1,3))+(K58*INTERPRNG_h(AH58,'IC Treatment Values'!$B$2:$M$5,1,1,4))+(L58*INTERPRNG_h(AH58,'IC Treatment Values'!$B$2:$M$6,1,1,5))),""),"") ->  | AJ58: =(COUNTIF(I58:$I58,I58)-1)*0.00001+I58 -> -1e-05 | AK58: =(COUNTIF($I58:J58,J58)-1)*0.00001+J58 -> -1e-05 | AL58: =(COUNTIF($I58:K58,K58)-1)*0.00001+K58 -> -1e-05 | AM58: =(COUNTIF($I58:L58,L58)-1)*0.00001+L58 -> -1e-05
N59: =IFERROR(IF(AND(P59="",A59<>""),AG59*((I59*INTERPRNG_h(AH59,'IC Treatment Values'!$B$2:$M$3,1,1,2))+(J59*INTERPRNG_h(AH59,'IC Treatment Values'!$B$2:$M$4,1,1,3))+(K59*INTERPRNG_h(AH59,'IC Treatment Values'!$B$2:$M$5,1,1,4))+(L59*INTERPRNG_h(AH59,'IC Treatment Values'!$B$2:$M$6,1,1,5))),""),"") ->  | AJ59: =(COUNTIF(I59:$I59,I59)-1)*0.00001+I59 -> -1e-05 | AK59: =(COUNTIF($I59:J59,J59)-1)*0.00001+J59 -> -1e-05 | AL59: =(COUNTIF($I59:K59,K59)-1)*0.00001+K59 -> -1e-05 | AM59: =(COUNTIF($I59:L59,L59)-1)*0.00001+L59 -> -1e-05
N60: =IFERROR(IF(AND(P60="",A60<>""),AG60*((I60*INTERPRNG_h(AH60,'IC Treatment Values'!$B$2:$M$3,1,1,2))+(J60*INTERPRNG_h(AH60,'IC Treatment Values'!$B$2:$M$4,1,1,3))+(K60*INTERPRNG_h(AH60,'IC Treatment Values'!$B$2:$M$5,1,1,4))+(L60*INTERPRNG_h(AH60,'IC Treatment Values'!$B$2:$M$6,1,1,5))),""),"") ->  | AJ60: =(COUNTIF(I60:$I60,I60)-1)*0.00001+I60 -> -1e-05 | AK60: =(COUNTIF($I60:J60,J60)-1)*0.00001+J60 -> -1e-05 | AL60: =(COUNTIF($I60:K60,K60)-1)*0.00001+K60 -> -1e-05 | AM60: =(COUNTIF($I60:L60,L60)-1)*0.00001+L60 -> -1e-05
N61: =IFERROR(IF(AND(P61="",A61<>""),AG61*((I61*INTERPRNG_h(AH61,'IC Treatment Values'!$B$2:$M$3,1,1,2))+(J61*INTERPRNG_h(AH61,'IC Treatment Values'!$B$2:$M$4,1,1,3))+(K61*INTERPRNG_h(AH61,'IC Treatment Values'!$B$2:$M$5,1,1,4))+(L61*INTERPRNG_h(AH61,'IC Treatment Values'!$B$2:$M$6,1,1,5))),""),"") ->  | AJ61: =(COUNTIF(I61:$I61,I61)-1)*0.00001+I61 -> -1e-05 | AK61: =(COUNTIF($I61:J61,J61)-1)*0.00001+J61 -> -1e-05 | AL61: =(COUNTIF($I61:K61,K61)-1)*0.00001+K61 -> -1e-05 | AM61: =(COUNTIF($I61:L61,L61)-1)*0.00001+L61 -> -1e-05
N62: =IFERROR(IF(AND(P62="",A62<>""),AG62*((I62*INTERPRNG_h(AH62,'IC Treatment Values'!$B$2:$M$3,1,1,2))+(J62*INTERPRNG_h(AH62,'IC Treatment Values'!$B$2:$M$4,1,1,3))+(K62*INTERPRNG_h(AH62,'IC Treatment Values'!$B$2:$M$5,1,1,4))+(L62*INTERPRNG_h(AH62,'IC Treatment Values'!$B$2:$M$6,1,1,5))),""),"") ->  | AJ62: =(COUNTIF(I62:$I62,I62)-1)*0.00001+I62 -> -1e-05 | AK62: =(COUNTIF($I62:J62,J62)-1)*0.00001+J62 -> -1e-05 | AL62: =(COUNTIF($I62:K62,K62)-1)*0.00001+K62 -> -1e-05 | AM62: =(COUNTIF($I62:L62,L62)-1)*0.00001+L62 -> -1e-05
N63: =IFERROR(IF(AND(P63="",A63<>""),AG63*((I63*INTERPRNG_h(AH63,'IC Treatment Values'!$B$2:$M$3,1,1,2))+(J63*INTERPRNG_h(AH63,'IC Treatment Values'!$B$2:$M$4,1,1,3))+(K63*INTERPRNG_h(AH63,'IC Treatment Values'!$B$2:$M$5,1,1,4))+(L63*INTERPRNG_h(AH63,'IC Treatment Values'!$B$2:$M$6,1,1,5))),""),"") ->  | AJ63: =(COUNTIF(I63:$I63,I63)-1)*0.00001+I63 -> -1e-05 | AK63: =(COUNTIF($I63:J63,J63)-1)*0.00001+J63 -> -1e-05 | AL63: =(COUNTIF($I63:K63,K63)-1)*0.00001+K63 -> -1e-05 | AM63: =(COUNTIF($I63:L63,L63)-1)*0.00001+L63 -> -1e-05
M64: =IF(AH64="","",IF(AH64="Parcel Ineligible; Receiving Parcel Area too small","Parcel Ineligible; Receiving Parcel Area too small",IF(G64<H64,"1:"&ROUND(AH64,1),ROUND(1/AH64,1)&":1"))) ->  | N64: =IFERROR(IF(AND(P64="",A64<>""),AG64*((I64*INTERPRNG_h(AH64,'IC Treatment Values'!$B$2:$M$3,1,1,2))+(J64*INTERPRNG_h(AH64,'IC Treatment Values'!$B$2:$M$4,1,1,3))+(K64*INTERPRNG_h(AH64,'IC Treatment Values'!$B$2:$M$5,1,1,4))+(L64*INTERPRNG_h(AH64,'IC Treatment Values'!$B$2:$M$6,1,1,5))),""),"") ->  | AJ64: =(COUNTIF(I64:$I64,I64)-1)*0.00001+I64 -> -1e-05 | AK64: =(COUNTIF($I64:J64,J64)-1)*0.00001+J64 -> -1e-05 | AL64: =(COUNTIF($I64:K64,K64)-1)*0.00001+K64 -> -1e-05 | AM64: =(COUNTIF($I64:L64,L64)-1)*0.00001+L64 -> -1e-05
N65: =IFERROR(IF(AND(P65="",A65<>""),AG65*((I65*INTERPRNG_h(AH65,'IC Treatment Values'!$B$2:$M$3,1,1,2))+(J65*INTERPRNG_h(AH65,'IC Treatment Values'!$B$2:$M$4,1,1,3))+(K65*INTERPRNG_h(AH65,'IC Treatment Values'!$B$2:$M$5,1,1,4))+(L65*INTERPRNG_h(AH65,'IC Treatment Values'!$B$2:$M$6,1,1,5))),""),"") ->  | AJ65: =(COUNTIF(I65:$I65,I65)-1)*0.00001+I65 -> -1e-05 | AK65: =(COUNTIF($I65:J65,J65)-1)*0.00001+J65 -> -1e-05 | AL65: =(COUNTIF($I65:K65,K65)-1)*0.00001+K65 -> -1e-05 | AM65: =(COUNTIF($I65:L65,L65)-1)*0.00001+L65 -> -1e-05
N66: =IFERROR(IF(AND(P66="",A66<>""),AG66*((I66*INTERPRNG_h(AH66,'IC Treatment Values'!$B$2:$M$3,1,1,2))+(J66*INTERPRNG_h(AH66,'IC Treatment Values'!$B$2:$M$4,1,1,3))+(K66*INTERPRNG_h(AH66,'IC Treatment Values'!$B$2:$M$5,1,1,4))+(L66*INTERPRNG_h(AH66,'IC Treatment Values'!$B$2:$M$6,1,1,5))),""),"") ->  | AJ66: =(COUNTIF(I66:$I66,I66)-1)*0.00001+I66 -> -1e-05 | AK66: =(COUNTIF($I66:J66,J66)-1)*0.00001+J66 -> -1e-05 | AL66: =(COUNTIF($I66:K66,K66)-1)*0.00001+K66 -> -1e-05 | AM66: =(COUNTIF($I66:L66,L66)-1)*0.00001+L66 -> -1e-05
N67: =IFERROR(IF(AND(P67="",A67<>""),AG67*((I67*INTERPRNG_h(AH67,'IC Treatment Values'!$B$2:$M$3,1,1,2))+(J67*INTERPRNG_h(AH67,'IC Treatment Values'!$B$2:$M$4,1,1,3))+(K67*INTERPRNG_h(AH67,'IC Treatment Values'!$B$2:$M$5,1,1,4))+(L67*INTERPRNG_h(AH67,'IC Treatment Values'!$B$2:$M$6,1,1,5))),""),"") ->  | AJ67: =(COUNTIF(I67:$I67,I67)-1)*0.00001+I67 -> -1e-05 | AK67: =(COUNTIF($I67:J67,J67)-1)*0.00001+J67 -> -1e-05 | AL67: =(COUNTIF($I67:K67,K67)-1)*0.00001+K67 -> -1e-05 | AM67: =(COUNTIF($I67:L67,L67)-1)*0.00001+L67 -> -1e-05
N68: =IFERROR(IF(AND(P68="",A68<>""),AG68*((I68*INTERPRNG_h(AH68,'IC Treatment Values'!$B$2:$M$3,1,1,2))+(J68*INTERPRNG_h(AH68,'IC Treatment Values'!$B$2:$M$4,1,1,3))+(K68*INTERPRNG_h(AH68,'IC Treatment Values'!$B$2:$M$5,1,1,4))+(L68*INTERPRNG_h(AH68,'IC Treatment Values'!$B$2:$M$6,1,1,5))),""),"") ->  | AJ68: =(COUNTIF(I68:$I68,I68)-1)*0.00001+I68 -> -1e-05 | AK68: =(COUNTIF($I68:J68,J68)-1)*0.00001+J68 -> -1e-05 | AL68: =(COUNTIF($I68:K68,K68)-1)*0.00001+K68 -> -1e-05 | AM68: =(COUNTIF($I68:L68,L68)-1)*0.00001+L68 -> -1e-05
N69: =IFERROR(IF(AND(P69="",A69<>""),AG69*((I69*INTERPRNG_h(AH69,'IC Treatment Values'!$B$2:$M$3,1,1,2))+(J69*INTERPRNG_h(AH69,'IC Treatment Values'!$B$2:$M$4,1,1,3))+(K69*INTERPRNG_h(AH69,'IC Treatment Values'!$B$2:$M$5,1,1,4))+(L69*INTERPRNG_h(AH69,'IC Treatment Values'!$B$2:$M$6,1,1,5))),""),"") ->  | AJ69: =(COUNTIF(I69:$I69,I69)-1)*0.00001+I69 -> -1e-05 | AK69: =(COUNTIF($I69:J69,J69)-1)*0.00001+J69 -> -1e-05 | AL69: =(COUNTIF($I69:K69,K69)-1)*0.00001+K69 -> -1e-05 | AM69: =(COUNTIF($I69:L69,L69)-1)*0.00001+L69 -> -1e-05
N70: =IFERROR(IF(AND(P70="",A70<>""),AG70*((I70*INTERPRNG_h(AH70,'IC Treatment Values'!$B$2:$M$3,1,1,2))+(J70*INTERPRNG_h(AH70,'IC Treatment Values'!$B$2:$M$4,1,1,3))+(K70*INTERPRNG_h(AH70,'IC Treatment Values'!$B$2:$M$5,1,1,4))+(L70*INTERPRNG_h(AH70,'IC Treatment Values'!$B$2:$M$6,1,1,5))),""),"") ->  | AJ70: =(COUNTIF(I70:$I70,I70)-1)*0.00001+I70 -> -1e-05 | AK70: =(COUNTIF($I70:J70,J70)-1)*0.00001+J70 -> -1e-05 | AL70: =(COUNTIF($I70:K70,K70)-1)*0.00001+K70 -> -1e-05 | AM70: =(COUNTIF($I70:L70,L70)-1)*0.00001+L70 -> -1e-05
N71: =IFERROR(IF(AND(P71="",A71<>""),AG71*((I71*INTERPRNG_h(AH71,'IC Treatment Values'!$B$2:$M$3,1,1,2))+(J71*INTERPRNG_h(AH71,'IC Treatment Values'!$B$2:$M$4,1,1,3))+(K71*INTERPRNG_h(AH71,'IC Treatment Values'!$B$2:$M$5,1,1,4))+(L71*INTERPRNG_h(AH71,'IC Treatment Values'!$B$2:$M$6,1,1,5))),""),"") ->  | AJ71: =(COUNTIF(I71:$I71,I71)-1)*0.00001+I71 -> -1e-05 | AK71: =(COUNTIF($I71:J71,J71)-1)*0.00001+J71 -> -1e-05 | AL71: =(COUNTIF($I71:K71,K71)-1)*0.00001+K71 -> -1e-05 | AM71: =(COUNTIF($I71:L71,L71)-1)*0.00001+L71 -> -1e-05
N72: =IFERROR(IF(AND(P72="",A72<>""),AG72*((I72*INTERPRNG_h(AH72,'IC Treatment Values'!$B$2:$M$3,1,1,2))+(J72*INTERPRNG_h(AH72,'IC Treatment Values'!$B$2:$M$4,1,1,3))+(K72*INTERPRNG_h(AH72,'IC Treatment Values'!$B$2:$M$5,1,1,4))+(L72*INTERPRNG_h(AH72,'IC Treatment Values'!$B$2:$M$6,1,1,5))),""),"") ->  | AJ72: =(COUNTIF(I72:$I72,I72)-1)*0.00001+I72 -> -1e-05 | AK72: =(COUNTIF($I72:J72,J72)-1)*0.00001+J72 -> -1e-05 | AL72: =(COUNTIF($I72:K72,K72)-1)*0.00001+K72 -> -1e-05 | AM72: =(COUNTIF($I72:L72,L72)-1)*0.00001+L72 -> -1e-05
N73: =IFERROR(IF(AND(P73="",A73<>""),AG73*((I73*INTERPRNG_h(AH73,'IC Treatment Values'!$B$2:$M$3,1,1,2))+(J73*INTERPRNG_h(AH73,'IC Treatment Values'!$B$2:$M$4,1,1,3))+(K73*INTERPRNG_h(AH73,'IC Treatment Values'!$B$2:$M$5,1,1,4))+(L73*INTERPRNG_h(AH73,'IC Treatment Values'!$B$2:$M$6,1,1,5))),""),"") ->  | AJ73: =(COUNTIF(I73:$I73,I73)-1)*0.00001+I73 -> -1e-05 | AK73: =(COUNTIF($I73:J73,J73)-1)*0.00001+J73 -> -1e-05 | AL73: =(COUNTIF($I73:K73,K73)-1)*0.00001+K73 -> -1e-05 | AM73: =(COUNTIF($I73:L73,L73)-1)*0.00001+L73 -> -1e-05
N74: =IFERROR(IF(AND(P74="",A74<>""),AG74*((I74*INTERPRNG_h(AH74,'IC Treatment Values'!$B$2:$M$3,1,1,2))+(J74*INTERPRNG_h(AH74,'IC Treatment Values'!$B$2:$M$4,1,1,3))+(K74*INTERPRNG_h(AH74,'IC Treatment Values'!$B$2:$M$5,1,1,4))+(L74*INTERPRNG_h(AH74,'IC Treatment Values'!$B$2:$M$6,1,1,5))),""),"") ->  | AJ74: =(COUNTIF(I74:$I74,I74)-1)*0.00001+I74 -> -1e-05 | AK74: =(COUNTIF($I74:J74,J74)-1)*0.00001+J74 -> -1e-05 | AL74: =(COUNTIF($I74:K74,K74)-1)*0.00001+K74 -> -1e-05 | AM74: =(COUNTIF($I74:L74,L74)-1)*0.00001+L74 -> -1e-05
N75: =IFERROR(IF(AND(P75="",A75<>""),AG75*((I75*INTERPRNG_h(AH75,'IC Treatment Values'!$B$2:$M$3,1,1,2))+(J75*INTERPRNG_h(AH75,'IC Treatment Values'!$B$2:$M$4,1,1,3))+(K75*INTERPRNG_h(AH75,'IC Treatment Values'!$B$2:$M$5,1,1,4))+(L75*INTERPRNG_h(AH75,'IC Treatment Values'!$B$2:$M$6,1,1,5))),""),"") ->  | AJ75: =(COUNTIF(I75:$I75,I75)-1)*0.00001+I75 -> -1e-05 | AK75: =(COUNTIF($I75:J75,J75)-1)*0.00001+J75 -> -1e-05 | AL75: =(COUNTIF($I75:K75,K75)-1)*0.00001+K75 -> -1e-05 | AM75: =(COUNTIF($I75:L75,L75)-1)*0.00001+L75 -> -1e-05
N76: =IFERROR(IF(AND(P76="",A76<>""),AG76*((I76*INTERPRNG_h(AH76,'IC Treatment Values'!$B$2:$M$3,1,1,2))+(J76*INTERPRNG_h(AH76,'IC Treatment Values'!$B$2:$M$4,1,1,3))+(K76*INTERPRNG_h(AH76,'IC Treatment Values'!$B$2:$M$5,1,1,4))+(L76*INTERPRNG_h(AH76,'IC Treatment Values'!$B$2:$M$6,1,1,5))),""),"") ->  | AJ76: =(COUNTIF(I76:$I76,I76)-1)*0.00001+I76 -> -1e-05 | AK76: =(COUNTIF($I76:J76,J76)-1)*0.00001+J76 -> -1e-05 | AL76: =(COUNTIF($I76:K76,K76)-1)*0.00001+K76 -> -1e-05 | AM76: =(COUNTIF($I76:L76,L76)-1)*0.00001+L76 -> -1e-05
N77: =IFERROR(IF(AND(P77="",A77<>""),AG77*((I77*INTERPRNG_h(AH77,'IC Treatment Values'!$B$2:$M$3,1,1,2))+(J77*INTERPRNG_h(AH77,'IC Treatment Values'!$B$2:$M$4,1,1,3))+(K77*INTERPRNG_h(AH77,'IC Treatment Values'!$B$2:$M$5,1,1,4))+(L77*INTERPRNG_h(AH77,'IC Treatment Values'!$B$2:$M$6,1,1,5))),""),"") ->  | AJ77: =(COUNTIF(I77:$I77,I77)-1)*0.00001+I77 -> -1e-05 | AK77: =(COUNTIF($I77:J77,J77)-1)*0.00001+J77 -> -1e-05 | AL77: =(COUNTIF($I77:K77,K77)-1)*0.00001+K77 -> -1e-05 | AM77: =(COUNTIF($I77:L77,L77)-1)*0.00001+L77 -> -1e-05
N78: =IFERROR(IF(AND(P78="",A78<>""),AG78*((I78*INTERPRNG_h(AH78,'IC Treatment Values'!$B$2:$M$3,1,1,2))+(J78*INTERPRNG_h(AH78,'IC Treatment Values'!$B$2:$M$4,1,1,3))+(K78*INTERPRNG_h(AH78,'IC Treatment Values'!$B$2:$M$5,1,1,4))+(L78*INTERPRNG_h(AH78,'IC Treatment Values'!$B$2:$M$6,1,1,5))),""),"") ->  | AJ78: =(COUNTIF(I78:$I78,I78)-1)*0.00001+I78 -> -1e-05 | AK78: =(COUNTIF($I78:J78,J78)-1)*0.00001+J78 -> -1e-05 | AL78: =(COUNTIF($I78:K78,K78)-1)*0.00001+K78 -> -1e-05 | AM78: =(COUNTIF($I78:L78,L78)-1)*0.00001+L78 -> -1e-05
N79: =IFERROR(IF(AND(P79="",A79<>""),AG79*((I79*INTERPRNG_h(AH79,'IC Treatment Values'!$B$2:$M$3,1,1,2))+(J79*INTERPRNG_h(AH79,'IC Treatment Values'!$B$2:$M$4,1,1,3))+(K79*INTERPRNG_h(AH79,'IC Treatment Values'!$B$2:$M$5,1,1,4))+(L79*INTERPRNG_h(AH79,'IC Treatment Values'!$B$2:$M$6,1,1,5))),""),"") ->  | AJ79: =(COUNTIF(I79:$I79,I79)-1)*0.00001+I79 -> -1e-05 | AK79: =(COUNTIF($I79:J79,J79)-1)*0.00001+J79 -> -1e-05 | AL79: =(COUNTIF($I79:K79,K79)-1)*0.00001+K79 -> -1e-05 | AM79: =(COUNTIF($I79:L79,L79)-1)*0.00001+L79 -> -1e-05
N80: =IFERROR(IF(AND(P80="",A80<>""),AG80*((I80*INTERPRNG_h(AH80,'IC Treatment Values'!$B$2:$M$3,1,1,2))+(J80*INTERPRNG_h(AH80,'IC Treatment Values'!$B$2:$M$4,1,1,3))+(K80*INTERPRNG_h(AH80,'IC Treatment Values'!$B$2:$M$5,1,1,4))+(L80*INTERPRNG_h(AH80,'IC Treatment Values'!$B$2:$M$6,1,1,5))),""),"") ->  | AJ80: =(COUNTIF(I80:$I80,I80)-1)*0.00001+I80 -> -1e-05 | AK80: =(COUNTIF($I80:J80,J80)-1)*0.00001+J80 -> -1e-05 | AL80: =(COUNTIF($I80:K80,K80)-1)*0.00001+K80 -> -1e-05 | AM80: =(COUNTIF($I80:L80,L80)-1)*0.00001+L80 -> -1e-05
N81: =IFERROR(IF(AND(P81="",A81<>""),AG81*((I81*INTERPRNG_h(AH81,'IC Treatment Values'!$B$2:$M$3,1,1,2))+(J81*INTERPRNG_h(AH81,'IC Treatment Values'!$B$2:$M$4,1,1,3))+(K81*INTERPRNG_h(AH81,'IC Treatment Values'!$B$2:$M$5,1,1,4))+(L81*INTERPRNG_h(AH81,'IC Treatment Values'!$B$2:$M$6,1,1,5))),""),"") ->  | AJ81: =(COUNTIF(I81:$I81,I81)-1)*0.00001+I81 -> -1e-05 | AK81: =(COUNTIF($I81:J81,J81)-1)*0.00001+J81 -> -1e-05 | AL81: =(COUNTIF($I81:K81,K81)-1)*0.00001+K81 -> -1e-05 | AM81: =(COUNTIF($I81:L81,L81)-1)*0.00001+L81 -> -1e-05
N82: =IFERROR(IF(AND(P82="",A82<>""),AG82*((I82*INTERPRNG_h(AH82,'IC Treatment Values'!$B$2:$M$3,1,1,2))+(J82*INTERPRNG_h(AH82,'IC Treatment Values'!$B$2:$M$4,1,1,3))+(K82*INTERPRNG_h(AH82,'IC Treatment Values'!$B$2:$M$5,1,1,4))+(L82*INTERPRNG_h(AH82,'IC Treatment Values'!$B$2:$M$6,1,1,5))),""),"") ->  | AJ82: =(COUNTIF(I82:$I82,I82)-1)*0.00001+I82 -> -1e-05 | AK82: =(COUNTIF($I82:J82,J82)-1)*0.00001+J82 -> -1e-05 | AL82: =(COUNTIF($I82:K82,K82)-1)*0.00001+K82 -> -1e-05 | AM82: =(COUNTIF($I82:L82,L82)-1)*0.00001+L82 -> -1e-05
A84: Table 3: Summary of Pavement Removal (Row E)
A86: Project Information | D86: Water Quality Treatment Calculations
A87: STU ID | B87: WBID | C87: DP No. | D87: IC Area (ft2) | E87: Effective IC Reduction (acre)
A88: Pre-populated from Worksheet A | B88: =IF(('Worksheet A-Scoping'!F10=""),"",(IFERROR('Worksheet A-Scoping'!F10,""))) ->  | D88: =IF((B88=""),"",(IF(('Worksheet A-Scoping'!F23-'Worksheet A-Scoping'!F19)<0,('Worksheet A-Scoping'!F19-'Worksheet A-Scoping'!F23)*43560,0))) ->  | E88: =IFERROR(IF((A88=""),"",(D88/43560)),"") -> 
A89: Pre-populated from Worksheet A | B89: =IF(('Worksheet A-Scoping'!G10=""),"",(IFERROR('Worksheet A-Scoping'!G10,""))) ->  | D89: =IF((B89=""),"",IF(('Worksheet A-Scoping'!G23-'Worksheet A-Scoping'!G19)<0,('Worksheet A-Scoping'!G19-'Worksheet A-Scoping'!G23)*43560,0)) ->  | E89: =IFERROR(IF((A89=""),"",(D89/43560)),"") -> 
A90: Pre-populated from Worksheet A | B90: =IF(('Worksheet A-Scoping'!H10=""),"",IFERROR('Worksheet A-Scoping'!H10,"")) ->  | D90: =IF((B90=""),"",IF(('Worksheet A-Scoping'!H23-'Worksheet A-Scoping'!H19)<0,('Worksheet A-Scoping'!H19-'Worksheet A-Scoping'!H23)*43560,0)) ->  | E90: =IFERROR(IF((A90=""),"",(D90/43560)),"") -> 
A122: Populate to Complete Worksheets B-90% & C-As Built
A124: Table 4: Summary of Drainage Redirected to a Non Discharge Area (Row F) | AG124: Table 4-1: Proposed Non-Discharge Area Calculations
A126: Project Information | D126: Water Quality Treatment Calculations | P126: Errors and Warnings | AI126: Break Ties between HSG Percentages (Hide Columns)
A127: Non-Discharge Area ID | B127: WBID | C127: DP No. | D127: Applied to RIDEM Treatment Target?* | E127: Type* | G127: Non-Discharge Area Definition* | H127: IC Area (ft2) | I127: Receiving Parcel Pervious Area (ft2) | J127: % A Soils | K127: % B Soils | L127: % C Soils | M127: % D Soils | N127: IC : Pervious Cover Ratio | O127: Impervious Cover Reduction (acre) | P127: Sum of HSG Percentages does not equal 100%. | Q127: Parcel does not qualify as non-discharge area based on the IC:Pervious Cover Ratio and HSG Composition | AG127: Round Area Ratio (Hide Column) | AH127: Check HSG Percent Total (Hide Column) | AI127: A | AJ127: B | AK127: C | AL127: D | AM127: Most Conservative HSG (Hide Column)
N128: =IF(AG128="","",IF(AG128="Parcel Ineligible; Receiving Parcel Area too small","Parcel Ineligible; Receiving Parcel Area too small",IF(H128<I128,"1:"&ROUND(AG128,1),ROUND(1/AG128,1)&":1"))) ->  | O128: =IF((A128=""),"",(IF((P128="X"),"",(IF((Q128="X"),"",(H128/43560)))))) ->  | P128: =IF(AH128="","",IF(OR(AH128>1,AH128<1),"X","")) ->  | Q128: =IF((G128="Definition 1"),"",IFERROR(IF(AG128="","",IF(AND(AM128="A",J128>=0.5,AG128<30),"X",IF(AND(AM128="B",K128>=0.5,AG128<50),"X",IF(AND(AM128="C",L128>=0.5,AG128<70),"X","")))),"")) ->  | AG128: =IFERROR(IF((H128/I128)>8,"Parcel Ineligible; Receiving Parcel Area too small",IF(H128 < I128,(I128/H128),IF(I128 < (((I128+H128)/2) + H128),I128/H128,""))),"") ->  | AH128: =IF(AND(J128="",K128="",L128="",M128=""),"",SUM(J128:M128)) ->  | AI128: =(COUNTIF(J128:$J128,J128)-1)*0.00001+J128 -> -1e-05 | AJ128: =(COUNTIF($J128:K128,K128)-1)*0.00001+K128 -> -1e-05 | AK128: =(COUNTIF($J128:L128,L128)-1)*0.00001+L128 -> -1e-05 | AL128: =(COUNTIF($J128:M128,M128)-1)*0.00001+M128 -> -1e-05 | AM128: =IF(AND(J128="",K128="",L128="",M128=""),"",INDEX(AI$127:AL$127,MATCH(MAX(AI128:AL128),AI128:AL128,0))) -> 
N129: =IF(AG129="","",IF(AG129="Parcel Ineligible; Receiving Parcel Area too small","Parcel Ineligible; Receiving Parcel Area too small",IF(H129<I129,"1:"&ROUND(AG129,1),ROUND(1/AG129,1)&":1"))) ->  | O129: =IF((A129=""),"",(IF((P129="X"),"",(IF((Q129="X"),"",(H129/43560)))))) ->  | P129: =IF(AH129="","",IF(OR(AH129>1,AH129<1),"X","")) ->  | Q129: =IF((G129="Definition 1"),"",IFERROR(IF(AG129="","",IF(AND(AM129="A",J129>=0.5,AG129<30),"X",IF(AND(AM129="B",K129>=0.5,AG129<50),"X",IF(AND(AM129="C",L129>=0.5,AG129<70),"X","")))),"")) ->  | AG129: =IFERROR(IF((H129/I129)>8,"Parcel Ineligible; Receiving Parcel Area too small",IF(H129 < I129,(I129/H129),IF(I129 < (((I129+H129)/2) + H129),I129/H129,""))),"") ->  | AH129: =IF(AND(J129="",K129="",L129="",M129=""),"",SUM(J129:M129)) ->  | AI129: =(COUNTIF(J129:$J129,J129)-1)*0.00001+J129 -> -1e-05 | AJ129: =(COUNTIF($J129:K129,K129)-1)*0.00001+K129 -> -1e-05 | AK129: =(COUNTIF($J129:L129,L129)-1)*0.00001+L129 -> -1e-05 | AL129: =(COUNTIF($J129:M129,M129)-1)*0.00001+M129 -> -1e-05 | AM129: =IF(AND(J129="",K129="",L129="",M129=""),"",INDEX(AI$127:AL$127,MATCH(MAX(AI129:AL129),AI129:AL129,0))) -> 
N130: =IF(AG130="","",IF(AG130="Parcel Ineligible; Receiving Parcel Area too small","Parcel Ineligible; Receiving Parcel Area too small",IF(H130<I130,"1:"&ROUND(AG130,1),ROUND(1/AG130,1)&":1"))) ->  | P130: =IF(AH130="","",IF(OR(AH130>1,AH130<1),"X","")) ->  | Q130: =IF((G130="Definition 1"),"",IFERROR(IF(AG130="","",IF(AND(AM130="A",J130>=0.5,AG130<30),"X",IF(AND(AM130="B",K130>=0.5,AG130<50),"X",IF(AND(AM130="C",L130>=0.5,AG130<70),"X","")))),"")) ->  | AG130: =IFERROR(IF((H130/I130)>8,"Parcel Ineligible; Receiving Parcel Area too small",IF(H130 < I130,(I130/H130),IF(I130 < (((I130+H130)/2) + H130),I130/H130,""))),"") ->  | AH130: =IF(AND(J130="",K130="",L130="",M130=""),"",SUM(J130:M130)) ->  | AI130: =(COUNTIF(J130:$J130,J130)-1)*0.00001+J130 -> -1e-05 | AJ130: =(COUNTIF($J130:K130,K130)-1)*0.00001+K130 -> -1e-05 | AK130: =(COUNTIF($J130:L130,L130)-1)*0.00001+L130 -> -1e-05 | AL130: =(COUNTIF($J130:M130,M130)-1)*0.00001+M130 -> -1e-05 | AM130: =IF(AND(J130="",K130="",L130="",M130=""),"",INDEX(AI$127:AL$127,MATCH(MAX(AI130:AL130),AI130:AL130,0))) -> 
AI131: =(COUNTIF(J131:$J131,J131)-1)*0.00001+J131 -> -1e-05 | AJ131: =(COUNTIF($J131:K131,K131)-1)*0.00001+K131 -> -1e-05 | AK131: =(COUNTIF($J131:L131,L131)-1)*0.00001+L131 -> -1e-05 | AL131: =(COUNTIF($J131:M131,M131)-1)*0.00001+M131 -> -1e-05
AI132: =(COUNTIF(J132:$J132,J132)-1)*0.00001+J132 -> -1e-05 | AJ132: =(COUNTIF($J132:K132,K132)-1)*0.00001+K132 -> -1e-05 | AK132: =(COUNTIF($J132:L132,L132)-1)*0.00001+L132 -> -1e-05 | AL132: =(COUNTIF($J132:M132,M132)-1)*0.00001+M132 -> -1e-05
AI133: =(COUNTIF(J133:$J133,J133)-1)*0.00001+J133 -> -1e-05 | AJ133: =(COUNTIF($J133:K133,K133)-1)*0.00001+K133 -> -1e-05 | AK133: =(COUNTIF($J133:L133,L133)-1)*0.00001+L133 -> -1e-05 | AL133: =(COUNTIF($J133:M133,M133)-1)*0.00001+M133 -> -1e-05
AI134: =(COUNTIF(J134:$J134,J134)-1)*0.00001+J134 -> -1e-05 | AJ134: =(COUNTIF($J134:K134,K134)-1)*0.00001+K134 -> -1e-05 | AK134: =(COUNTIF($J134:L134,L134)-1)*0.00001+L134 -> -1e-05 | AL134: =(COUNTIF($J134:M134,M134)-1)*0.00001+M134 -> -1e-05
AI135: =(COUNTIF(J135:$J135,J135)-1)*0.00001+J135 -> -1e-05 | AJ135: =(COUNTIF($J135:K135,K135)-1)*0.00001+K135 -> -1e-05 | AK135: =(COUNTIF($J135:L135,L135)-1)*0.00001+L135 -> -1e-05 | AL135: =(COUNTIF($J135:M135,M135)-1)*0.00001+M135 -> -1e-05
AI136: =(COUNTIF(J136:$J136,J136)-1)*0.00001+J136 -> -1e-05 | AJ136: =(COUNTIF($J136:K136,K136)-1)*0.00001+K136 -> -1e-05 | AK136: =(COUNTIF($J136:L136,L136)-1)*0.00001+L136 -> -1e-05 | AL136: =(COUNTIF($J136:M136,M136)-1)*0.00001+M136 -> -1e-05
AI137: =(COUNTIF(J137:$J137,J137)-1)*0.00001+J137 -> -1e-05 | AJ137: =(COUNTIF($J137:K137,K137)-1)*0.00001+K137 -> -1e-05 | AK137: =(COUNTIF($J137:L137,L137)-1)*0.00001+L137 -> -1e-05 | AL137: =(COUNTIF($J137:M137,M137)-1)*0.00001+M137 -> -1e-05
AI138: =(COUNTIF(J138:$J138,J138)-1)*0.00001+J138 -> -1e-05 | AJ138: =(COUNTIF($J138:K138,K138)-1)*0.00001+K138 -> -1e-05 | AK138: =(COUNTIF($J138:L138,L138)-1)*0.00001+L138 -> -1e-05 | AL138: =(COUNTIF($J138:M138,M138)-1)*0.00001+M138 -> -1e-05
AI139: =(COUNTIF(J139:$J139,J139)-1)*0.00001+J139 -> -1e-05 | AJ139: =(COUNTIF($J139:K139,K139)-1)*0.00001+K139 -> -1e-05 | AK139: =(COUNTIF($J139:L139,L139)-1)*0.00001+L139 -> -1e-05 | AL139: =(COUNTIF($J139:M139,M139)-1)*0.00001+M139 -> -1e-05
AI140: =(COUNTIF(J140:$J140,J140)-1)*0.00001+J140 -> -1e-05 | AJ140: =(COUNTIF($J140:K140,K140)-1)*0.00001+K140 -> -1e-05 | AK140: =(COUNTIF($J140:L140,L140)-1)*0.00001+L140 -> -1e-05 | AL140: =(COUNTIF($J140:M140,M140)-1)*0.00001+M140 -> -1e-05
AI141: =(COUNTIF(J141:$J141,J141)-1)*0.00001+J141 -> -1e-05 | AJ141: =(COUNTIF($J141:K141,K141)-1)*0.00001+K141 -> -1e-05 | AK141: =(COUNTIF($J141:L141,L141)-1)*0.00001+L141 -> -1e-05 | AL141: =(COUNTIF($J141:M141,M141)-1)*0.00001+M141 -> -1e-05
AI142: =(COUNTIF(J142:$J142,J142)-1)*0.00001+J142 -> -1e-05 | AJ142: =(COUNTIF($J142:K142,K142)-1)*0.00001+K142 -> -1e-05 | AK142: =(COUNTIF($J142:L142,L142)-1)*0.00001+L142 -> -1e-05 | AL142: =(COUNTIF($J142:M142,M142)-1)*0.00001+M142 -> -1e-05
AI143: =(COUNTIF(J143:$J143,J143)-1)*0.00001+J143 -> -1e-05 | AJ143: =(COUNTIF($J143:K143,K143)-1)*0.00001+K143 -> -1e-05 | AK143: =(COUNTIF($J143:L143,L143)-1)*0.00001+L143 -> -1e-05 | AL143: =(COUNTIF($J143:M143,M143)-1)*0.00001+M143 -> -1e-05
AI144: =(COUNTIF(J144:$J144,J144)-1)*0.00001+J144 -> -1e-05 | AJ144: =(COUNTIF($J144:K144,K144)-1)*0.00001+K144 -> -1e-05 | AK144: =(COUNTIF($J144:L144,L144)-1)*0.00001+L144 -> -1e-05 | AL144: =(COUNTIF($J144:M144,M144)-1)*0.00001+M144 -> -1e-05
AI145: =(COUNTIF(J145:$J145,J145)-1)*0.00001+J145 -> -1e-05 | AJ145: =(COUNTIF($J145:K145,K145)-1)*0.00001+K145 -> -1e-05 | AK145: =(COUNTIF($J145:L145,L145)-1)*0.00001+L145 -> -1e-05 | AL145: =(COUNTIF($J145:M145,M145)-1)*0.00001+M145 -> -1e-05
AI146: =(COUNTIF(J146:$J146,J146)-1)*0.00001+J146 -> -1e-05 | AJ146: =(COUNTIF($J146:K146,K146)-1)*0.00001+K146 -> -1e-05 | AK146: =(COUNTIF($J146:L146,L146)-1)*0.00001+L146 -> -1e-05 | AL146: =(COUNTIF($J146:M146,M146)-1)*0.00001+M146 -> -1e-05
AI147: =(COUNTIF(J147:$J147,J147)-1)*0.00001+J147 -> -1e-05 | AJ147: =(COUNTIF($J147:K147,K147)-1)*0.00001+K147 -> -1e-05 | AK147: =(COUNTIF($J147:L147,L147)-1)*0.00001+L147 -> -1e-05 | AL147: =(COUNTIF($J147:M147,M147)-1)*0.00001+M147 -> -1e-05
AI148: =(COUNTIF(J148:$J148,J148)-1)*0.00001+J148 -> -1e-05 | AJ148: =(COUNTIF($J148:K148,K148)-1)*0.00001+K148 -> -1e-05 | AK148: =(COUNTIF($J148:L148,L148)-1)*0.00001+L148 -> -1e-05 | AL148: =(COUNTIF($J148:M148,M148)-1)*0.00001+M148 -> -1e-05
AI149: =(COUNTIF(J149:$J149,J149)-1)*0.00001+J149 -> -1e-05 | AJ149: =(COUNTIF($J149:K149,K149)-1)*0.00001+K149 -> -1e-05 | AK149: =(COUNTIF($J149:L149,L149)-1)*0.00001+L149 -> -1e-05 | AL149: =(COUNTIF($J149:M149,M149)-1)*0.00001+M149 -> -1e-05
AI150: =(COUNTIF(J150:$J150,J150)-1)*0.00001+J150 -> -1e-05 | AJ150: =(COUNTIF($J150:K150,K150)-1)*0.00001+K150 -> -1e-05 | AK150: =(COUNTIF($J150:L150,L150)-1)*0.00001+L150 -> -1e-05 | AL150: =(COUNTIF($J150:M150,M150)-1)*0.00001+M150 -> -1e-05
AI151: =(COUNTIF(J151:$J151,J151)-1)*0.00001+J151 -> -1e-05 | AJ151: =(COUNTIF($J151:K151,K151)-1)*0.00001+K151 -> -1e-05 | AK151: =(COUNTIF($J151:L151,L151)-1)*0.00001+L151 -> -1e-05 | AL151: =(COUNTIF($J151:M151,M151)-1)*0.00001+M151 -> -1e-05
AI152: =(COUNTIF(J152:$J152,J152)-1)*0.00001+J152 -> -1e-05 | AJ152: =(COUNTIF($J152:K152,K152)-1)*0.00001+K152 -> -1e-05 | AK152: =(COUNTIF($J152:L152,L152)-1)*0.00001+L152 -> -1e-05 | AL152: =(COUNTIF($J152:M152,M152)-1)*0.00001+M152 -> -1e-05
AI153: =(COUNTIF(J153:$J153,J153)-1)*0.00001+J153 -> -1e-05 | AJ153: =(COUNTIF($J153:K153,K153)-1)*0.00001+K153 -> -1e-05 | AK153: =(COUNTIF($J153:L153,L153)-1)*0.00001+L153 -> -1e-05 | AL153: =(COUNTIF($J153:M153,M153)-1)*0.00001+M153 -> -1e-05
AI154: =(COUNTIF(J154:$J154,J154)-1)*0.00001+J154 -> -1e-05 | AJ154: =(COUNTIF($J154:K154,K154)-1)*0.00001+K154 -> -1e-05 | AK154: =(COUNTIF($J154:L154,L154)-1)*0.00001+L154 -> -1e-05 | AL154: =(COUNTIF($J154:M154,M154)-1)*0.00001+M154 -> -1e-05
AI155: =(COUNTIF(J155:$J155,J155)-1)*0.00001+J155 -> -1e-05 | AJ155: =(COUNTIF($J155:K155,K155)-1)*0.00001+K155 -> -1e-05 | AK155: =(COUNTIF($J155:L155,L155)-1)*0.00001+L155 -> -1e-05 | AL155: =(COUNTIF($J155:M155,M155)-1)*0.00001+M155 -> -1e-05
AI156: =(COUNTIF(J156:$J156,J156)-1)*0.00001+J156 -> -1e-05 | AJ156: =(COUNTIF($J156:K156,K156)-1)*0.00001+K156 -> -1e-05 | AK156: =(COUNTIF($J156:L156,L156)-1)*0.00001+L156 -> -1e-05 | AL156: =(COUNTIF($J156:M156,M156)-1)*0.00001+M156 -> -1e-05
O157: =IF((A157=""),"",(IF((P157="X"),"",(IF((Q157="X"),"",(H157/43560)))))) ->  | AI157: =(COUNTIF(J157:$J157,J157)-1)*0.00001+J157 -> -1e-05 | AJ157: =(COUNTIF($J157:K157,K157)-1)*0.00001+K157 -> -1e-05 | AK157: =(COUNTIF($J157:L157,L157)-1)*0.00001+L157 -> -1e-05 | AL157: =(COUNTIF($J157:M157,M157)-1)*0.00001+M157 -> -1e-05
A159: Table 5: Summary of Drainage Redirected to an IC Disconnection Area (Row G) | AG159: Table 5-1: Proposed IC Disconnection Calculations
A161: Project Information | D161: Water Quality Treatment Calculations | O161: Errors and Warnings | AJ161: Break Ties between HSG Percentages (Hide Columns)
A162: STU ID | B162: WBID | C162: DP No. | D162: Applied to RIDEM Treatment Target?* | E162: STU Type* | G162: IC Area (ft2) | H162: Receiving Parcel Pervious Area (ft2) | I162: % A Soils | J162: % B Soils | K162: % C Soils | L162: % D Soils | M162: IC : Pervious Cover Ratio | N162: Effective IC Reduction (acre) | O162: Parcel qualifies as non-discharge area (based on the IC:Pervious Cover Ratio and HSG Composition) | P162: Sum of HSG Percentages does not equal 100%. | AG162: Existing IC (acre) (Hide Column) | AH162: Round Area Ratio (Hide Column) | AI162: Check HSG Percent Total (Hide Column) | AJ162: A | AK162: B | AL162: C | AM162: D | AN162: Most Conservative HSG (Hide Column)
M163: =IF(AH163="","",IF(AH163="Parcel Ineligible; Receiving Parcel Area too small","Parcel Ineligible; Receiving Parcel Area too small",IF(G163<H163,"1:"&ROUND(AH163,1),ROUND(1/AH163,1)&":1"))) ->  | N163: =IFERROR(IF(AND(P163="",A163<>""),AG163*((I163*INTERPRNG_h(AH163,'IC Treatment Values'!$B$2:$M$3,1,1,2))+(J163*INTERPRNG_h(AH163,'IC Treatment Values'!$B$2:$M$4,1,1,3))+(K163*INTERPRNG_h(AH163,'IC Treatment Values'!$B$2:$M$5,1,1,4))+(L163*INTERPRNG_h(AH163,'IC Treatment Values'!$B$2:$M$6,1,1,5))),""),"") ->  | O163: =IFERROR(IF(AH163="","",IF(AND(AN163="A",I163>=0.5,AH163>=30),"X",IF(AND(AN163="B",J163>=0.5,AH163>=50),"X",IF(AND(AN163="C",K163>=0.5,AH163>=70),"X","")))),"") ->  | P163: =IF(AI163="","",IF(OR(AI163>1,AI163<1),"X","")) ->  | AG163: =IF(A163="","",G163/43560) ->  | AH163: =IFERROR(IF((G163/H163)>8,"Parcel Ineligible; Receiving Parcel Area too small",IF(G163 < H163,(H163/G163),IF(H163 < (((H163+G163)/2) + G163),H163/G163,""))),"") ->  | AI163: =IF(AND(I163="",J163="",K163="",L163=""),"",SUM(I163:L163)) ->  | AJ163: =(COUNTIF(I163:$I163,I163)-1)*0.00001+I163 -> -1e-05 | AK163: =(COUNTIF($I163:J163,J163)-1)*0.00001+J163 -> -1e-05 | AL163: =(COUNTIF($I163:K163,K163)-1)*0.00001+K163 -> -1e-05 | AM163: =(COUNTIF($I163:L163,L163)-1)*0.00001+L163 -> -1e-05 | AN163: =IF(AND(I163="",J163="",K163="",L163=""),"",INDEX(AJ$162:AM$162,MATCH(MAX(AJ163:AM163),AJ163:AM163,0))) -> 
M164: =IF(AH164="","",IF(AH164="Parcel Ineligible; Receiving Parcel Area too small","Parcel Ineligible; Receiving Parcel Area too small",IF(G164<H164,"1:"&ROUND(AH164,1),ROUND(1/AH164,1)&":1"))) ->  | N164: =IFERROR(IF(AND(P164="",A164<>""),AG164*((I164*INTERPRNG_h(AH164,'IC Treatment Values'!$B$2:$M$3,1,1,2))+(J164*INTERPRNG_h(AH164,'IC Treatment Values'!$B$2:$M$4,1,1,3))+(K164*INTERPRNG_h(AH164,'IC Treatment Values'!$B$2:$M$5,1,1,4))+(L164*INTERPRNG_h(AH164,'IC Treatment Values'!$B$2:$M$6,1,1,5))),""),"") ->  | O164: =IFERROR(IF(AH164="","",IF(AND(AN164="A",I164>=0.5,AH164>=30),"X",IF(AND(AN164="B",J164>=0.5,AH164>=50),"X",IF(AND(AN164="C",K164>=0.5,AH164>=70),"X","")))),"") ->  | P164: =IF(AI164="","",IF(OR(AI164>1,AI164<1),"X","")) ->  | AG164: =IF(A164="","",G164/43560) ->  | AH164: =IFERROR(IF((G164/H164)>8,"Parcel Ineligible; Receiving Parcel Area too small",IF(G164 < H164,(H164/G164),IF(H164 < (((H164+G164)/2) + G164),H164/G164,""))),"") ->  | AI164: =IF(AND(I164="",J164="",K164="",L164=""),"",SUM(I164:L164)) ->  | AJ164: =(COUNTIF(I164:$I164,I164)-1)*0.00001+I164 -> -1e-05 | AK164: =(COUNTIF($I164:J164,J164)-1)*0.00001+J164 -> -1e-05 | AL164: =(COUNTIF($I164:K164,K164)-1)*0.00001+K164 -> -1e-05 | AM164: =(COUNTIF($I164:L164,L164)-1)*0.00001+L164 -> -1e-05 | AN164: =IF(AND(I164="",J164="",K164="",L164=""),"",INDEX(AJ$162:AM$162,MATCH(MAX(AJ164:AM164),AJ164:AM164,0))) -> 
M165: =IF(AH165="","",IF(AH165="Parcel Ineligible; Receiving Parcel Area too small","Parcel Ineligible; Receiving Parcel Area too small",IF(G165<H165,"1:"&ROUND(AH165,1),ROUND(1/AH165,1)&":1"))) ->  | N165: =IFERROR(IF(AND(P165="",A165<>""),AG165*((I165*INTERPRNG_h(AH165,'IC Treatment Values'!$B$2:$M$3,1,1,2))+(J165*INTERPRNG_h(AH165,'IC Treatment Values'!$B$2:$M$4,1,1,3))+(K165*INTERPRNG_h(AH165,'IC Treatment Values'!$B$2:$M$5,1,1,4))+(L165*INTERPRNG_h(AH165,'IC Treatment Values'!$B$2:$M$6,1,1,5))),""),"") ->  | O165: =IFERROR(IF(AH165="","",IF(AND(AN165="A",I165>=0.5,AH165>=30),"X",IF(AND(AN165="B",J165>=0.5,AH165>=50),"X",IF(AND(AN165="C",K165>=0.5,AH165>=70),"X","")))),"") ->  | P165: =IF(AI165="","",IF(OR(AI165>1,AI165<1),"X","")) ->  | AG165: =IF(A165="","",G165/43560) ->  | AH165: =IFERROR(IF((G165/H165)>8,"Parcel Ineligible; Receiving Parcel Area too small",IF(G165 < H165,(H165/G165),IF(H165 < (((H165+G165)/2) + G165),H165/G165,""))),"") ->  | AI165: =IF(AND(I165="",J165="",K165="",L165=""),"",SUM(I165:L165)) ->  | AJ165: =(COUNTIF(I165:$I165,I165)-1)*0.00001+I165 -> -1e-05 | AK165: =(COUNTIF($I165:J165,J165)-1)*0.00001+J165 -> -1e-05 | AL165: =(COUNTIF($I165:K165,K165)-1)*0.00001+K165 -> -1e-05 | AM165: =(COUNTIF($I165:L165,L165)-1)*0.00001+L165 -> -1e-05
N166: =IFERROR(IF(AND(P166="",A166<>""),AG166*((I166*INTERPRNG_h(AH166,'IC Treatment Values'!$B$2:$M$3,1,1,2))+(J166*INTERPRNG_h(AH166,'IC Treatment Values'!$B$2:$M$4,1,1,3))+(K166*INTERPRNG_h(AH166,'IC Treatment Values'!$B$2:$M$5,1,1,4))+(L166*INTERPRNG_h(AH166,'IC Treatment Values'!$B$2:$M$6,1,1,5))),""),"") ->  | AJ166: =(COUNTIF(I166:$I166,I166)-1)*0.00001+I166 -> -1e-05 | AK166: =(COUNTIF($I166:J166,J166)-1)*0.00001+J166 -> -1e-05 | AL166: =(COUNTIF($I166:K166,K166)-1)*0.00001+K166 -> -1e-05 | AM166: =(COUNTIF($I166:L166,L166)-1)*0.00001+L166 -> -1e-05
N167: =IFERROR(IF(AND(P167="",A167<>""),AG167*((I167*INTERPRNG_h(AH167,'IC Treatment Values'!$B$2:$M$3,1,1,2))+(J167*INTERPRNG_h(AH167,'IC Treatment Values'!$B$2:$M$4,1,1,3))+(K167*INTERPRNG_h(AH167,'IC Treatment Values'!$B$2:$M$5,1,1,4))+(L167*INTERPRNG_h(AH167,'IC Treatment Values'!$B$2:$M$6,1,1,5))),""),"") ->  | AJ167: =(COUNTIF(I167:$I167,I167)-1)*0.00001+I167 -> -1e-05 | AK167: =(COUNTIF($I167:J167,J167)-1)*0.00001+J167 -> -1e-05 | AL167: =(COUNTIF($I167:K167,K167)-1)*0.00001+K167 -> -1e-05 | AM167: =(COUNTIF($I167:L167,L167)-1)*0.00001+L167 -> -1e-05
N168: =IFERROR(IF(AND(P168="",A168<>""),AG168*((I168*INTERPRNG_h(AH168,'IC Treatment Values'!$B$2:$M$3,1,1,2))+(J168*INTERPRNG_h(AH168,'IC Treatment Values'!$B$2:$M$4,1,1,3))+(K168*INTERPRNG_h(AH168,'IC Treatment Values'!$B$2:$M$5,1,1,4))+(L168*INTERPRNG_h(AH168,'IC Treatment Values'!$B$2:$M$6,1,1,5))),""),"") ->  | AJ168: =(COUNTIF(I168:$I168,I168)-1)*0.00001+I168 -> -1e-05 | AK168: =(COUNTIF($I168:J168,J168)-1)*0.00001+J168 -> -1e-05 | AL168: =(COUNTIF($I168:K168,K168)-1)*0.00001+K168 -> -1e-05 | AM168: =(COUNTIF($I168:L168,L168)-1)*0.00001+L168 -> -1e-05
N169: =IFERROR(IF(AND(P169="",A169<>""),AG169*((I169*INTERPRNG_h(AH169,'IC Treatment Values'!$B$2:$M$3,1,1,2))+(J169*INTERPRNG_h(AH169,'IC Treatment Values'!$B$2:$M$4,1,1,3))+(K169*INTERPRNG_h(AH169,'IC Treatment Values'!$B$2:$M$5,1,1,4))+(L169*INTERPRNG_h(AH169,'IC Treatment Values'!$B$2:$M$6,1,1,5))),""),"") ->  | AJ169: =(COUNTIF(I169:$I169,I169)-1)*0.00001+I169 -> -1e-05 | AK169: =(COUNTIF($I169:J169,J169)-1)*0.00001+J169 -> -1e-05 | AL169: =(COUNTIF($I169:K169,K169)-1)*0.00001+K169 -> -1e-05 | AM169: =(COUNTIF($I169:L169,L169)-1)*0.00001+L169 -> -1e-05
N170: =IFERROR(IF(AND(P170="",A170<>""),AG170*((I170*INTERPRNG_h(AH170,'IC Treatment Values'!$B$2:$M$3,1,1,2))+(J170*INTERPRNG_h(AH170,'IC Treatment Values'!$B$2:$M$4,1,1,3))+(K170*INTERPRNG_h(AH170,'IC Treatment Values'!$B$2:$M$5,1,1,4))+(L170*INTERPRNG_h(AH170,'IC Treatment Values'!$B$2:$M$6,1,1,5))),""),"") ->  | AJ170: =(COUNTIF(I170:$I170,I170)-1)*0.00001+I170 -> -1e-05 | AK170: =(COUNTIF($I170:J170,J170)-1)*0.00001+J170 -> -1e-05 | AL170: =(COUNTIF($I170:K170,K170)-1)*0.00001+K170 -> -1e-05 | AM170: =(COUNTIF($I170:L170,L170)-1)*0.00001+L170 -> -1e-05
N171: =IFERROR(IF(AND(P171="",A171<>""),AG171*((I171*INTERPRNG_h(AH171,'IC Treatment Values'!$B$2:$M$3,1,1,2))+(J171*INTERPRNG_h(AH171,'IC Treatment Values'!$B$2:$M$4,1,1,3))+(K171*INTERPRNG_h(AH171,'IC Treatment Values'!$B$2:$M$5,1,1,4))+(L171*INTERPRNG_h(AH171,'IC Treatment Values'!$B$2:$M$6,1,1,5))),""),"") ->  | AJ171: =(COUNTIF(I171:$I171,I171)-1)*0.00001+I171 -> -1e-05 | AK171: =(COUNTIF($I171:J171,J171)-1)*0.00001+J171 -> -1e-05 | AL171: =(COUNTIF($I171:K171,K171)-1)*0.00001+K171 -> -1e-05 | AM171: =(COUNTIF($I171:L171,L171)-1)*0.00001+L171 -> -1e-05
N172: =IFERROR(IF(AND(P172="",A172<>""),AG172*((I172*INTERPRNG_h(AH172,'IC Treatment Values'!$B$2:$M$3,1,1,2))+(J172*INTERPRNG_h(AH172,'IC Treatment Values'!$B$2:$M$4,1,1,3))+(K172*INTERPRNG_h(AH172,'IC Treatment Values'!$B$2:$M$5,1,1,4))+(L172*INTERPRNG_h(AH172,'IC Treatment Values'!$B$2:$M$6,1,1,5))),""),"") ->  | AJ172: =(COUNTIF(I172:$I172,I172)-1)*0.00001+I172 -> -1e-05 | AK172: =(COUNTIF($I172:J172,J172)-1)*0.00001+J172 -> -1e-05 | AL172: =(COUNTIF($I172:K172,K172)-1)*0.00001+K172 -> -1e-05 | AM172: =(COUNTIF($I172:L172,L172)-1)*0.00001+L172 -> -1e-05
N173: =IFERROR(IF(AND(P173="",A173<>""),AG173*((I173*INTERPRNG_h(AH173,'IC Treatment Values'!$B$2:$M$3,1,1,2))+(J173*INTERPRNG_h(AH173,'IC Treatment Values'!$B$2:$M$4,1,1,3))+(K173*INTERPRNG_h(AH173,'IC Treatment Values'!$B$2:$M$5,1,1,4))+(L173*INTERPRNG_h(AH173,'IC Treatment Values'!$B$2:$M$6,1,1,5))),""),"") ->  | AJ173: =(COUNTIF(I173:$I173,I173)-1)*0.00001+I173 -> -1e-05 | AK173: =(COUNTIF($I173:J173,J173)-1)*0.00001+J173 -> -1e-05 | AL173: =(COUNTIF($I173:K173,K173)-1)*0.00001+K173 -> -1e-05 | AM173: =(COUNTIF($I173:L173,L173)-1)*0.00001+L173 -> -1e-05
N174: =IFERROR(IF(AND(P174="",A174<>""),AG174*((I174*INTERPRNG_h(AH174,'IC Treatment Values'!$B$2:$M$3,1,1,2))+(J174*INTERPRNG_h(AH174,'IC Treatment Values'!$B$2:$M$4,1,1,3))+(K174*INTERPRNG_h(AH174,'IC Treatment Values'!$B$2:$M$5,1,1,4))+(L174*INTERPRNG_h(AH174,'IC Treatment Values'!$B$2:$M$6,1,1,5))),""),"") ->  | AJ174: =(COUNTIF(I174:$I174,I174)-1)*0.00001+I174 -> -1e-05 | AK174: =(COUNTIF($I174:J174,J174)-1)*0.00001+J174 -> -1e-05 | AL174: =(COUNTIF($I174:K174,K174)-1)*0.00001+K174 -> -1e-05 | AM174: =(COUNTIF($I174:L174,L174)-1)*0.00001+L174 -> -1e-05
N175: =IFERROR(IF(AND(P175="",A175<>""),AG175*((I175*INTERPRNG_h(AH175,'IC Treatment Values'!$B$2:$M$3,1,1,2))+(J175*INTERPRNG_h(AH175,'IC Treatment Values'!$B$2:$M$4,1,1,3))+(K175*INTERPRNG_h(AH175,'IC Treatment Values'!$B$2:$M$5,1,1,4))+(L175*INTERPRNG_h(AH175,'IC Treatment Values'!$B$2:$M$6,1,1,5))),""),"") ->  | AJ175: =(COUNTIF(I175:$I175,I175)-1)*0.00001+I175 -> -1e-05 | AK175: =(COUNTIF($I175:J175,J175)-1)*0.00001+J175 -> -1e-05 | AL175: =(COUNTIF($I175:K175,K175)-1)*0.00001+K175 -> -1e-05 | AM175: =(COUNTIF($I175:L175,L175)-1)*0.00001+L175 -> -1e-05
N176: =IFERROR(IF(AND(P176="",A176<>""),AG176*((I176*INTERPRNG_h(AH176,'IC Treatment Values'!$B$2:$M$3,1,1,2))+(J176*INTERPRNG_h(AH176,'IC Treatment Values'!$B$2:$M$4,1,1,3))+(K176*INTERPRNG_h(AH176,'IC Treatment Values'!$B$2:$M$5,1,1,4))+(L176*INTERPRNG_h(AH176,'IC Treatment Values'!$B$2:$M$6,1,1,5))),""),"") ->  | AJ176: =(COUNTIF(I176:$I176,I176)-1)*0.00001+I176 -> -1e-05 | AK176: =(COUNTIF($I176:J176,J176)-1)*0.00001+J176 -> -1e-05 | AL176: =(COUNTIF($I176:K176,K176)-1)*0.00001+K176 -> -1e-05 | AM176: =(COUNTIF($I176:L176,L176)-1)*0.00001+L176 -> -1e-05
N177: =IFERROR(IF(AND(P177="",A177<>""),AG177*((I177*INTERPRNG_h(AH177,'IC Treatment Values'!$B$2:$M$3,1,1,2))+(J177*INTERPRNG_h(AH177,'IC Treatment Values'!$B$2:$M$4,1,1,3))+(K177*INTERPRNG_h(AH177,'IC Treatment Values'!$B$2:$M$5,1,1,4))+(L177*INTERPRNG_h(AH177,'IC Treatment Values'!$B$2:$M$6,1,1,5))),""),"") ->  | AJ177: =(COUNTIF(I177:$I177,I177)-1)*0.00001+I177 -> -1e-05 | AK177: =(COUNTIF($I177:J177,J177)-1)*0.00001+J177 -> -1e-05 | AL177: =(COUNTIF($I177:K177,K177)-1)*0.00001+K177 -> -1e-05 | AM177: =(COUNTIF($I177:L177,L177)-1)*0.00001+L177 -> -1e-05
N178: =IFERROR(IF(AND(P178="",A178<>""),AG178*((I178*INTERPRNG_h(AH178,'IC Treatment Values'!$B$2:$M$3,1,1,2))+(J178*INTERPRNG_h(AH178,'IC Treatment Values'!$B$2:$M$4,1,1,3))+(K178*INTERPRNG_h(AH178,'IC Treatment Values'!$B$2:$M$5,1,1,4))+(L178*INTERPRNG_h(AH178,'IC Treatment Values'!$B$2:$M$6,1,1,5))),""),"") ->  | AJ178: =(COUNTIF(I178:$I178,I178)-1)*0.00001+I178 -> -1e-05 | AK178: =(COUNTIF($I178:J178,J178)-1)*0.00001+J178 -> -1e-05 | AL178: =(COUNTIF($I178:K178,K178)-1)*0.00001+K178 -> -1e-05 | AM178: =(COUNTIF($I178:L178,L178)-1)*0.00001+L178 -> -1e-05
N179: =IFERROR(IF(AND(P179="",A179<>""),AG179*((I179*INTERPRNG_h(AH179,'IC Treatment Values'!$B$2:$M$3,1,1,2))+(J179*INTERPRNG_h(AH179,'IC Treatment Values'!$B$2:$M$4,1,1,3))+(K179*INTERPRNG_h(AH179,'IC Treatment Values'!$B$2:$M$5,1,1,4))+(L179*INTERPRNG_h(AH179,'IC Treatment Values'!$B$2:$M$6,1,1,5))),""),"") ->  | AJ179: =(COUNTIF(I179:$I179,I179)-1)*0.00001+I179 -> -1e-05 | AK179: =(COUNTIF($I179:J179,J179)-1)*0.00001+J179 -> -1e-05 | AL179: =(COUNTIF($I179:K179,K179)-1)*0.00001+K179 -> -1e-05 | AM179: =(COUNTIF($I179:L179,L179)-1)*0.00001+L179 -> -1e-05
N180: =IFERROR(IF(AND(P180="",A180<>""),AG180*((I180*INTERPRNG_h(AH180,'IC Treatment Values'!$B$2:$M$3,1,1,2))+(J180*INTERPRNG_h(AH180,'IC Treatment Values'!$B$2:$M$4,1,1,3))+(K180*INTERPRNG_h(AH180,'IC Treatment Values'!$B$2:$M$5,1,1,4))+(L180*INTERPRNG_h(AH180,'IC Treatment Values'!$B$2:$M$6,1,1,5))),""),"") ->  | AJ180: =(COUNTIF(I180:$I180,I180)-1)*0.00001+I180 -> -1e-05 | AK180: =(COUNTIF($I180:J180,J180)-1)*0.00001+J180 -> -1e-05 | AL180: =(COUNTIF($I180:K180,K180)-1)*0.00001+K180 -> -1e-05 | AM180: =(COUNTIF($I180:L180,L180)-1)*0.00001+L180 -> -1e-05
N181: =IFERROR(IF(AND(P181="",A181<>""),AG181*((I181*INTERPRNG_h(AH181,'IC Treatment Values'!$B$2:$M$3,1,1,2))+(J181*INTERPRNG_h(AH181,'IC Treatment Values'!$B$2:$M$4,1,1,3))+(K181*INTERPRNG_h(AH181,'IC Treatment Values'!$B$2:$M$5,1,1,4))+(L181*INTERPRNG_h(AH181,'IC Treatment Values'!$B$2:$M$6,1,1,5))),""),"") ->  | AJ181: =(COUNTIF(I181:$I181,I181)-1)*0.00001+I181 -> -1e-05 | AK181: =(COUNTIF($I181:J181,J181)-1)*0.00001+J181 -> -1e-05 | AL181: =(COUNTIF($I181:K181,K181)-1)*0.00001+K181 -> -1e-05 | AM181: =(COUNTIF($I181:L181,L181)-1)*0.00001+L181 -> -1e-05
N182: =IFERROR(IF(AND(P182="",A182<>""),AG182*((I182*INTERPRNG_h(AH182,'IC Treatment Values'!$B$2:$M$3,1,1,2))+(J182*INTERPRNG_h(AH182,'IC Treatment Values'!$B$2:$M$4,1,1,3))+(K182*INTERPRNG_h(AH182,'IC Treatment Values'!$B$2:$M$5,1,1,4))+(L182*INTERPRNG_h(AH182,'IC Treatment Values'!$B$2:$M$6,1,1,5))),""),"") ->  | AJ182: =(COUNTIF(I182:$I182,I182)-1)*0.00001+I182 -> -1e-05 | AK182: =(COUNTIF($I182:J182,J182)-1)*0.00001+J182 -> -1e-05 | AL182: =(COUNTIF($I182:K182,K182)-1)*0.00001+K182 -> -1e-05 | AM182: =(COUNTIF($I182:L182,L182)-1)*0.00001+L182 -> -1e-05
N183: =IFERROR(IF(AND(P183="",A183<>""),AG183*((I183*INTERPRNG_h(AH183,'IC Treatment Values'!$B$2:$M$3,1,1,2))+(J183*INTERPRNG_h(AH183,'IC Treatment Values'!$B$2:$M$4,1,1,3))+(K183*INTERPRNG_h(AH183,'IC Treatment Values'!$B$2:$M$5,1,1,4))+(L183*INTERPRNG_h(AH183,'IC Treatment Values'!$B$2:$M$6,1,1,5))),""),"") ->  | AJ183: =(COUNTIF(I183:$I183,I183)-1)*0.00001+I183 -> -1e-05 | AK183: =(COUNTIF($I183:J183,J183)-1)*0.00001+J183 -> -1e-05 | AL183: =(COUNTIF($I183:K183,K183)-1)*0.00001+K183 -> -1e-05 | AM183: =(COUNTIF($I183:L183,L183)-1)*0.00001+L183 -> -1e-05
N184: =IFERROR(IF(AND(P184="",A184<>""),AG184*((I184*INTERPRNG_h(AH184,'IC Treatment Values'!$B$2:$M$3,1,1,2))+(J184*INTERPRNG_h(AH184,'IC Treatment Values'!$B$2:$M$4,1,1,3))+(K184*INTERPRNG_h(AH184,'IC Treatment Values'!$B$2:$M$5,1,1,4))+(L184*INTERPRNG_h(AH184,'IC Treatment Values'!$B$2:$M$6,1,1,5))),""),"") ->  | AJ184: =(COUNTIF(I184:$I184,I184)-1)*0.00001+I184 -> -1e-05 | AK184: =(COUNTIF($I184:J184,J184)-1)*0.00001+J184 -> -1e-05 | AL184: =(COUNTIF($I184:K184,K184)-1)*0.00001+K184 -> -1e-05 | AM184: =(COUNTIF($I184:L184,L184)-1)*0.00001+L184 -> -1e-05
N185: =IFERROR(IF(AND(P185="",A185<>""),AG185*((I185*INTERPRNG_h(AH185,'IC Treatment Values'!$B$2:$M$3,1,1,2))+(J185*INTERPRNG_h(AH185,'IC Treatment Values'!$B$2:$M$4,1,1,3))+(K185*INTERPRNG_h(AH185,'IC Treatment Values'!$B$2:$M$5,1,1,4))+(L185*INTERPRNG_h(AH185,'IC Treatment Values'!$B$2:$M$6,1,1,5))),""),"") ->  | AJ185: =(COUNTIF(I185:$I185,I185)-1)*0.00001+I185 -> -1e-05 | AK185: =(COUNTIF($I185:J185,J185)-1)*0.00001+J185 -> -1e-05 | AL185: =(COUNTIF($I185:K185,K185)-1)*0.00001+K185 -> -1e-05 | AM185: =(COUNTIF($I185:L185,L185)-1)*0.00001+L185 -> -1e-05
N186: =IFERROR(IF(AND(P186="",A186<>""),AG186*((I186*INTERPRNG_h(AH186,'IC Treatment Values'!$B$2:$M$3,1,1,2))+(J186*INTERPRNG_h(AH186,'IC Treatment Values'!$B$2:$M$4,1,1,3))+(K186*INTERPRNG_h(AH186,'IC Treatment Values'!$B$2:$M$5,1,1,4))+(L186*INTERPRNG_h(AH186,'IC Treatment Values'!$B$2:$M$6,1,1,5))),""),"") ->  | AJ186: =(COUNTIF(I186:$I186,I186)-1)*0.00001+I186 -> -1e-05 | AK186: =(COUNTIF($I186:J186,J186)-1)*0.00001+J186 -> -1e-05 | AL186: =(COUNTIF($I186:K186,K186)-1)*0.00001+K186 -> -1e-05 | AM186: =(COUNTIF($I186:L186,L186)-1)*0.00001+L186 -> -1e-05
N187: =IFERROR(IF(AND(P187="",A187<>""),AG187*((I187*INTERPRNG_h(AH187,'IC Treatment Values'!$B$2:$M$3,1,1,2))+(J187*INTERPRNG_h(AH187,'IC Treatment Values'!$B$2:$M$4,1,1,3))+(K187*INTERPRNG_h(AH187,'IC Treatment Values'!$B$2:$M$5,1,1,4))+(L187*INTERPRNG_h(AH187,'IC Treatment Values'!$B$2:$M$6,1,1,5))),""),"") ->  | AJ187: =(COUNTIF(I187:$I187,I187)-1)*0.00001+I187 -> -1e-05 | AK187: =(COUNTIF($I187:J187,J187)-1)*0.00001+J187 -> -1e-05 | AL187: =(COUNTIF($I187:K187,K187)-1)*0.00001+K187 -> -1e-05 | AM187: =(COUNTIF($I187:L187,L187)-1)*0.00001+L187 -> -1e-05
N188: =IFERROR(IF(AND(P188="",A188<>""),AG188*((I188*INTERPRNG_h(AH188,'IC Treatment Values'!$B$2:$M$3,1,1,2))+(J188*INTERPRNG_h(AH188,'IC Treatment Values'!$B$2:$M$4,1,1,3))+(K188*INTERPRNG_h(AH188,'IC Treatment Values'!$B$2:$M$5,1,1,4))+(L188*INTERPRNG_h(AH188,'IC Treatment Values'!$B$2:$M$6,1,1,5))),""),"") ->  | AJ188: =(COUNTIF(I188:$I188,I188)-1)*0.00001+I188 -> -1e-05 | AK188: =(COUNTIF($I188:J188,J188)-1)*0.00001+J188 -> -1e-05 | AL188: =(COUNTIF($I188:K188,K188)-1)*0.00001+K188 -> -1e-05 | AM188: =(COUNTIF($I188:L188,L188)-1)*0.00001+L188 -> -1e-05
N189: =IFERROR(IF(AND(P189="",A189<>""),AG189*((I189*INTERPRNG_h(AH189,'IC Treatment Values'!$B$2:$M$3,1,1,2))+(J189*INTERPRNG_h(AH189,'IC Treatment Values'!$B$2:$M$4,1,1,3))+(K189*INTERPRNG_h(AH189,'IC Treatment Values'!$B$2:$M$5,1,1,4))+(L189*INTERPRNG_h(AH189,'IC Treatment Values'!$B$2:$M$6,1,1,5))),""),"") ->  | AJ189: =(COUNTIF(I189:$I189,I189)-1)*0.00001+I189 -> -1e-05 | AK189: =(COUNTIF($I189:J189,J189)-1)*0.00001+J189 -> -1e-05 | AL189: =(COUNTIF($I189:K189,K189)-1)*0.00001+K189 -> -1e-05 | AM189: =(COUNTIF($I189:L189,L189)-1)*0.00001+L189 -> -1e-05
N190: =IFERROR(IF(AND(P190="",A190<>""),AG190*((I190*INTERPRNG_h(AH190,'IC Treatment Values'!$B$2:$M$3,1,1,2))+(J190*INTERPRNG_h(AH190,'IC Treatment Values'!$B$2:$M$4,1,1,3))+(K190*INTERPRNG_h(AH190,'IC Treatment Values'!$B$2:$M$5,1,1,4))+(L190*INTERPRNG_h(AH190,'IC Treatment Values'!$B$2:$M$6,1,1,5))),""),"") ->  | AJ190: =(COUNTIF(I190:$I190,I190)-1)*0.00001+I190 -> -1e-05 | AK190: =(COUNTIF($I190:J190,J190)-1)*0.00001+J190 -> -1e-05 | AL190: =(COUNTIF($I190:K190,K190)-1)*0.00001+K190 -> -1e-05 | AM190: =(COUNTIF($I190:L190,L190)-1)*0.00001+L190 -> -1e-05
N191: =IFERROR(IF(AND(P191="",A191<>""),AG191*((I191*INTERPRNG_h(AH191,'IC Treatment Values'!$B$2:$M$3,1,1,2))+(J191*INTERPRNG_h(AH191,'IC Treatment Values'!$B$2:$M$4,1,1,3))+(K191*INTERPRNG_h(AH191,'IC Treatment Values'!$B$2:$M$5,1,1,4))+(L191*INTERPRNG_h(AH191,'IC Treatment Values'!$B$2:$M$6,1,1,5))),""),"") ->  | AJ191: =(COUNTIF(I191:$I191,I191)-1)*0.00001+I191 -> -1e-05 | AK191: =(COUNTIF($I191:J191,J191)-1)*0.00001+J191 -> -1e-05 | AL191: =(COUNTIF($I191:K191,K191)-1)*0.00001+K191 -> -1e-05 | AM191: =(COUNTIF($I191:L191,L191)-1)*0.00001+L191 -> -1e-05
N192: =IFERROR(IF(AND(P192="",A192<>""),AG192*((I192*INTERPRNG_h(AH192,'IC Treatment Values'!$B$2:$M$3,1,1,2))+(J192*INTERPRNG_h(AH192,'IC Treatment Values'!$B$2:$M$4,1,1,3))+(K192*INTERPRNG_h(AH192,'IC Treatment Values'!$B$2:$M$5,1,1,4))+(L192*INTERPRNG_h(AH192,'IC Treatment Values'!$B$2:$M$6,1,1,5))),""),"") ->  | O192: =IFERROR(IF(AH192="","",IF(AND(AN192="A",I192>=0.5,AH192>=30),"X",IF(AND(AN192="B",J192>=0.5,AH192>=50),"X",IF(AND(AN192="C",K192>=0.5,AH192>=70),"X","")))),"") ->  | AJ192: =(COUNTIF(I192:$I192,I192)-1)*0.00001+I192 -> -1e-05 | AK192: =(COUNTIF($I192:J192,J192)-1)*0.00001+J192 -> -1e-05 | AL192: =(COUNTIF($I192:K192,K192)-1)*0.00001+K192 -> -1e-05 | AM192: =(COUNTIF($I192:L192,L192)-1)*0.00001+L192 -> -1e-05 | AN192: =IF(AND(I192="",J192="",K192="",L192=""),"",INDEX(AJ$162:AM$162,MATCH(MAX(AJ192:AM192),AJ192:AM192,0))) -> 
A194: Table 6: Summary of Proposed STUs (Rows H - K) | AG194: Table 6-1: Proposed STU Calculations
A196: Project Information | D196: Hydrologic Analysis Summary | L196: Water Quality Treatment Calculations | Y196: Summary of Soils to Evaluate STUs | AG196: Impervious and Pervious Area (Hide Columns) | AJ196: Depth of Runoff Treated (Hide Columns)
A197: STU ID | B197: WBID | C197: DP No. | D197: Runoff Method Applied for 1.2" Water Quality Event: | L197: Applied to RIDEM Treatment Target?* | M197: Within Project Limits?* | N197: STU Type* | P197: Is this an Upgrade to an Existing STU?* | Q197: STU Tier | R197: STU Soil Type* | S197: Total Area Directed to STU (ft2) | T197: Impervious Area Directed to (ft2) | U197: Provided Pretreat-ment Vol. (ft3) | V197: STU Storage Volume (ft3) | W197: Treatment Depth (in.) | X197: Effective IC Reduction (acres) | Y197: Test Pit ID | AA197: Depth of Boring/Test Pit (ft.) | AB197: Top of Filter Elev. (ft.) | AC197: SHGT Elev. (ft.) | AD197: Separation Distance (ft.) | AE197: Hydrologic Soil Group A, B, C or D | AF197: Exfiltration Rate Applied (in./hr.) | AG197: Impervious Area (acres) | AH197: Pervious Area Directed to STU (ft2) | AI197: Pervious Area (acres) | AJ197: % Impervious | AK197: Row Function | AL197: TSS Removal Credit (%) | AM197: P Removal Credit (%) | AN197: TSS Reduction Factor | AO197: Phosphorous Reduction Factor | AP197: Runoff Factor | AQ197: Flow Factor | AR197: Pervious Cover Factor
D198: 1.2" Peak Flow | F198: 1-yr. Peak Flow | H198: 10-yr. Peak Flow | J198: 100-yr. Peak Flow
D199: Pre (cfs) | E199: Post (cfs) | F199: Pre (cfs) | G199: Post (cfs) | H199: Pre (cfs) | I199: Post (cfs) | J199: Pre (cfs) | K199: Post (cfs) | Y199: Primary | Z199: Secondary
Q200: =IFERROR(IF(P200="Yes","Tier 1",VLOOKUP(N200,'STU Tiers'!$A$1:$B$29,2,FALSE)),"") ->  | W200: =IFERROR((V200/T200*12),"") ->  | X200: =IFERROR((AG200*AR200),"") ->  | AG200: =IF(A200="","",T200/43560) ->  | AH200: =IF(N200="","",(IF((S200-T200)<=0,0,(S200-T200)))) ->  | AI200: =IF(A200="","",AH200/43560) ->  | AJ200: =IF(A200="","",(AG200/(AG200+AI200))) ->  | AK200: =IF(ISBLANK(N200),"",IF(ISBLANK(R200),"",RowFunc(N200,R200))) ->  | AL200: =IFERROR(IF($AJ200>=0.5,INTERPRNG_h($W200,'STU Treatment Values'!$N$5:$W$38,0,1,AK200),INTERPRNG_h($W200,'STU Treatment Values'!$N$40:$W$73,0,1,$AK200)),"") ->  | AM200: =IFERROR(IF($AJ200>=0.5,INTERPRNG_h($W200,'STU Treatment Values'!$B$5:$K$38,0,1,$AK200),INTERPRNG_h($W200,'STU Treatment Values'!$B$40:$K$73,0,1,$AK200)),"") ->  | AN200: =IFERROR(IF(AL200/0.9>1,1,AL200/0.9),"") ->  | AO200: =IFERROR(IF(AM200/0.9>1,1,AM200/0.9),"") ->  | AP200: =IFERROR(INTERPRNG_h($W200,'STU Treatment Values'!$B$112:$K$145,0,1,$AK200),"") ->  | AQ200: =IFERROR(INTERPRNG_h($W200,'STU Treatment Values'!$B$76:$K$109,0,1,$AK200),"") ->  | AR200: =IFERROR((AN200+AO200+AP200+AQ200)/4,"") -> 
Q201: =IFERROR(IF(P201="Yes","Tier 1",VLOOKUP(N201,'STU Tiers'!$A$1:$B$29,2,FALSE)),"") ->  | W201: =IFERROR((V201/T201*12),"") ->  | X201: =IFERROR((AG201*AR201),"") ->  | AG201: =IF(A201="","",T201/43560) ->  | AH201: =IF(N201="","",(IF((S201-T201)<=0,0,(S201-T201)))) ->  | AI201: =IF(A201="","",AH201/43560) ->  | AJ201: =IF(A201="","",(AG201/(AG201+AI201))) ->  | AK201: =IF(ISBLANK(N201),"",IF(ISBLANK(R201),"",RowFunc(N201,R201))) ->  | AL201: =IFERROR(IF($AJ201>=0.5,INTERPRNG_h($W201,'STU Treatment Values'!$N$5:$W$38,0,1,AK201),INTERPRNG_h($W201,'STU Treatment Values'!$N$40:$W$73,0,1,$AK201)),"") ->  | AM201: =IFERROR(IF($AJ201>=0.5,INTERPRNG_h($W201,'STU Treatment Values'!$B$5:$K$38,0,1,$AK201),INTERPRNG_h($W201,'STU Treatment Values'!$B$40:$K$73,0,1,$AK201)),"") ->  | AN201: =IFERROR(IF(AL201/0.9>1,1,AL201/0.9),"") ->  | AO201: =IFERROR(IF(AM201/0.9>1,1,AM201/0.9),"") ->  | AP201: =IFERROR(INTERPRNG_h($W201,'STU Treatment Values'!$B$112:$K$145,0,1,$AK201),"") ->  | AQ201: =IFERROR(INTERPRNG_h($W201,'STU Treatment Values'!$B$76:$K$109,0,1,$AK201),"") ->  | AR201: =IFERROR((AN201+AO201+AP201+AQ201)/4,"") -> 
Q202: =IFERROR(IF(P202="Yes","Tier 1",VLOOKUP(N202,'STU Tiers'!$A$1:$B$29,2,FALSE)),"") ->  | X202: =IFERROR((AG202*AR202),"") ->  | AG202: =IF(A202="","",T202/43560) ->  | AH202: =IF(N202="","",(IF((S202-T202)<=0,0,(S202-T202)))) ->  | AI202: =IF(A202="","",AH202/43560) ->  | AJ202: =IF(A202="","",(AG202/(AG202+AI202))) ->  | AK202: =IF(ISBLANK(N202),"",IF(ISBLANK(R202),"",RowFunc(N202,R202))) ->  | AL202: =IFERROR(IF($AJ202>=0.5,INTERPRNG_h($W202,'STU Treatment Values'!$N$5:$W$38,0,1,AK202),INTERPRNG_h($W202,'STU Treatment Values'!$N$40:$W$73,0,1,$AK202)),"") ->  | AM202: =IFERROR(IF($AJ202>=0.5,INTERPRNG_h($W202,'STU Treatment Values'!$B$5:$K$38,0,1,$AK202),INTERPRNG_h($W202,'STU Treatment Values'!$B$40:$K$73,0,1,$AK202)),"") ->  | AN202: =IFERROR(IF(AL202/0.9>1,1,AL202/0.9),"") ->  | AO202: =IFERROR(IF(AM202/0.9>1,1,AM202/0.9),"") ->  | AP202: =IFERROR(INTERPRNG_h($W202,'STU Treatment Values'!$B$112:$K$145,0,1,$AK202),"") ->  | AQ202: =IFERROR(INTERPRNG_h($W202,'STU Treatment Values'!$B$76:$K$109,0,1,$AK202),"") ->  | AR202: =IFERROR((AN202+AO202+AP202+AQ202)/4,"") -> 
Q203: =IFERROR(IF(P203="Yes","Tier 1",VLOOKUP(N203,'STU Tiers'!$A$1:$B$29,2,FALSE)),"") ->  | AK203: =IF(ISBLANK(N203),"",IF(ISBLANK(R203),"",RowFunc(N203,R203))) ->  | AL203: =IFERROR(IF($AJ203>=0.5,INTERPRNG_h($W203,'STU Treatment Values'!$N$5:$W$38,0,1,AK203),INTERPRNG_h($W203,'STU Treatment Values'!$N$40:$W$73,0,1,$AK203)),"") ->  | AM203: =IFERROR(IF($AJ203>=0.5,INTERPRNG_h($W203,'STU Treatment Values'!$B$5:$K$38,0,1,$AK203),INTERPRNG_h($W203,'STU Treatment Values'!$B$40:$K$73,0,1,$AK203)),"") ->  | AP203: =IFERROR(INTERPRNG_h($W203,'STU Treatment Values'!$B$112:$K$145,0,1,$AK203),"") ->  | AQ203: =IFERROR(INTERPRNG_h($W203,'STU Treatment Values'!$B$76:$K$109,0,1,$AK203),"") -> 
Q204: =IFERROR(IF(P204="Yes","Tier 1",VLOOKUP(N204,'STU Tiers'!$A$1:$B$29,2,FALSE)),"") ->  | AK204: =IF(ISBLANK(N204),"",IF(ISBLANK(R204),"",RowFunc(N204,R204))) ->  | AL204: =IFERROR(IF($AJ204>=0.5,INTERPRNG_h($W204,'STU Treatment Values'!$N$5:$W$38,0,1,AK204),INTERPRNG_h($W204,'STU Treatment Values'!$N$40:$W$73,0,1,$AK204)),"") ->  | AM204: =IFERROR(IF($AJ204>=0.5,INTERPRNG_h($W204,'STU Treatment Values'!$B$5:$K$38,0,1,$AK204),INTERPRNG_h($W204,'STU Treatment Values'!$B$40:$K$73,0,1,$AK204)),"") ->  | AP204: =IFERROR(INTERPRNG_h($W204,'STU Treatment Values'!$B$112:$K$145,0,1,$AK204),"") ->  | AQ204: =IFERROR(INTERPRNG_h($W204,'STU Treatment Values'!$B$76:$K$109,0,1,$AK204),"") -> 
Q205: =IFERROR(IF(P205="Yes","Tier 1",VLOOKUP(N205,'STU Tiers'!$A$1:$B$29,2,FALSE)),"") ->  | AK205: =IF(ISBLANK(N205),"",IF(ISBLANK(R205),"",RowFunc(N205,R205))) ->  | AL205: =IFERROR(IF($AJ205>=0.5,INTERPRNG_h($W205,'STU Treatment Values'!$N$5:$W$38,0,1,AK205),INTERPRNG_h($W205,'STU Treatment Values'!$N$40:$W$73,0,1,$AK205)),"") ->  | AM205: =IFERROR(IF($AJ205>=0.5,INTERPRNG_h($W205,'STU Treatment Values'!$B$5:$K$38,0,1,$AK205),INTERPRNG_h($W205,'STU Treatment Values'!$B$40:$K$73,0,1,$AK205)),"") ->  | AP205: =IFERROR(INTERPRNG_h($W205,'STU Treatment Values'!$B$112:$K$145,0,1,$AK205),"") ->  | AQ205: =IFERROR(INTERPRNG_h($W205,'STU Treatment Values'!$B$76:$K$109,0,1,$AK205),"") -> 
Q206: =IFERROR(IF(P206="Yes","Tier 1",VLOOKUP(N206,'STU Tiers'!$A$1:$B$29,2,FALSE)),"") ->  | AK206: =IF(ISBLANK(N206),"",IF(ISBLANK(R206),"",RowFunc(N206,R206))) ->  | AL206: =IFERROR(IF($AJ206>=0.5,INTERPRNG_h($W206,'STU Treatment Values'!$N$5:$W$38,0,1,AK206),INTERPRNG_h($W206,'STU Treatment Values'!$N$40:$W$73,0,1,$AK206)),"") ->  | AM206: =IFERROR(IF($AJ206>=0.5,INTERPRNG_h($W206,'STU Treatment Values'!$B$5:$K$38,0,1,$AK206),INTERPRNG_h($W206,'STU Treatment Values'!$B$40:$K$73,0,1,$AK206)),"") ->  | AP206: =IFERROR(INTERPRNG_h($W206,'STU Treatment Values'!$B$112:$K$145,0,1,$AK206),"") ->  | AQ206: =IFERROR(INTERPRNG_h($W206,'STU Treatment Values'!$B$76:$K$109,0,1,$AK206),"") -> 
Q207: =IFERROR(IF(P207="Yes","Tier 1",VLOOKUP(N207,'STU Tiers'!$A$1:$B$29,2,FALSE)),"") ->  | AK207: =IF(ISBLANK(N207),"",IF(ISBLANK(R207),"",RowFunc(N207,R207))) ->  | AL207: =IFERROR(IF($AJ207>=0.5,INTERPRNG_h($W207,'STU Treatment Values'!$N$5:$W$38,0,1,AK207),INTERPRNG_h($W207,'STU Treatment Values'!$N$40:$W$73,0,1,$AK207)),"") ->  | AM207: =IFERROR(IF($AJ207>=0.5,INTERPRNG_h($W207,'STU Treatment Values'!$B$5:$K$38,0,1,$AK207),INTERPRNG_h($W207,'STU Treatment Values'!$B$40:$K$73,0,1,$AK207)),"") ->  | AP207: =IFERROR(INTERPRNG_h($W207,'STU Treatment Values'!$B$112:$K$145,0,1,$AK207),"") ->  | AQ207: =IFERROR(INTERPRNG_h($W207,'STU Treatment Values'!$B$76:$K$109,0,1,$AK207),"") -> 
Q208: =IFERROR(IF(P208="Yes","Tier 1",VLOOKUP(N208,'STU Tiers'!$A$1:$B$29,2,FALSE)),"") ->  | AK208: =IF(ISBLANK(N208),"",IF(ISBLANK(R208),"",RowFunc(N208,R208))) ->  | AL208: =IFERROR(IF($AJ208>=0.5,INTERPRNG_h($W208,'STU Treatment Values'!$N$5:$W$38,0,1,AK208),INTERPRNG_h($W208,'STU Treatment Values'!$N$40:$W$73,0,1,$AK208)),"") ->  | AM208: =IFERROR(IF($AJ208>=0.5,INTERPRNG_h($W208,'STU Treatment Values'!$B$5:$K$38,0,1,$AK208),INTERPRNG_h($W208,'STU Treatment Values'!$B$40:$K$73,0,1,$AK208)),"") ->  | AP208: =IFERROR(INTERPRNG_h($W208,'STU Treatment Values'!$B$112:$K$145,0,1,$AK208),"") ->  | AQ208: =IFERROR(INTERPRNG_h($W208,'STU Treatment Values'!$B$76:$K$109,0,1,$AK208),"") -> 
Q209: =IFERROR(IF(P209="Yes","Tier 1",VLOOKUP(N209,'STU Tiers'!$A$1:$B$29,2,FALSE)),"") ->  | AK209: =IF(ISBLANK(N209),"",IF(ISBLANK(R209),"",RowFunc(N209,R209))) ->  | AL209: =IFERROR(IF($AJ209>=0.5,INTERPRNG_h($W209,'STU Treatment Values'!$N$5:$W$38,0,1,AK209),INTERPRNG_h($W209,'STU Treatment Values'!$N$40:$W$73,0,1,$AK209)),"") ->  | AM209: =IFERROR(IF($AJ209>=0.5,INTERPRNG_h($W209,'STU Treatment Values'!$B$5:$K$38,0,1,$AK209),INTERPRNG_h($W209,'STU Treatment Values'!$B$40:$K$73,0,1,$AK209)),"") ->  | AP209: =IFERROR(INTERPRNG_h($W209,'STU Treatment Values'!$B$112:$K$145,0,1,$AK209),"") ->  | AQ209: =IFERROR(INTERPRNG_h($W209,'STU Treatment Values'!$B$76:$K$109,0,1,$AK209),"") -> 
Q210: =IFERROR(IF(P210="Yes","Tier 1",VLOOKUP(N210,'STU Tiers'!$A$1:$B$29,2,FALSE)),"") ->  | AK210: =IF(ISBLANK(N210),"",IF(ISBLANK(R210),"",RowFunc(N210,R210))) ->  | AL210: =IFERROR(IF($AJ210>=0.5,INTERPRNG_h($W210,'STU Treatment Values'!$N$5:$W$38,0,1,AK210),INTERPRNG_h($W210,'STU Treatment Values'!$N$40:$W$73,0,1,$AK210)),"") ->  | AM210: =IFERROR(IF($AJ210>=0.5,INTERPRNG_h($W210,'STU Treatment Values'!$B$5:$K$38,0,1,$AK210),INTERPRNG_h($W210,'STU Treatment Values'!$B$40:$K$73,0,1,$AK210)),"") ->  | AP210: =IFERROR(INTERPRNG_h($W210,'STU Treatment Values'!$B$112:$K$145,0,1,$AK210),"") ->  | AQ210: =IFERROR(INTERPRNG_h($W210,'STU Treatment Values'!$B$76:$K$109,0,1,$AK210),"") -> 
Q211: =IFERROR(IF(P211="Yes","Tier 1",VLOOKUP(N211,'STU Tiers'!$A$1:$B$29,2,FALSE)),"") ->  | AK211: =IF(ISBLANK(N211),"",IF(ISBLANK(R211),"",RowFunc(N211,R211))) ->  | AL211: =IFERROR(IF($AJ211>=0.5,INTERPRNG_h($W211,'STU Treatment Values'!$N$5:$W$38,0,1,AK211),INTERPRNG_h($W211,'STU Treatment Values'!$N$40:$W$73,0,1,$AK211)),"") ->  | AM211: =IFERROR(IF($AJ211>=0.5,INTERPRNG_h($W211,'STU Treatment Values'!$B$5:$K$38,0,1,$AK211),INTERPRNG_h($W211,'STU Treatment Values'!$B$40:$K$73,0,1,$AK211)),"") ->  | AP211: =IFERROR(INTERPRNG_h($W211,'STU Treatment Values'!$B$112:$K$145,0,1,$AK211),"") ->  | AQ211: =IFERROR(INTERPRNG_h($W211,'STU Treatment Values'!$B$76:$K$109,0,1,$AK211),"") -> 
Q212: =IFERROR(IF(P212="Yes","Tier 1",VLOOKUP(N212,'STU Tiers'!$A$1:$B$29,2,FALSE)),"") ->  | AK212: =IF(ISBLANK(N212),"",IF(ISBLANK(R212),"",RowFunc(N212,R212))) ->  | AL212: =IFERROR(IF($AJ212>=0.5,INTERPRNG_h($W212,'STU Treatment Values'!$N$5:$W$38,0,1,AK212),INTERPRNG_h($W212,'STU Treatment Values'!$N$40:$W$73,0,1,$AK212)),"") ->  | AM212: =IFERROR(IF($AJ212>=0.5,INTERPRNG_h($W212,'STU Treatment Values'!$B$5:$K$38,0,1,$AK212),INTERPRNG_h($W212,'STU Treatment Values'!$B$40:$K$73,0,1,$AK212)),"") ->  | AP212: =IFERROR(INTERPRNG_h($W212,'STU Treatment Values'!$B$112:$K$145,0,1,$AK212),"") ->  | AQ212: =IFERROR(INTERPRNG_h($W212,'STU Treatment Values'!$B$76:$K$109,0,1,$AK212),"") -> 
Q213: =IFERROR(IF(P213="Yes","Tier 1",VLOOKUP(N213,'STU Tiers'!$A$1:$B$29,2,FALSE)),"") ->  | AK213: =IF(ISBLANK(N213),"",IF(ISBLANK(R213),"",RowFunc(N213,R213))) ->  | AL213: =IFERROR(IF($AJ213>=0.5,INTERPRNG_h($W213,'STU Treatment Values'!$N$5:$W$38,0,1,AK213),INTERPRNG_h($W213,'STU Treatment Values'!$N$40:$W$73,0,1,$AK213)),"") ->  | AM213: =IFERROR(IF($AJ213>=0.5,INTERPRNG_h($W213,'STU Treatment Values'!$B$5:$K$38,0,1,$AK213),INTERPRNG_h($W213,'STU Treatment Values'!$B$40:$K$73,0,1,$AK213)),"") ->  | AP213: =IFERROR(INTERPRNG_h($W213,'STU Treatment Values'!$B$112:$K$145,0,1,$AK213),"") ->  | AQ213: =IFERROR(INTERPRNG_h($W213,'STU Treatment Values'!$B$76:$K$109,0,1,$AK213),"") -> 
Q214: =IFERROR(IF(P214="Yes","Tier 1",VLOOKUP(N214,'STU Tiers'!$A$1:$B$29,2,FALSE)),"") ->  | AK214: =IF(ISBLANK(N214),"",IF(ISBLANK(R214),"",RowFunc(N214,R214))) ->  | AL214: =IFERROR(IF($AJ214>=0.5,INTERPRNG_h($W214,'STU Treatment Values'!$N$5:$W$38,0,1,AK214),INTERPRNG_h($W214,'STU Treatment Values'!$N$40:$W$73,0,1,$AK214)),"") ->  | AM214: =IFERROR(IF($AJ214>=0.5,INTERPRNG_h($W214,'STU Treatment Values'!$B$5:$K$38,0,1,$AK214),INTERPRNG_h($W214,'STU Treatment Values'!$B$40:$K$73,0,1,$AK214)),"") ->  | AP214: =IFERROR(INTERPRNG_h($W214,'STU Treatment Values'!$B$112:$K$145,0,1,$AK214),"") ->  | AQ214: =IFERROR(INTERPRNG_h($W214,'STU Treatment Values'!$B$76:$K$109,0,1,$AK214),"") -> 
Q215: =IFERROR(IF(P215="Yes","Tier 1",VLOOKUP(N215,'STU Tiers'!$A$1:$B$29,2,FALSE)),"") ->  | AK215: =IF(ISBLANK(N215),"",IF(ISBLANK(R215),"",RowFunc(N215,R215))) ->  | AL215: =IFERROR(IF($AJ215>=0.5,INTERPRNG_h($W215,'STU Treatment Values'!$N$5:$W$38,0,1,AK215),INTERPRNG_h($W215,'STU Treatment Values'!$N$40:$W$73,0,1,$AK215)),"") ->  | AM215: =IFERROR(IF($AJ215>=0.5,INTERPRNG_h($W215,'STU Treatment Values'!$B$5:$K$38,0,1,$AK215),INTERPRNG_h($W215,'STU Treatment Values'!$B$40:$K$73,0,1,$AK215)),"") ->  | AP215: =IFERROR(INTERPRNG_h($W215,'STU Treatment Values'!$B$112:$K$145,0,1,$AK215),"") ->  | AQ215: =IFERROR(INTERPRNG_h($W215,'STU Treatment Values'!$B$76:$K$109,0,1,$AK215),"") -> 
Q216: =IFERROR(IF(P216="Yes","Tier 1",VLOOKUP(N216,'STU Tiers'!$A$1:$B$29,2,FALSE)),"") ->  | AK216: =IF(ISBLANK(N216),"",IF(ISBLANK(R216),"",RowFunc(N216,R216))) ->  | AL216: =IFERROR(IF($AJ216>=0.5,INTERPRNG_h($W216,'STU Treatment Values'!$N$5:$W$38,0,1,AK216),INTERPRNG_h($W216,'STU Treatment Values'!$N$40:$W$73,0,1,$AK216)),"") ->  | AM216: =IFERROR(IF($AJ216>=0.5,INTERPRNG_h($W216,'STU Treatment Values'!$B$5:$K$38,0,1,$AK216),INTERPRNG_h($W216,'STU Treatment Values'!$B$40:$K$73,0,1,$AK216)),"") ->  | AP216: =IFERROR(INTERPRNG_h($W216,'STU Treatment Values'!$B$112:$K$145,0,1,$AK216),"") ->  | AQ216: =IFERROR(INTERPRNG_h($W216,'STU Treatment Values'!$B$76:$K$109,0,1,$AK216),"") -> 
Q217: =IFERROR(IF(P217="Yes","Tier 1",VLOOKUP(N217,'STU Tiers'!$A$1:$B$29,2,FALSE)),"") ->  | AK217: =IF(ISBLANK(N217),"",IF(ISBLANK(R217),"",RowFunc(N217,R217))) ->  | AL217: =IFERROR(IF($AJ217>=0.5,INTERPRNG_h($W217,'STU Treatment Values'!$N$5:$W$38,0,1,AK217),INTERPRNG_h($W217,'STU Treatment Values'!$N$40:$W$73,0,1,$AK217)),"") ->  | AM217: =IFERROR(IF($AJ217>=0.5,INTERPRNG_h($W217,'STU Treatment Values'!$B$5:$K$38,0,1,$AK217),INTERPRNG_h($W217,'STU Treatment Values'!$B$40:$K$73,0,1,$AK217)),"") ->  | AP217: =IFERROR(INTERPRNG_h($W217,'STU Treatment Values'!$B$112:$K$145,0,1,$AK217),"") ->  | AQ217: =IFERROR(INTERPRNG_h($W217,'STU Treatment Values'!$B$76:$K$109,0,1,$AK217),"") -> 
Q218: =IFERROR(IF(P218="Yes","Tier 1",VLOOKUP(N218,'STU Tiers'!$A$1:$B$29,2,FALSE)),"") ->  | AK218: =IF(ISBLANK(N218),"",IF(ISBLANK(R218),"",RowFunc(N218,R218))) ->  | AL218: =IFERROR(IF($AJ218>=0.5,INTERPRNG_h($W218,'STU Treatment Values'!$N$5:$W$38,0,1,AK218),INTERPRNG_h($W218,'STU Treatment Values'!$N$40:$W$73,0,1,$AK218)),"") ->  | AM218: =IFERROR(IF($AJ218>=0.5,INTERPRNG_h($W218,'STU Treatment Values'!$B$5:$K$38,0,1,$AK218),INTERPRNG_h($W218,'STU Treatment Values'!$B$40:$K$73,0,1,$AK218)),"") ->  | AP218: =IFERROR(INTERPRNG_h($W218,'STU Treatment Values'!$B$112:$K$145,0,1,$AK218),"") ->  | AQ218: =IFERROR(INTERPRNG_h($W218,'STU Treatment Values'!$B$76:$K$109,0,1,$AK218),"") -> 
Q219: =IFERROR(IF(P219="Yes","Tier 1",VLOOKUP(N219,'STU Tiers'!$A$1:$B$29,2,FALSE)),"") ->  | AK219: =IF(ISBLANK(N219),"",IF(ISBLANK(R219),"",RowFunc(N219,R219))) ->  | AL219: =IFERROR(IF($AJ219>=0.5,INTERPRNG_h($W219,'STU Treatment Values'!$N$5:$W$38,0,1,AK219),INTERPRNG_h($W219,'STU Treatment Values'!$N$40:$W$73,0,1,$AK219)),"") ->  | AM219: =IFERROR(IF($AJ219>=0.5,INTERPRNG_h($W219,'STU Treatment Values'!$B$5:$K$38,0,1,$AK219),INTERPRNG_h($W219,'STU Treatment Values'!$B$40:$K$73,0,1,$AK219)),"") ->  | AP219: =IFERROR(INTERPRNG_h($W219,'STU Treatment Values'!$B$112:$K$145,0,1,$AK219),"") ->  | AQ219: =IFERROR(INTERPRNG_h($W219,'STU Treatment Values'!$B$76:$K$109,0,1,$AK219),"") -> 
Q220: =IFERROR(IF(P220="Yes","Tier 1",VLOOKUP(N220,'STU Tiers'!$A$1:$B$29,2,FALSE)),"") ->  | AK220: =IF(ISBLANK(N220),"",IF(ISBLANK(R220),"",RowFunc(N220,R220))) ->  | AL220: =IFERROR(IF($AJ220>=0.5,INTERPRNG_h($W220,'STU Treatment Values'!$N$5:$W$38,0,1,AK220),INTERPRNG_h($W220,'STU Treatment Values'!$N$40:$W$73,0,1,$AK220)),"") ->  | AM220: =IFERROR(IF($AJ220>=0.5,INTERPRNG_h($W220,'STU Treatment Values'!$B$5:$K$38,0,1,$AK220),INTERPRNG_h($W220,'STU Treatment Values'!$B$40:$K$73,0,1,$AK220)),"") ->  | AP220: =IFERROR(INTERPRNG_h($W220,'STU Treatment Values'!$B$112:$K$145,0,1,$AK220),"") ->  | AQ220: =IFERROR(INTERPRNG_h($W220,'STU Treatment Values'!$B$76:$K$109,0,1,$AK220),"") -> 
Q221: =IFERROR(IF(P221="Yes","Tier 1",VLOOKUP(N221,'STU Tiers'!$A$1:$B$29,2,FALSE)),"") ->  | AK221: =IF(ISBLANK(N221),"",IF(ISBLANK(R221),"",RowFunc(N221,R221))) ->  | AL221: =IFERROR(IF($AJ221>=0.5,INTERPRNG_h($W221,'STU Treatment Values'!$N$5:$W$38,0,1,AK221),INTERPRNG_h($W221,'STU Treatment Values'!$N$40:$W$73,0,1,$AK221)),"") ->  | AM221: =IFERROR(IF($AJ221>=0.5,INTERPRNG_h($W221,'STU Treatment Values'!$B$5:$K$38,0,1,$AK221),INTERPRNG_h($W221,'STU Treatment Values'!$B$40:$K$73,0,1,$AK221)),"") ->  | AP221: =IFERROR(INTERPRNG_h($W221,'STU Treatment Values'!$B$112:$K$145,0,1,$AK221),"") ->  | AQ221: =IFERROR(INTERPRNG_h($W221,'STU Treatment Values'!$B$76:$K$109,0,1,$AK221),"") -> 
Q222: =IFERROR(IF(P222="Yes","Tier 1",VLOOKUP(N222,'STU Tiers'!$A$1:$B$29,2,FALSE)),"") ->  | AK222: =IF(ISBLANK(N222),"",IF(ISBLANK(R222),"",RowFunc(N222,R222))) ->  | AL222: =IFERROR(IF($AJ222>=0.5,INTERPRNG_h($W222,'STU Treatment Values'!$N$5:$W$38,0,1,AK222),INTERPRNG_h($W222,'STU Treatment Values'!$N$40:$W$73,0,1,$AK222)),"") ->  | AM222: =IFERROR(IF($AJ222>=0.5,INTERPRNG_h($W222,'STU Treatment Values'!$B$5:$K$38,0,1,$AK222),INTERPRNG_h($W222,'STU Treatment Values'!$B$40:$K$73,0,1,$AK222)),"") ->  | AP222: =IFERROR(INTERPRNG_h($W222,'STU Treatment Values'!$B$112:$K$145,0,1,$AK222),"") ->  | AQ222: =IFERROR(INTERPRNG_h($W222,'STU Treatment Values'!$B$76:$K$109,0,1,$AK222),"") -> 
Q223: =IFERROR(IF(P223="Yes","Tier 1",VLOOKUP(N223,'STU Tiers'!$A$1:$B$29,2,FALSE)),"") ->  | AK223: =IF(ISBLANK(N223),"",IF(ISBLANK(R223),"",RowFunc(N223,R223))) ->  | AL223: =IFERROR(IF($AJ223>=0.5,INTERPRNG_h($W223,'STU Treatment Values'!$N$5:$W$38,0,1,AK223),INTERPRNG_h($W223,'STU Treatment Values'!$N$40:$W$73,0,1,$AK223)),"") ->  | AM223: =IFERROR(IF($AJ223>=0.5,INTERPRNG_h($W223,'STU Treatment Values'!$B$5:$K$38,0,1,$AK223),INTERPRNG_h($W223,'STU Treatment Values'!$B$40:$K$73,0,1,$AK223)),"") ->  | AP223: =IFERROR(INTERPRNG_h($W223,'STU Treatment Values'!$B$112:$K$145,0,1,$AK223),"") ->  | AQ223: =IFERROR(INTERPRNG_h($W223,'STU Treatment Values'!$B$76:$K$109,0,1,$AK223),"") -> 
Q224: =IFERROR(IF(P224="Yes","Tier 1",VLOOKUP(N224,'STU Tiers'!$A$1:$B$29,2,FALSE)),"") ->  | AK224: =IF(ISBLANK(N224),"",IF(ISBLANK(R224),"",RowFunc(N224,R224))) ->  | AL224: =IFERROR(IF($AJ224>=0.5,INTERPRNG_h($W224,'STU Treatment Values'!$N$5:$W$38,0,1,AK224),INTERPRNG_h($W224,'STU Treatment Values'!$N$40:$W$73,0,1,$AK224)),"") ->  | AM224: =IFERROR(IF($AJ224>=0.5,INTERPRNG_h($W224,'STU Treatment Values'!$B$5:$K$38,0,1,$AK224),INTERPRNG_h($W224,'STU Treatment Values'!$B$40:$K$73,0,1,$AK224)),"") ->  | AP224: =IFERROR(INTERPRNG_h($W224,'STU Treatment Values'!$B$112:$K$145,0,1,$AK224),"") ->  | AQ224: =IFERROR(INTERPRNG_h($W224,'STU Treatment Values'!$B$76:$K$109,0,1,$AK224),"") -> 
Q225: =IFERROR(IF(P225="Yes","Tier 1",VLOOKUP(N225,'STU Tiers'!$A$1:$B$29,2,FALSE)),"") ->  | AK225: =IF(ISBLANK(N225),"",IF(ISBLANK(R225),"",RowFunc(N225,R225))) ->  | AL225: =IFERROR(IF($AJ225>=0.5,INTERPRNG_h($W225,'STU Treatment Values'!$N$5:$W$38,0,1,AK225),INTERPRNG_h($W225,'STU Treatment Values'!$N$40:$W$73,0,1,$AK225)),"") ->  | AM225: =IFERROR(IF($AJ225>=0.5,INTERPRNG_h($W225,'STU Treatment Values'!$B$5:$K$38,0,1,$AK225),INTERPRNG_h($W225,'STU Treatment Values'!$B$40:$K$73,0,1,$AK225)),"") ->  | AP225: =IFERROR(INTERPRNG_h($W225,'STU Treatment Values'!$B$112:$K$145,0,1,$AK225),"") ->  | AQ225: =IFERROR(INTERPRNG_h($W225,'STU Treatment Values'!$B$76:$K$109,0,1,$AK225),"") -> 
Q226: =IFERROR(IF(P226="Yes","Tier 1",VLOOKUP(N226,'STU Tiers'!$A$1:$B$29,2,FALSE)),"") ->  | AK226: =IF(ISBLANK(N226),"",IF(ISBLANK(R226),"",RowFunc(N226,R226))) ->  | AL226: =IFERROR(IF($AJ226>=0.5,INTERPRNG_h($W226,'STU Treatment Values'!$N$5:$W$38,0,1,AK226),INTERPRNG_h($W226,'STU Treatment Values'!$N$40:$W$73,0,1,$AK226)),"") ->  | AM226: =IFERROR(IF($AJ226>=0.5,INTERPRNG_h($W226,'STU Treatment Values'!$B$5:$K$38,0,1,$AK226),INTERPRNG_h($W226,'STU Treatment Values'!$B$40:$K$73,0,1,$AK226)),"") ->  | AP226: =IFERROR(INTERPRNG_h($W226,'STU Treatment Values'!$B$112:$K$145,0,1,$AK226),"") ->  | AQ226: =IFERROR(INTERPRNG_h($W226,'STU Treatment Values'!$B$76:$K$109,0,1,$AK226),"") -> 
Q227: =IFERROR(IF(P227="Yes","Tier 1",VLOOKUP(N227,'STU Tiers'!$A$1:$B$29,2,FALSE)),"") ->  | AK227: =IF(ISBLANK(N227),"",IF(ISBLANK(R227),"",RowFunc(N227,R227))) ->  | AL227: =IFERROR(IF($AJ227>=0.5,INTERPRNG_h($W227,'STU Treatment Values'!$N$5:$W$38,0,1,AK227),INTERPRNG_h($W227,'STU Treatment Values'!$N$40:$W$73,0,1,$AK227)),"") ->  | AM227: =IFERROR(IF($AJ227>=0.5,INTERPRNG_h($W227,'STU Treatment Values'!$B$5:$K$38,0,1,$AK227),INTERPRNG_h($W227,'STU Treatment Values'!$B$40:$K$73,0,1,$AK227)),"") ->  | AP227: =IFERROR(INTERPRNG_h($W227,'STU Treatment Values'!$B$112:$K$145,0,1,$AK227),"") ->  | AQ227: =IFERROR(INTERPRNG_h($W227,'STU Treatment Values'!$B$76:$K$109,0,1,$AK227),"") -> 
Q228: =IFERROR(IF(P228="Yes","Tier 1",VLOOKUP(N228,'STU Tiers'!$A$1:$B$29,2,FALSE)),"") ->  | AK228: =IF(ISBLANK(N228),"",IF(ISBLANK(R228),"",RowFunc(N228,R228))) ->  | AL228: =IFERROR(IF($AJ228>=0.5,INTERPRNG_h($W228,'STU Treatment Values'!$N$5:$W$38,0,1,AK228),INTERPRNG_h($W228,'STU Treatment Values'!$N$40:$W$73,0,1,$AK228)),"") ->  | AM228: =IFERROR(IF($AJ228>=0.5,INTERPRNG_h($W228,'STU Treatment Values'!$B$5:$K$38,0,1,$AK228),INTERPRNG_h($W228,'STU Treatment Values'!$B$40:$K$73,0,1,$AK228)),"") ->  | AP228: =IFERROR(INTERPRNG_h($W228,'STU Treatment Values'!$B$112:$K$145,0,1,$AK228),"") ->  | AQ228: =IFERROR(INTERPRNG_h($W228,'STU Treatment Values'!$B$76:$K$109,0,1,$AK228),"") -> 
Q229: =IFERROR(IF(P229="Yes","Tier 1",VLOOKUP(N229,'STU Tiers'!$A$1:$B$29,2,FALSE)),"") ->  | W229: =IFERROR((V229/T229*12),"") ->  | AK229: =IF(ISBLANK(N229),"",IF(ISBLANK(R229),"",RowFunc(N229,R229))) ->  | AL229: =IFERROR(IF($AJ229>=0.5,INTERPRNG_h($W229,'STU Treatment Values'!$N$5:$W$38,0,1,AK229),INTERPRNG_h($W229,'STU Treatment Values'!$N$40:$W$73,0,1,$AK229)),"") ->  | AM229: =IFERROR(IF($AJ229>=0.5,INTERPRNG_h($W229,'STU Treatment Values'!$B$5:$K$38,0,1,$AK229),INTERPRNG_h($W229,'STU Treatment Values'!$B$40:$K$73,0,1,$AK229)),"") ->  | AP229: =IFERROR(INTERPRNG_h($W229,'STU Treatment Values'!$B$112:$K$145,0,1,$AK229),"") ->  | AQ229: =IFERROR(INTERPRNG_h($W229,'STU Treatment Values'!$B$76:$K$109,0,1,$AK229),"") -> 

Sheet Worksheet B-30%
A1: Worksheet B-30%
A3: Date: | D3: Prepared By:
A5: Project ID: | B5: =IFERROR(IF('Cover Sheet'!G3=0,"",'Cover Sheet'!G3),"") ->  | D5: Location: | E5: =IFERROR(IF('Cover Sheet'!G4=0,"",'Cover Sheet'!G4),"") ->  | F5: Municipality: | G5: =IFERROR(IF('Cover Sheet'!G5=0,"",'Cover Sheet'!G5),"") -> 
A7: Instructions: Enter data in Non-Discharge Areas, Worksheet A-Scoping and LID & STUs tabs to populate shaded boxes.
A9: PART 1 | D9: Project Information | F9: Stormwater Treatment Information
A10: Information from Worksheet A. Rows A & B are auto populated from Worksheet A-Scoping. | C10: A | D10: Waterbody ID (WBID) | F10: =IF('Worksheet A-Scoping'!F10="","",'Worksheet A-Scoping'!F10) ->  | G10: =IF('Worksheet A-Scoping'!G10="","",'Worksheet A-Scoping'!G10) ->  | H10: =IF('Worksheet A-Scoping'!H10="","",'Worksheet A-Scoping'!H10) -> 
C11: B | D11: Total Stormwater Treatment Goal (acres) | F11: =IFERROR(('Worksheet A-Scoping'!F26),"") -> 0 | G11: =IFERROR(('Worksheet A-Scoping'!G26),"") -> 0 | H11: =IFERROR(('Worksheet A-Scoping'!H26),"") -> 0
A12: Stormwater Treatment Credit (Effective Impervious Cover). Rows C - E are auto populated from the LID & STUs tab. | C12: C | D12: Existing STUsA (acres) | F12: =SUMIF('LID & STUs'!$B$18:$B$47,F10,'LID & STUs'!$U$18:$U$47) -> 0 | G12: =SUMIF('LID & STUs'!$B$18:$B$47,G10,'LID & STUs'!$U$18:$U$47) -> 0 | H12: =SUMIF('LID & STUs'!$B$18:$B$47,H10,'LID & STUs'!$U$18:$U$47) -> 0
C13: D | D13: Existing IC Disconnection (acres) | F13: =SUMIF('LID & STUs'!$B$53:$B$82,F10,'LID & STUs'!$N$53:$N$82) -> 0 | G13: =SUMIF('LID & STUs'!$B$53:$B$82,G10,'LID & STUs'!$N$53:$N$82) -> 0 | H13: =SUMIF('LID & STUs'!$B$53:$B$82,H10,'LID & STUs'!$N$53:$N$82) -> 0
C14: E | D14: Pavement Removal (acres) | F14: =SUMIF('LID & STUs'!$B$88:$B$120,F10,'LID & STUs'!$E$88:$E$120) -> 0 | G14: =SUMIF('LID & STUs'!$B$88:$B$120,G10,'LID & STUs'!$E$88:$E$120) -> 0 | H14: =SUMIF('LID & STUs'!$B$88:$B$120,H10,'LID & STUs'!$E$88:$E$120) -> 0
A15: Calculate Total Treatment Provided. | C15: F | D15: Total Area of Stormwater Treated (acres) = Sum of Items in Rows C through E | F15: =IFERROR(SUM(F12:F14),"") -> 0 | G15: =IFERROR(SUM(G12:G14),"") -> 0 | H15: =IFERROR(SUM(H12:H14),"") -> 0
A16: Calculate Treatment Surplus/Deficit. | C16: G | D16: Total AreaB of Remaining Stormwater Requiring Treatment (acres) = (B) - (F) | F16: =IFERROR((F11-F15),"") -> 0 | G16: =IFERROR((G11-G15),"") -> 0 | H16: =IFERROR((H11-H15),"") -> 0
A17: ACredit is given to existing, non-functioning STUs if maintenance is proposed as part of this project. BNegative value indicates a surplus of treatment.
A20: PART 2 (treatment deficit only)
A21: Attach justification to this worksheet for treatment deficit.

Sheet Worksheet B-90%
A1: Worksheet B-90%
A3: Date: | D3: Prepared By:
A5: Project ID: | B5: =IFERROR(IF('Cover Sheet'!G3=0,"",'Cover Sheet'!G3),"") ->  | D5: Location: | E5: =IFERROR(IF('Cover Sheet'!G4=0,"",'Cover Sheet'!G4),"") ->  | F5: Municipality: | G5: =IFERROR(IF('Cover Sheet'!G5=0,"",'Cover Sheet'!G5),"") -> 
A7: Instructions: Enter data in Non-Discharge Areas, Worksheet A-Scoping and LID & STUs tabs to populate shaded boxes.
A9: PART 1 | D9: Project Information | F9: Stormwater Treatment Information
A10: Information from Worksheet A. Rows A & B are auto populated from Worksheet A-Scoping. | C10: A | D10: Waterbody ID (WBID) | F10: =IF('Worksheet A-Scoping'!F10="","",'Worksheet A-Scoping'!F10) ->  | G10: =IF('Worksheet A-Scoping'!G10="","",'Worksheet A-Scoping'!G10) ->  | H10: =IF('Worksheet A-Scoping'!H10="","",'Worksheet A-Scoping'!H10) -> 
C11: B | D11: Total Stormwater Treatment Goal (acres) | F11: =IFERROR(('Worksheet A-Scoping'!F26),"") -> 0 | G11: =IFERROR(('Worksheet A-Scoping'!G26),"") -> 0 | H11: =IFERROR(('Worksheet A-Scoping'!H26),"") -> 0
A12: Stormwater Treatment Credit (Effective Impervious Cover). Rows C - K are auto populated from the STU tab. Notes: 1) Rows C & D apply to all existing treatment. 2) Rows E - G apply to all proposed non-structural treatment. 3) Rows H - K apply to all proposed structural treatment. | C12: C | D12: Existing STUsA (acres) | F12: =SUMIF('LID & STUs'!$B$18:$B$47,F10,'LID & STUs'!$U$18:$U$47) -> 0 | G12: =SUMIF('LID & STUs'!$B$18:$B$47,G10,'LID & STUs'!$U$18:$U$47) -> 0 | H12: =SUMIF('LID & STUs'!$B$18:$B$47,H10,'LID & STUs'!$U$18:$U$47) -> 0
C13: D | D13: Existing IC Disconnection (acres) | F13: =SUMIF('LID & STUs'!$B$53:$B$82,F10,'LID & STUs'!$N$53:$N$82) -> 0 | G13: =SUMIF('LID & STUs'!$B$53:$B$82,G10,'LID & STUs'!$N$53:$N$82) -> 0 | H13: =SUMIF('LID & STUs'!$B$53:$B$82,H10,'LID & STUs'!$N$53:$N$82) -> 0
C14: E | D14: Pavement Removal (acres) | F14: =SUMIF('LID & STUs'!$B$88:$B$120,F10,'LID & STUs'!$E$88:$E$120) -> 0 | G14: =SUMIF('LID & STUs'!$B$88:$B$120,G10,'LID & STUs'!$E$88:$E$120) -> 0 | H14: =SUMIF('LID & STUs'!$B$88:$B$120,H10,'LID & STUs'!$E$88:$E$120) -> 0
C15: F | D15: Redirected to a Non-Discharge Area (acres) | F15: =SUMIF('LID & STUs'!$B$128:$B$157,F10,'LID & STUs'!$O$128:$O$157) -> 0 | G15: =SUMIF('LID & STUs'!$B$128:$B$157,G10,'LID & STUs'!$O$128:$O$157) -> 0 | H15: =SUMIF('LID & STUs'!$B$128:$B$157,H10,'LID & STUs'!$O$128:$O$157) -> 0
C16: G | D16: Redirected to an IC Disconnection Area (acres) | F16: =SUMIF('LID & STUs'!$B$163:$B$192,F10,'LID & STUs'!$N$163:$N$192) -> 0 | G16: =SUMIF('LID & STUs'!$B$163:$B$192,G10,'LID & STUs'!$N$163:$N$192) -> 0 | H16: =SUMIF('LID & STUs'!$B$163:$B$192,H10,'LID & STUs'!$N$163:$N$192) -> 0
C17: H | D17: Tier 1 Structural STUs (acres) | F17: =SUMIFS('LID & STUs'!$X$200:$X$229,'LID & STUs'!$B$200:$B$229,F10,'LID & STUs'!$Q$200:$Q$229,"Tier 1",'LID & STUs'!$M$200:$M$229,"Inside the Project Limits") -> 0 | G17: =SUMIFS('LID & STUs'!$X$200:$X$229,'LID & STUs'!$B$200:$B$229,G10,'LID & STUs'!$Q$200:$Q$229,"Tier 1",'LID & STUs'!$M$200:$M$229,"Inside the Project Limits") -> 0 | H17: =SUMIFS('LID & STUs'!$X$200:$X$229,'LID & STUs'!$B$200:$B$229,H10,'LID & STUs'!$Q$200:$Q$229,"Tier 1",'LID & STUs'!$M$200:$M$229,"Inside the Project Limits") -> 0
C18: I | D18: Tier 2 Structural STUs (acres) | F18: =SUMIFS('LID & STUs'!$X$200:$X$229,'LID & STUs'!$B$200:$B$229,F10,'LID & STUs'!$Q$200:$Q$229,"Tier 2",'LID & STUs'!$M$200:$M$229,"Inside the Project Limits") -> 0 | G18: =SUMIFS('LID & STUs'!$X$200:$X$229,'LID & STUs'!$B$200:$B$229,G10,'LID & STUs'!$Q$200:$Q$229,"Tier 2",'LID & STUs'!$M$200:$M$229,"Inside the Project Limits") -> 0 | H18: =SUMIFS('LID & STUs'!$X$200:$X$229,'LID & STUs'!$B$200:$B$229,H10,'LID & STUs'!$Q$200:$Q$229,"Tier 2",'LID & STUs'!$M$200:$M$229,"Inside the Project Limits") -> 0
C19: J | D19: Tier 3 Structural STUs (acres) | F19: =SUMIFS('LID & STUs'!$X$200:$X$229,'LID & STUs'!$B$200:$B$229,F10,'LID & STUs'!$Q$200:$Q$229,"Tier 3",'LID & STUs'!$M$200:$M$229,"Inside the Project Limits") -> 0 | G19: =SUMIFS('LID & STUs'!$X$200:$X$229,'LID & STUs'!$B$200:$B$229,G10,'LID & STUs'!$Q$200:$Q$229,"Tier 3",'LID & STUs'!$M$200:$M$229,"Inside the Project Limits") -> 0 | H19: =SUMIFS('LID & STUs'!$X$200:$X$229,'LID & STUs'!$B$200:$B$229,H10,'LID & STUs'!$Q$200:$Q$229,"Tier 3",'LID & STUs'!$M$200:$M$229,"Inside the Project Limits") -> 0
C20: K | D20: STUs Outside the Project Limits (acres) | F20: =SUMIFS('LID & STUs'!$X$200:$X$229,'LID & STUs'!$B$200:$B$229,F10,'LID & STUs'!$M$200:$M$229,"Outside the Project Limits") -> 0 | G20: =SUMIFS('LID & STUs'!$X$200:$X$229,'LID & STUs'!$B$200:$B$229,G10,'LID & STUs'!$M$200:$M$229,"Outside the Project Limits") -> 0 | H20: =SUMIFS('LID & STUs'!$X$200:$X$229,'LID & STUs'!$B$200:$B$229,H10,'LID & STUs'!$M$200:$M$229,"Outside the Project Limits") -> 0
A21: Calculate Total Treatment Provided. | C21: L | D21: Total Area of Stormwater Treated (acres) = Sum of Items in Rows C through K | F21: =IFERROR(SUM(F12:F20),"") -> 0 | G21: =IFERROR(SUM(G12:G20),"") -> 0 | H21: =IFERROR(SUM(H12:H20),"") -> 0
A22: Calculate Treatment Surplus/Deficit. | C22: M | D22: Total AreaB of Remaining Stormwater Requiring Treatment (acres) = (B) - (L) | F22: =IFERROR((F11-F21),"") -> 0 | G22: =IFERROR((G11-G21),"") -> 0 | H22: 0
A23: ACredit is given to existing, non-functioning STUs if maintenance is proposed as part of this project. BNegative value indicates a surplus of treatment.
A25: PART 2 (treatment deficit only)
A26: Attach justification to this worksheet for treatment deficit.

Sheet Worksheet C-As Built
A1: Worksheet C-As Built
A3: Date: | D3: Prepared By:
A5: Project ID: | B5: =IFERROR(IF('Cover Sheet'!G3=0,"",'Cover Sheet'!G3),"") ->  | D5: Location: | E5: =IFERROR(IF('Cover Sheet'!G4=0,"",'Cover Sheet'!G4),"") ->  | F5: Municipality: | G5: =IFERROR(IF('Cover Sheet'!G5=0,"",'Cover Sheet'!G5),"") -> 
A7: Instructions: Enter data in Non-Discharge Areas, Worksheet A-Scoping and LID & STUs tabs to populate shaded boxes.
A9: PART 1 | D9: Project Information | F9: Stormwater Treatment Information
A10: Information from Worksheet A. Rows A & B are auto populated from Worksheet A-Scoping. | C10: A | D10: Waterbody ID (WBID) | F10: =IF('Worksheet A-Scoping'!F10="","",'Worksheet A-Scoping'!F10) ->  | G10: =IF('Worksheet A-Scoping'!G10="","",'Worksheet A-Scoping'!G10) ->  | H10: =IF('Worksheet A-Scoping'!H10="","",'Worksheet A-Scoping'!H10) -> 
C11: B | D11: Total Stormwater Treatment Goal (acres) | F11: =IFERROR(('Worksheet A-Scoping'!F26),"") -> 0 | G11: =IFERROR(('Worksheet A-Scoping'!G26),"") -> 0 | H11: =IFERROR(('Worksheet A-Scoping'!H26),"") -> 0
A12: Stormwater Treatment Credit (Effective Impervious Cover). Rows C - K are auto populated from the STU tab. Notes: 1) Rows C & D apply to all existing treatment. 2) Rows E - G apply to all proposed non-structural treatment. 3) Rows H - K apply to all proposed structural treatment. | C12: C | D12: Existing STUsA (acres) | F12: =SUMIF('LID & STUs'!$B$18:$B$47,F10,'LID & STUs'!$U$18:$U$47) -> 0 | G12: =SUMIF('LID & STUs'!$B$18:$B$47,G10,'LID & STUs'!$U$18:$U$47) -> 0 | H12: =SUMIF('LID & STUs'!$B$18:$B$47,H10,'LID & STUs'!$U$18:$U$47) -> 0
C13: D | D13: Existing IC Disconnection (acres) | F13: =SUMIF('LID & STUs'!$B$53:$B$82,F10,'LID & STUs'!$N$53:$N$82) -> 0 | G13: =SUMIF('LID & STUs'!$B$53:$B$82,G10,'LID & STUs'!$N$53:$N$82) -> 0 | H13: =SUMIF('LID & STUs'!$B$53:$B$82,H10,'LID & STUs'!$N$53:$N$82) -> 0
C14: E | D14: Pavement Removal (acres) | F14: =SUMIF('LID & STUs'!$B$88:$B$120,F10,'LID & STUs'!$E$88:$E$120) -> 0 | G14: =SUMIF('LID & STUs'!$B$88:$B$120,G10,'LID & STUs'!$E$88:$E$120) -> 0 | H14: =SUMIF('LID & STUs'!$B$88:$B$120,H10,'LID & STUs'!$E$88:$E$120) -> 0
C15: F | D15: Redirected to a Non-Discharge Area (acres) | F15: =SUMIF('LID & STUs'!$B$128:$B$157,F10,'LID & STUs'!$O$128:$O$157) -> 0 | G15: =SUMIF('LID & STUs'!$B$128:$B$157,G10,'LID & STUs'!$O$128:$O$157) -> 0 | H15: =SUMIF('LID & STUs'!$B$128:$B$157,H10,'LID & STUs'!$O$128:$O$157) -> 0
C16: G | D16: Redirected to an IC Disconnection Area (acres) | F16: =SUMIF('LID & STUs'!$B$163:$B$192,F10,'LID & STUs'!$N$163:$N$192) -> 0 | G16: =SUMIF('LID & STUs'!$B$163:$B$192,G10,'LID & STUs'!$N$163:$N$192) -> 0 | H16: =SUMIF('LID & STUs'!$B$163:$B$192,H10,'LID & STUs'!$N$163:$N$192) -> 0
C17: H | D17: Tier 1 Structural STUs (acres) | F17: =SUMIFS('LID & STUs'!$X$200:$X$229,'LID & STUs'!$B$200:$B$229,F10,'LID & STUs'!$Q$200:$Q$229,"Tier 1",'LID & STUs'!$M$200:$M$229,"Inside the Project Limits") -> 0 | G17: =SUMIFS('LID & STUs'!$X$200:$X$229,'LID & STUs'!$B$200:$B$229,G10,'LID & STUs'!$Q$200:$Q$229,"Tier 1",'LID & STUs'!$M$200:$M$229,"Inside the Project Limits") -> 0 | H17: =SUMIFS('LID & STUs'!$X$200:$X$229,'LID & STUs'!$B$200:$B$229,H10,'LID & STUs'!$Q$200:$Q$229,"Tier 1",'LID & STUs'!$M$200:$M$229,"Inside the Project Limits") -> 0
C18: I | D18: Tier 2 Structural STUs (acres) | F18: =SUMIFS('LID & STUs'!$X$200:$X$229,'LID & STUs'!$B$200:$B$229,F10,'LID & STUs'!$Q$200:$Q$229,"Tier 2",'LID & STUs'!$M$200:$M$229,"Inside the Project Limits") -> 0 | G18: =SUMIFS('LID & STUs'!$X$200:$X$229,'LID & STUs'!$B$200:$B$229,G10,'LID & STUs'!$Q$200:$Q$229,"Tier 2",'LID & STUs'!$M$200:$M$229,"Inside the Project Limits") -> 0 | H18: =SUMIFS('LID & STUs'!$X$200:$X$229,'LID & STUs'!$B$200:$B$229,H10,'LID & STUs'!$Q$200:$Q$229,"Tier 2",'LID & STUs'!$M$200:$M$229,"Inside the Project Limits") -> 0
C19: J | D19: Tier 3 Structural STUs (acres) | F19: =SUMIFS('LID & STUs'!$X$200:$X$229,'LID & STUs'!$B$200:$B$229,F10,'LID & STUs'!$Q$200:$Q$229,"Tier 3",'LID & STUs'!$M$200:$M$229,"Inside the Project Limits") -> 0 | G19: =SUMIFS('LID & STUs'!$X$200:$X$229,'LID & STUs'!$B$200:$B$229,G10,'LID & STUs'!$Q$200:$Q$229,"Tier 3",'LID & STUs'!$M$200:$M$229,"Inside the Project Limits") -> 0 | H19: =SUMIFS('LID & STUs'!$X$200:$X$229,'LID & STUs'!$B$200:$B$229,H10,'LID & STUs'!$Q$200:$Q$229,"Tier 3",'LID & STUs'!$M$200:$M$229,"Inside the Project Limits") -> 0
C20: K | D20: STUs Outside the Project Limits (acres) | F20: =SUMIFS('LID & STUs'!$X$200:$X$229,'LID & STUs'!$B$200:$B$229,F10,'LID & STUs'!$M$200:$M$229,"Outside the Project Limits") -> 0 | G20: =SUMIFS('LID & STUs'!$X$200:$X$229,'LID & STUs'!$B$200:$B$229,G10,'LID & STUs'!$M$200:$M$229,"Outside the Project Limits") -> 0 | H20: =SUMIFS('LID & STUs'!$X$200:$X$229,'LID & STUs'!$B$200:$B$229,H10,'LID & STUs'!$M$200:$M$229,"Outside the Project Limits") -> 0
A21: Calculate Total Treatment Provided. | C21: L | D21: Total Area of Stormwater Treated (acres) = Sum of Items in Rows C through K | F21: =IFERROR(SUM(F12:F20),"") -> 0 | G21: =IFERROR(SUM(G12:G20),"") -> 0 | H21: 0
A22: Calculate Treatment Surplus/Deficit. | C22: M | D22: Total AreaB of Remaining Stormwater Requiring Treatment (acres) = (B) - (L) | F22: =IFERROR((F11-F21),"") -> 0 | G22: =IFERROR((G11-G21),"") -> 0 | H22: 0
A23: ACredit is given to existing, non-functioning STUs if maintenance is proposed as part of this project. BNegative value indicates a surplus of treatment.

Sheet STU Tiers (hidden)
A1: STU Type | B1: STU Tier
A2: Infiltration Basin | B2: Tier 2
A3: Infiltration Gutter | B3: Tier 2
A4: Infiltration Swale | B4: Tier 2
A5: Infiltration Trench | B5: Tier 2
A6: Sand Filter | B6: Tier 2
A7: Sand Filter (Exfiltrating) | B7: Tier 2
A8: Leaching Basin | B8: Tier 2
A9: Bioretention Basin | B9: Tier 3
A10: Bioretention Curb Extension Planter | B10: Tier 3
A11: Bioretention Curb Inlet Planter | B11: Tier 3
A12: Bioretention Parking Lane Adjacent Planter | B12: Tier 3
A13: Bioretention Swale | B13: Tier 3
A14: Extended Detention Basin | B14: Tier 3
A15: Gravel Wetland (WVTS) | B15: Tier 3
A16: Hydrodynamic Separator | B16: Tier 3
A17: Jellyfish Filter | B17: Tier 3
A18: MWS-Linear | B18: Tier 3
A19: Porous Pavement | B19: Tier 3
A20: Porous Pavement With Storage | B20: Tier 3
A21: Porous Pavement With Underdrain | B21: Tier 3
A22: Stormceptor | B22: Tier 3
A23: Tree Filter | B23: Tier 3
A24: Tree Filter With Storage | B24: Tier 3
A25: Underground Infiltration System | B25: Tier 3
A26: Wet Pond | B26: Tier 3
A27: Wet Swale | B27: Tier 3
A28: Wet Vegetated Treatment System | B28: Tier 3
A29: Water Quality Grass Swale w/ Detention | B29: Tier 3

Sheet Domains (hidden)
A1: List Name | B1: List Value
A2: STU Soil Type | B2: Sandy Clay Loam (0.17 in/hr)
B3: Silt Loam (0.27 in/hr)
B4: Loam (0.52 in/hr)
B5: Sandy Loam (1.02 in/hr)
B6: Loamy Sand (2.41 in/hr)
B7: Sand (8.27 in/hr)
B8: Clay (0.02 in/hr)
B9: Silty Clay (0.04 in/hr)
B10: Sandy Clay (0.05 in/hr)
B11: Silty Clay Loam (0.06 in/hr)
B12: Clay Loam (0.09 in/hr)
B13: Unknown
A15: HSG Soil Type | B15: HSG-A, pervious
B16: HSG-B, pervious
B17: HSG-C, pervious
B18: HSG-D, pervious
B19: Unknown soil type, pervious
B20: Impervious cover
B21: Forest
B22: Grass
A24: BMP | B24: Bioretention Basin
B25: Bioretention Curb Extension Planter
B26: Bioretention Curb Inlet Planter
B27: Bioretention Parking Lane Adjacent Planter
B28: Bioretention Swale
B29: Extended Detention Basin
B30: Gravel Wetland (WVTS)
B31: Hydrodynamic Separator
B32: Infiltration Basin
B33: Infiltration Gutter
B34: Infiltration Swale
B35: Infiltration Trench
B36: Jellyfish Filter
B37: Leaching Basin
B38: MWS-Linear
B39: Porous Pavement
B40: Porous Pavement With Storage
B41: Porous Pavement With Underdrain
B42: Sand Filter
B43: Sand Filter (Exfiltrating)
B44: Stormceptor
B45: Tree Filter
B46: Tree Filter With Storage
B47: Underground Infiltration System
B48: Water Quality Grass Swale w/ Detention
B49: Wet Pond
B50: Wet Swale
B51: Wet Vegetated Treatment System
B52: IC Disconnection
B53: Non-Discharge
B54: Pavement Removal
A56: Yes_No | B56: Yes
B57: No
A59: Project Limits | B59: Inside the Project Limits
B60: Outside the Project Limits
A62: STU Exists | B62: Existing
B63: Proposed
A65: STU Tier | B65: Tier 1
A68: Non-Discharge Definition | B68: Definition 1
B69: Definition 2
